{"text_format":"3","workbook":"xlsx","n_sheets":12,"sheets":["JAN","FEV","MAR","ABR","MAIO","JUN","JUL","AGO","SET","OUT","NOV","DEZ"],"not_rendered":{"defined_names":40},"read":"whole","date_system":"1900"}

{"sheet":"JAN","index":0,"n_rows":20,"n_cols":9,"rows_kept":20,"merged":[[16,2,17,2],[16,3,17,3],[17,4,19,8]]}
[null,"JAN","DOM",{"$f":"UPPER(TEXT(D3,\"ddd\"))","v":"SEG"},"TER","QUA","QUI","SEX","SÁB"]
[null,{"$f":"YEAR(TODAY())","v":2018}]
[null,null,{"$f":"DiasESemanas+DATE(AnoDoCalendário,1,1)-WEEKDAY(DATE(AnoDoCalendário,1,1),(InícioDaSemana=\"SEG\")+1)+1","v":"2017-12-31"},"2018-01-01","2018-01-02","2018-01-03","2018-01-04","2018-01-05","2018-01-06"]
[null,null,{"$f":"IF(DAY(DiaDoCalendário)=1,CONCATENATE(\"Semana \",WEEKNUM(DiaDoCalendário),\"/Dia \",DiaDoCalendário-DATE(YEAR(DiaDoCalendário),1,0)),CONCATENATE(\"Dia \",DiaDoCalendário-DATE(YEAR(DiaDoCalendário),1,0)))","v":"Dia 365"},{"$f":"IF(DAY(DiaDoCalendário)=1,CONCATENATE(\"Semana \",WEEKNUM(DiaDoCalendário),\"/Dia \",DiaDoCalendário-DATE(YEAR(DiaDoCalendário),1,0)),CONCATENATE(\"Dia \",DiaDoCalendário-DATE(YEAR(DiaDoCalendário),1,0)))","v":"Semana 1/Dia 1"},{"$f":"IF(DAY(DiaDoCalendário)=1,CONCATENATE(\"Semana \",WEEKNUM(DiaDoCalendário),\"/Dia \",DiaDoCalendário-DATE(YEAR(DiaDoCalendário),1,0)),CONCATENATE(\"Dia \",DiaDoCalendário-DATE(YEAR(DiaDoCalendário),1,0)))","v":"Dia 2"},{"$f":"IF(DAY(DiaDoCalendário)=1,CONCATENATE(\"Semana \",WEEKNUM(DiaDoCalendário),\"/Dia \",DiaDoCalendário-DATE(YEAR(DiaDoCalendário),1,0)),CONCATENATE(\"Dia \",DiaDoCalendário-DATE(YEAR(DiaDoCalendário),1,0)))","v":"Dia 3"},{"$f":"IF(DAY(DiaDoCalendário)=1,CONCATENATE(\"Semana \",WEEKNUM(DiaDoCalendário),\"/Dia \",DiaDoCalendário-DATE(YEAR(DiaDoCalendário),1,0)),CONCATENATE(\"Dia \",DiaDoCalendário-DATE(YEAR(DiaDoCalendário),1,0)))","v":"Dia 4"},{"$f":"IF(DAY(DiaDoCalendário)=1,CONCATENATE(\"Semana \",WEEKNUM(DiaDoCalendário),\"/Dia \",DiaDoCalendário-DATE(YEAR(DiaDoCalendário),1,0)),CONCATENATE(\"Dia \",DiaDoCalendário-DATE(YEAR(DiaDoCalendário),1,0)))","v":"Dia 5"},{"$f":"IF(DAY(DiaDoCalendário)=1,CONCATENATE(\"Semana \",WEEKNUM(DiaDoCalendário),\"/Dia \",DiaDoCalendário-DATE(YEAR(DiaDoCalendário),1,0)),CONCATENATE(\"Dia \",DiaDoCalendário-DATE(YEAR(DiaDoCalendário),1,0)))","v":"Dia 6"}]
[]
[null,null,{"$f":"DiasESemanas+DATE(AnoDoCalendário,1,1)-WEEKDAY(DATE(AnoDoCalendário,1,1),(InícioDaSemana=\"SEG\")+1)+8","v":"2018-01-07"},"2018-01-08","2018-01-09","2018-01-10","2018-01-11","2018-01-12","2018-01-13"]
[null,null,{"$f":"IF(WEEKDAY(DiaDoCalendário)=ValorDoInícioDaSemana,CONCATENATE(\"Semana \",WEEKNUM(DiaDoCalendário),\"/Dia \",DiaDoCalendário-DATE(YEAR(DiaDoCalendário),1,0)),CONCATENATE(\"Dia \",DiaDoCalendário-DATE(YEAR(DiaDoCalendário),1,0)))","v":"Semana 2/Dia 7"},{"$f":"IF(WEEKDAY(DiaDoCalendário)=ValorDoInícioDaSemana,CONCATENATE(\"Semana \",WEEKNUM(DiaDoCalendário),\"/Dia \",DiaDoCalendário-DATE(YEAR(DiaDoCalendário),1,0)),CONCATENATE(\"Dia \",DiaDoCalendário-DATE(YEAR(DiaDoCalendário),1,0)))","v":"Dia 8"},{"$f":"IF(WEEKDAY(DiaDoCalendário)=ValorDoInícioDaSemana,CONCATENATE(\"Semana \",WEEKNUM(DiaDoCalendário),\"/Dia \",DiaDoCalendário-DATE(YEAR(DiaDoCalendário),1,0)),CONCATENATE(\"Dia \",DiaDoCalendário-DATE(YEAR(DiaDoCalendário),1,0)))","v":"Dia 9"},{"$f":"IF(WEEKDAY(DiaDoCalendário)=ValorDoInícioDaSemana,CONCATENATE(\"Semana \",WEEKNUM(DiaDoCalendário),\"/Dia \",DiaDoCalendário-DATE(YEAR(DiaDoCalendário),1,0)),CONCATENATE(\"Dia \",DiaDoCalendário-DATE(YEAR(DiaDoCalendário),1,0)))","v":"Dia 10"},{"$f":"IF(WEEKDAY(DiaDoCalendário)=ValorDoInícioDaSemana,CONCATENATE(\"Semana \",WEEKNUM(DiaDoCalendário),\"/Dia \",DiaDoCalendário-DATE(YEAR(DiaDoCalendário),1,0)),CONCATENATE(\"Dia \",DiaDoCalendário-DATE(YEAR(DiaDoCalendário),1,0)))","v":"Dia 11"},{"$f":"IF(WEEKDAY(DiaDoCalendário)=ValorDoInícioDaSemana,CONCATENATE(\"Semana \",WEEKNUM(DiaDoCalendário),\"/Dia \",DiaDoCalendário-DATE(YEAR(DiaDoCalendário),1,0)),CONCATENATE(\"Dia \",DiaDoCalendário-DATE(YEAR(DiaDoCalendário),1,0)))","v":"Dia 12"},{"$f":"IF(WEEKDAY(DiaDoCalendário)=ValorDoInícioDaSemana,CONCATENATE(\"Semana \",WEEKNUM(DiaDoCalendário),\"/Dia \",DiaDoCalendário-DATE(YEAR(DiaDoCalendário),1,0)),CONCATENATE(\"Dia \",DiaDoCalendário-DATE(YEAR(DiaDoCalendário),1,0)))","v":"Dia 13"}]
[]
[null,null,{"$f":"DiasESemanas+DATE(AnoDoCalendário,1,1)-WEEKDAY(DATE(AnoDoCalendário,1,1),(InícioDaSemana=\"SEG\")+1)+15","v":"2018-01-14"},"2018-01-15","2018-01-16","2018-01-17","2018-01-18","2018-01-19","2018-01-20"]
[null,null,{"$f":"IF(WEEKDAY(DiaDoCalendário)=ValorDoInícioDaSemana,CONCATENATE(\"Semana \",WEEKNUM(DiaDoCalendário),\"/Dia \",DiaDoCalendário-DATE(YEAR(DiaDoCalendário),1,0)),CONCATENATE(\"Dia \",DiaDoCalendário-DATE(YEAR(DiaDoCalendário),1,0)))","v":"Semana 3/Dia 14"},{"$f":"IF(WEEKDAY(DiaDoCalendário)=ValorDoInícioDaSemana,CONCATENATE(\"Semana \",WEEKNUM(DiaDoCalendário),\"/Dia \",DiaDoCalendário-DATE(YEAR(DiaDoCalendário),1,0)),CONCATENATE(\"Dia \",DiaDoCalendário-DATE(YEAR(DiaDoCalendário),1,0)))","v":"Dia 15"},{"$f":"IF(WEEKDAY(DiaDoCalendário)=ValorDoInícioDaSemana,CONCATENATE(\"Semana \",WEEKNUM(DiaDoCalendário),\"/Dia \",DiaDoCalendário-DATE(YEAR(DiaDoCalendário),1,0)),CONCATENATE(\"Dia \",DiaDoCalendário-DATE(YEAR(DiaDoCalendário),1,0)))","v":"Dia 16"},{"$f":"IF(WEEKDAY(DiaDoCalendário)=ValorDoInícioDaSemana,CONCATENATE(\"Semana \",WEEKNUM(DiaDoCalendário),\"/Dia \",DiaDoCalendário-DATE(YEAR(DiaDoCalendário),1,0)),CONCATENATE(\"Dia \",DiaDoCalendário-DATE(YEAR(DiaDoCalendário),1,0)))","v":"Dia 17"},{"$f":"IF(WEEKDAY(DiaDoCalendário)=ValorDoInícioDaSemana,CONCATENATE(\"Semana \",WEEKNUM(DiaDoCalendário),\"/Dia \",DiaDoCalendário-DATE(YEAR(DiaDoCalendário),1,0)),CONCATENATE(\"Dia \",DiaDoCalendário-DATE(YEAR(DiaDoCalendário),1,0)))","v":"Dia 18"},{"$f":"IF(WEEKDAY(DiaDoCalendário)=ValorDoInícioDaSemana,CONCATENATE(\"Semana \",WEEKNUM(DiaDoCalendário),\"/Dia \",DiaDoCalendário-DATE(YEAR(DiaDoCalendário),1,0)),CONCATENATE(\"Dia \",DiaDoCalendário-DATE(YEAR(DiaDoCalendário),1,0)))","v":"Dia 19"},{"$f":"IF(WEEKDAY(DiaDoCalendário)=ValorDoInícioDaSemana,CONCATENATE(\"Semana \",WEEKNUM(DiaDoCalendário),\"/Dia \",DiaDoCalendário-DATE(YEAR(DiaDoCalendário),1,0)),CONCATENATE(\"Dia \",DiaDoCalendário-DATE(YEAR(DiaDoCalendário),1,0)))","v":"Dia 20"}]
[]
[null,null,{"$f":"DiasESemanas+DATE(AnoDoCalendário,1,1)-WEEKDAY(DATE(AnoDoCalendário,1,1),(InícioDaSemana=\"SEG\")+1)+22","v":"2018-01-21"},"2018-01-22","2018-01-23","2018-01-24","2018-01-25","2018-01-26","2018-01-27"]
[null,null,{"$f":"IF(WEEKDAY(DiaDoCalendário)=ValorDoInícioDaSemana,CONCATENATE(\"Semana \",WEEKNUM(DiaDoCalendário),\"/Dia \",DiaDoCalendário-DATE(YEAR(DiaDoCalendário),1,0)),CONCATENATE(\"Dia \",DiaDoCalendário-DATE(YEAR(DiaDoCalendário),1,0)))","v":"Semana 4/Dia 21"},{"$f":"IF(WEEKDAY(DiaDoCalendário)=ValorDoInícioDaSemana,CONCATENATE(\"Semana \",WEEKNUM(DiaDoCalendário),\"/Dia \",DiaDoCalendário-DATE(YEAR(DiaDoCalendário),1,0)),CONCATENATE(\"Dia \",DiaDoCalendário-DATE(YEAR(DiaDoCalendário),1,0)))","v":"Dia 22"},{"$f":"IF(WEEKDAY(DiaDoCalendário)=ValorDoInícioDaSemana,CONCATENATE(\"Semana \",WEEKNUM(DiaDoCalendário),\"/Dia \",DiaDoCalendário-DATE(YEAR(DiaDoCalendário),1,0)),CONCATENATE(\"Dia \",DiaDoCalendário-DATE(YEAR(DiaDoCalendário),1,0)))","v":"Dia 23"},{"$f":"IF(WEEKDAY(DiaDoCalendário)=ValorDoInícioDaSemana,CONCATENATE(\"Semana \",WEEKNUM(DiaDoCalendário),\"/Dia \",DiaDoCalendário-DATE(YEAR(DiaDoCalendário),1,0)),CONCATENATE(\"Dia \",DiaDoCalendário-DATE(YEAR(DiaDoCalendário),1,0)))","v":"Dia 24"},{"$f":"IF(WEEKDAY(DiaDoCalendário)=ValorDoInícioDaSemana,CONCATENATE(\"Semana \",WEEKNUM(DiaDoCalendário),\"/Dia \",DiaDoCalendário-DATE(YEAR(DiaDoCalendário),1,0)),CONCATENATE(\"Dia \",DiaDoCalendário-DATE(YEAR(DiaDoCalendário),1,0)))","v":"Dia 25"},{"$f":"IF(WEEKDAY(DiaDoCalendário)=ValorDoInícioDaSemana,CONCATENATE(\"Semana \",WEEKNUM(DiaDoCalendário),\"/Dia \",DiaDoCalendário-DATE(YEAR(DiaDoCalendário),1,0)),CONCATENATE(\"Dia \",DiaDoCalendário-DATE(YEAR(DiaDoCalendário),1,0)))","v":"Dia 26"},{"$f":"IF(WEEKDAY(DiaDoCalendário)=ValorDoInícioDaSemana,CONCATENATE(\"Semana \",WEEKNUM(DiaDoCalendário),\"/Dia \",DiaDoCalendário-DATE(YEAR(DiaDoCalendário),1,0)),CONCATENATE(\"Dia \",DiaDoCalendário-DATE(YEAR(DiaDoCalendário),1,0)))","v":"Dia 27"}]
[]
[null,null,{"$f":"DiasESemanas+DATE(AnoDoCalendário,1,1)-WEEKDAY(DATE(AnoDoCalendário,1,1),(InícioDaSemana=\"SEG\")+1)+29","v":"2018-01-28"},"2018-01-29","2018-01-30","2018-01-31","2018-02-01","2018-02-02","2018-02-03"]
[null,null,{"$f":"IF(WEEKDAY(DiaDoCalendário)=ValorDoInícioDaSemana,CONCATENATE(\"Semana \",WEEKNUM(DiaDoCalendário),\"/Dia \",DiaDoCalendário-DATE(YEAR(DiaDoCalendário),1,0)),CONCATENATE(\"Dia \",DiaDoCalendário-DATE(YEAR(DiaDoCalendário),1,0)))","v":"Semana 5/Dia 28"},{"$f":"IF(WEEKDAY(DiaDoCalendário)=ValorDoInícioDaSemana,CONCATENATE(\"Semana \",WEEKNUM(DiaDoCalendário),\"/Dia \",DiaDoCalendário-DATE(YEAR(DiaDoCalendário),1,0)),CONCATENATE(\"Dia \",DiaDoCalendário-DATE(YEAR(DiaDoCalendário),1,0)))","v":"Dia 29"},{"$f":"IF(WEEKDAY(DiaDoCalendário)=ValorDoInícioDaSemana,CONCATENATE(\"Semana \",WEEKNUM(DiaDoCalendário),\"/Dia \",DiaDoCalendário-DATE(YEAR(DiaDoCalendário),1,0)),CONCATENATE(\"Dia \",DiaDoCalendário-DATE(YEAR(DiaDoCalendário),1,0)))","v":"Dia 30"},{"$f":"IF(WEEKDAY(DiaDoCalendário)=ValorDoInícioDaSemana,CONCATENATE(\"Semana \",WEEKNUM(DiaDoCalendário),\"/Dia \",DiaDoCalendário-DATE(YEAR(DiaDoCalendário),1,0)),CONCATENATE(\"Dia \",DiaDoCalendário-DATE(YEAR(DiaDoCalendário),1,0)))","v":"Dia 31"},{"$f":"IF(WEEKDAY(DiaDoCalendário)=ValorDoInícioDaSemana,CONCATENATE(\"Semana \",WEEKNUM(DiaDoCalendário),\"/Dia \",DiaDoCalendário-DATE(YEAR(DiaDoCalendário),1,0)),CONCATENATE(\"Dia \",DiaDoCalendário-DATE(YEAR(DiaDoCalendário),1,0)))","v":"Dia 32"},{"$f":"IF(WEEKDAY(DiaDoCalendário)=ValorDoInícioDaSemana,CONCATENATE(\"Semana \",WEEKNUM(DiaDoCalendário),\"/Dia \",DiaDoCalendário-DATE(YEAR(DiaDoCalendário),1,0)),CONCATENATE(\"Dia \",DiaDoCalendário-DATE(YEAR(DiaDoCalendário),1,0)))","v":"Dia 33"},{"$f":"IF(WEEKDAY(DiaDoCalendário)=ValorDoInícioDaSemana,CONCATENATE(\"Semana \",WEEKNUM(DiaDoCalendário),\"/Dia \",DiaDoCalendário-DATE(YEAR(DiaDoCalendário),1,0)),CONCATENATE(\"Dia \",DiaDoCalendário-DATE(YEAR(DiaDoCalendário),1,0)))","v":"Dia 34"}]
[{"$nulls":4},"ANOTAÇÕES"]
[]
[null,null,{"$f":"DiasESemanas+DATE(AnoDoCalendário,1,1)-WEEKDAY(DATE(AnoDoCalendário,1,1),(InícioDaSemana=\"SEG\")+1)+36","v":"2018-02-04"},"2018-02-05"]
[null,null,{"$f":"IF(WEEKDAY(DiaDoCalendário)=ValorDoInícioDaSemana,CONCATENATE(\"Semana \",WEEKNUM(DiaDoCalendário),\"/Dia \",DiaDoCalendário-DATE(YEAR(DiaDoCalendário),1,0)),CONCATENATE(\"Dia \",DiaDoCalendário-DATE(YEAR(DiaDoCalendário),1,0)))","v":"Semana 6/Dia 35"},{"$f":"IF(WEEKDAY(DiaDoCalendário)=ValorDoInícioDaSemana,CONCATENATE(\"Semana \",WEEKNUM(DiaDoCalendário),\"/Dia \",DiaDoCalendário-DATE(YEAR(DiaDoCalendário),1,0)),CONCATENATE(\"Dia \",DiaDoCalendário-DATE(YEAR(DiaDoCalendário),1,0)))","v":"Dia 36"}]

{"sheet":"FEV","index":1,"n_rows":20,"n_cols":9,"rows_kept":20,"merged":[[16,2,17,2],[17,4,19,8]]}
[null,"FEV",{"$f":"UPPER(TEXT(InícioDaSemana,\"ddd\"))","v":"DOM"},{"$f":"UPPER(TEXT(D3,\"ddd\"))","v":"SEG"},"TER","QUA","QUI","SEX","SÁB"]
[null,{"$f":"AnoDoCalendário","v":2018}]
[null,null,{"$f":"DiasESemanas+DATE(AnoDoCalendário,2,1)-WEEKDAY(DATE(AnoDoCalendário,2,1),(InícioDaSemana=\"SEG\")+1)+1","v":"2018-01-28"},"2018-01-29","2018-01-30","2018-01-31","2018-02-01","2018-02-02","2018-02-03"]
[null,null,{"$f":"IF(DAY(DiaDoCalendário)=1,CONCATENATE(\"Semana \",WEEKNUM(DiaDoCalendário),\"/Dia \",DiaDoCalendário-DATE(YEAR(DiaDoCalendário),1,0)),CONCATENATE(\"Dia \",DiaDoCalendário-DATE(YEAR(DiaDoCalendário),1,0)))","v":"Dia 28"},{"$f":"IF(DAY(DiaDoCalendário)=1,CONCATENATE(\"Semana \",WEEKNUM(DiaDoCalendário),\"/Dia \",DiaDoCalendário-DATE(YEAR(DiaDoCalendário),1,0)),CONCATENATE(\"Dia \",DiaDoCalendário-DATE(YEAR(DiaDoCalendário),1,0)))","v":"Dia 29"},{"$f":"IF(DAY(DiaDoCalendário)=1,CONCATENATE(\"Semana \",WEEKNUM(DiaDoCalendário),\"/Dia \",DiaDoCalendário-DATE(YEAR(DiaDoCalendário),1,0)),CONCATENATE(\"Dia \",DiaDoCalendário-DATE(YEAR(DiaDoCalendário),1,0)))","v":"Dia 30"},{"$f":"IF(DAY(DiaDoCalendário)=1,CONCATENATE(\"Semana \",WEEKNUM(DiaDoCalendário),\"/Dia \",DiaDoCalendário-DATE(YEAR(DiaDoCalendário),1,0)),CONCATENATE(\"Dia \",DiaDoCalendário-DATE(YEAR(DiaDoCalendário),1,0)))","v":"Dia 31"},{"$f":"IF(DAY(DiaDoCalendário)=1,CONCATENATE(\"Semana \",WEEKNUM(DiaDoCalendário),\"/Dia \",DiaDoCalendário-DATE(YEAR(DiaDoCalendário),1,0)),CONCATENATE(\"Dia \",DiaDoCalendário-DATE(YEAR(DiaDoCalendário),1,0)))","v":"Semana 5/Dia 32"},{"$f":"IF(DAY(DiaDoCalendário)=1,CONCATENATE(\"Semana \",WEEKNUM(DiaDoCalendário),\"/Dia \",DiaDoCalendário-DATE(YEAR(DiaDoCalendário),1,0)),CONCATENATE(\"Dia \",DiaDoCalendário-DATE(YEAR(DiaDoCalendário),1,0)))","v":"Dia 33"},{"$f":"IF(DAY(DiaDoCalendário)=1,CONCATENATE(\"Semana \",WEEKNUM(DiaDoCalendário),\"/Dia \",DiaDoCalendário-DATE(YEAR(DiaDoCalendário),1,0)),CONCATENATE(\"Dia \",DiaDoCalendário-DATE(YEAR(DiaDoCalendário),1,0)))","v":"Dia 34"}]
[]
[null,null,{"$f":"DiasESemanas+DATE(AnoDoCalendário,2,1)-WEEKDAY(DATE(AnoDoCalendário,2,1),(InícioDaSemana=\"SEG\")+1)+8","v":"2018-02-04"},"2018-02-05","2018-02-06","2018-02-07","2018-02-08","2018-02-09","2018-02-10"]
[null,null,{"$f":"IF(WEEKDAY(DiaDoCalendário)=ValorDoInícioDaSemana,CONCATENATE(\"Semana \",WEEKNUM(DiaDoCalendário),\"/Dia \",DiaDoCalendário-DATE(YEAR(DiaDoCalendário),1,0)),CONCATENATE(\"Dia \",DiaDoCalendário-DATE(YEAR(DiaDoCalendário),1,0)))","v":"Semana 6/Dia 35"},{"$f":"IF(WEEKDAY(DiaDoCalendário)=ValorDoInícioDaSemana,CONCATENATE(\"Semana \",WEEKNUM(DiaDoCalendário),\"/Dia \",DiaDoCalendário-DATE(YEAR(DiaDoCalendário),1,0)),CONCATENATE(\"Dia \",DiaDoCalendário-DATE(YEAR(DiaDoCalendário),1,0)))","v":"Dia 36"},{"$f":"IF(WEEKDAY(DiaDoCalendário)=ValorDoInícioDaSemana,CONCATENATE(\"Semana \",WEEKNUM(DiaDoCalendário),\"/Dia \",DiaDoCalendário-DATE(YEAR(DiaDoCalendário),1,0)),CONCATENATE(\"Dia \",DiaDoCalendário-DATE(YEAR(DiaDoCalendário),1,0)))","v":"Dia 37"},{"$f":"IF(WEEKDAY(DiaDoCalendário)=ValorDoInícioDaSemana,CONCATENATE(\"Semana \",WEEKNUM(DiaDoCalendário),\"/Dia \",DiaDoCalendário-DATE(YEAR(DiaDoCalendário),1,0)),CONCATENATE(\"Dia \",DiaDoCalendário-DATE(YEAR(DiaDoCalendário),1,0)))","v":"Dia 38"},{"$f":"IF(WEEKDAY(DiaDoCalendário)=ValorDoInícioDaSemana,CONCATENATE(\"Semana \",WEEKNUM(DiaDoCalendário),\"/Dia \",DiaDoCalendário-DATE(YEAR(DiaDoCalendário),1,0)),CONCATENATE(\"Dia \",DiaDoCalendário-DATE(YEAR(DiaDoCalendário),1,0)))","v":"Dia 39"},{"$f":"IF(WEEKDAY(DiaDoCalendário)=ValorDoInícioDaSemana,CONCATENATE(\"Semana \",WEEKNUM(DiaDoCalendário),\"/Dia \",DiaDoCalendário-DATE(YEAR(DiaDoCalendário),1,0)),CONCATENATE(\"Dia \",DiaDoCalendário-DATE(YEAR(DiaDoCalendário),1,0)))","v":"Dia 40"},{"$f":"IF(WEEKDAY(DiaDoCalendário)=ValorDoInícioDaSemana,CONCATENATE(\"Semana \",WEEKNUM(DiaDoCalendário),\"/Dia \",DiaDoCalendário-DATE(YEAR(DiaDoCalendário),1,0)),CONCATENATE(\"Dia \",DiaDoCalendário-DATE(YEAR(DiaDoCalendário),1,0)))","v":"Dia 41"}]
[]
[null,null,{"$f":"DiasESemanas+DATE(AnoDoCalendário,2,1)-WEEKDAY(DATE(AnoDoCalendário,2,1),(InícioDaSemana=\"SEG\")+1)+15","v":"2018-02-11"},"2018-02-12","2018-02-13","2018-02-14","2018-02-15","2018-02-16","2018-02-17"]
[null,null,{"$f":"IF(WEEKDAY(DiaDoCalendário)=ValorDoInícioDaSemana,CONCATENATE(\"Semana \",WEEKNUM(DiaDoCalendário),\"/Dia \",DiaDoCalendário-DATE(YEAR(DiaDoCalendário),1,0)),CONCATENATE(\"Dia \",DiaDoCalendário-DATE(YEAR(DiaDoCalendário),1,0)))","v":"Semana 7/Dia 42"},{"$f":"IF(WEEKDAY(DiaDoCalendário)=ValorDoInícioDaSemana,CONCATENATE(\"Semana \",WEEKNUM(DiaDoCalendário),\"/Dia \",DiaDoCalendário-DATE(YEAR(DiaDoCalendário),1,0)),CONCATENATE(\"Dia \",DiaDoCalendário-DATE(YEAR(DiaDoCalendário),1,0)))","v":"Dia 43"},{"$f":"IF(WEEKDAY(DiaDoCalendário)=ValorDoInícioDaSemana,CONCATENATE(\"Semana \",WEEKNUM(DiaDoCalendário),\"/Dia \",DiaDoCalendário-DATE(YEAR(DiaDoCalendário),1,0)),CONCATENATE(\"Dia \",DiaDoCalendário-DATE(YEAR(DiaDoCalendário),1,0)))","v":"Dia 44"},{"$f":"IF(WEEKDAY(DiaDoCalendário)=ValorDoInícioDaSemana,CONCATENATE(\"Semana \",WEEKNUM(DiaDoCalendário),\"/Dia \",DiaDoCalendário-DATE(YEAR(DiaDoCalendário),1,0)),CONCATENATE(\"Dia \",DiaDoCalendário-DATE(YEAR(DiaDoCalendário),1,0)))","v":"Dia 45"},{"$f":"IF(WEEKDAY(DiaDoCalendário)=ValorDoInícioDaSemana,CONCATENATE(\"Semana \",WEEKNUM(DiaDoCalendário),\"/Dia \",DiaDoCalendário-DATE(YEAR(DiaDoCalendário),1,0)),CONCATENATE(\"Dia \",DiaDoCalendário-DATE(YEAR(DiaDoCalendário),1,0)))","v":"Dia 46"},{"$f":"IF(WEEKDAY(DiaDoCalendário)=ValorDoInícioDaSemana,CONCATENATE(\"Semana \",WEEKNUM(DiaDoCalendário),\"/Dia \",DiaDoCalendário-DATE(YEAR(DiaDoCalendário),1,0)),CONCATENATE(\"Dia \",DiaDoCalendário-DATE(YEAR(DiaDoCalendário),1,0)))","v":"Dia 47"},{"$f":"IF(WEEKDAY(DiaDoCalendário)=ValorDoInícioDaSemana,CONCATENATE(\"Semana \",WEEKNUM(DiaDoCalendário),\"/Dia \",DiaDoCalendário-DATE(YEAR(DiaDoCalendário),1,0)),CONCATENATE(\"Dia \",DiaDoCalendário-DATE(YEAR(DiaDoCalendário),1,0)))","v":"Dia 48"}]
[]
[null,null,{"$f":"DiasESemanas+DATE(AnoDoCalendário,2,1)-WEEKDAY(DATE(AnoDoCalendário,2,1),(InícioDaSemana=\"SEG\")+1)+22","v":"2018-02-18"},"2018-02-19","2018-02-20","2018-02-21","2018-02-22","2018-02-23","2018-02-24"]
[null,null,{"$f":"IF(WEEKDAY(DiaDoCalendário)=ValorDoInícioDaSemana,CONCATENATE(\"Semana \",WEEKNUM(DiaDoCalendário),\"/Dia \",DiaDoCalendário-DATE(YEAR(DiaDoCalendário),1,0)),CONCATENATE(\"Dia \",DiaDoCalendário-DATE(YEAR(DiaDoCalendário),1,0)))","v":"Semana 8/Dia 49"},{"$f":"IF(WEEKDAY(DiaDoCalendário)=ValorDoInícioDaSemana,CONCATENATE(\"Semana \",WEEKNUM(DiaDoCalendário),\"/Dia \",DiaDoCalendário-DATE(YEAR(DiaDoCalendário),1,0)),CONCATENATE(\"Dia \",DiaDoCalendário-DATE(YEAR(DiaDoCalendário),1,0)))","v":"Dia 50"},{"$f":"IF(WEEKDAY(DiaDoCalendário)=ValorDoInícioDaSemana,CONCATENATE(\"Semana \",WEEKNUM(DiaDoCalendário),\"/Dia \",DiaDoCalendário-DATE(YEAR(DiaDoCalendário),1,0)),CONCATENATE(\"Dia \",DiaDoCalendário-DATE(YEAR(DiaDoCalendário),1,0)))","v":"Dia 51"},{"$f":"IF(WEEKDAY(DiaDoCalendário)=ValorDoInícioDaSemana,CONCATENATE(\"Semana \",WEEKNUM(DiaDoCalendário),\"/Dia \",DiaDoCalendário-DATE(YEAR(DiaDoCalendário),1,0)),CONCATENATE(\"Dia \",DiaDoCalendário-DATE(YEAR(DiaDoCalendário),1,0)))","v":"Dia 52"},{"$f":"IF(WEEKDAY(DiaDoCalendário)=ValorDoInícioDaSemana,CONCATENATE(\"Semana \",WEEKNUM(DiaDoCalendário),\"/Dia \",DiaDoCalendário-DATE(YEAR(DiaDoCalendário),1,0)),CONCATENATE(\"Dia \",DiaDoCalendário-DATE(YEAR(DiaDoCalendário),1,0)))","v":"Dia 53"},{"$f":"IF(WEEKDAY(DiaDoCalendário)=ValorDoInícioDaSemana,CONCATENATE(\"Semana \",WEEKNUM(DiaDoCalendário),\"/Dia \",DiaDoCalendário-DATE(YEAR(DiaDoCalendário),1,0)),CONCATENATE(\"Dia \",DiaDoCalendário-DATE(YEAR(DiaDoCalendário),1,0)))","v":"Dia 54"},{"$f":"IF(WEEKDAY(DiaDoCalendário)=ValorDoInícioDaSemana,CONCATENATE(\"Semana \",WEEKNUM(DiaDoCalendário),\"/Dia \",DiaDoCalendário-DATE(YEAR(DiaDoCalendário),1,0)),CONCATENATE(\"Dia \",DiaDoCalendário-DATE(YEAR(DiaDoCalendário),1,0)))","v":"Dia 55"}]
[]
[null,null,{"$f":"DiasESemanas+DATE(AnoDoCalendário,2,1)-WEEKDAY(DATE(AnoDoCalendário,2,1),(InícioDaSemana=\"SEG\")+1)+29","v":"2018-02-25"},"2018-02-26","2018-02-27","2018-02-28","2018-03-01","2018-03-02","2018-03-03"]
[null,null,{"$f":"IF(WEEKDAY(DiaDoCalendário)=ValorDoInícioDaSemana,CONCATENATE(\"Semana \",WEEKNUM(DiaDoCalendário),\"/Dia \",DiaDoCalendário-DATE(YEAR(DiaDoCalendário),1,0)),CONCATENATE(\"Dia \",DiaDoCalendário-DATE(YEAR(DiaDoCalendário),1,0)))","v":"Semana 9/Dia 56"},{"$f":"IF(WEEKDAY(DiaDoCalendário)=ValorDoInícioDaSemana,CONCATENATE(\"Semana \",WEEKNUM(DiaDoCalendário),\"/Dia \",DiaDoCalendário-DATE(YEAR(DiaDoCalendário),1,0)),CONCATENATE(\"Dia \",DiaDoCalendário-DATE(YEAR(DiaDoCalendário),1,0)))","v":"Dia 57"},{"$f":"IF(WEEKDAY(DiaDoCalendário)=ValorDoInícioDaSemana,CONCATENATE(\"Semana \",WEEKNUM(DiaDoCalendário),\"/Dia \",DiaDoCalendário-DATE(YEAR(DiaDoCalendário),1,0)),CONCATENATE(\"Dia \",DiaDoCalendário-DATE(YEAR(DiaDoCalendário),1,0)))","v":"Dia 58"},{"$f":"IF(WEEKDAY(DiaDoCalendário)=ValorDoInícioDaSemana,CONCATENATE(\"Semana \",WEEKNUM(DiaDoCalendário),\"/Dia \",DiaDoCalendário-DATE(YEAR(DiaDoCalendário),1,0)),CONCATENATE(\"Dia \",DiaDoCalendário-DATE(YEAR(DiaDoCalendário),1,0)))","v":"Dia 59"},{"$f":"IF(WEEKDAY(DiaDoCalendário)=ValorDoInícioDaSemana,CONCATENATE(\"Semana \",WEEKNUM(DiaDoCalendário),\"/Dia \",DiaDoCalendário-DATE(YEAR(DiaDoCalendário),1,0)),CONCATENATE(\"Dia \",DiaDoCalendário-DATE(YEAR(DiaDoCalendário),1,0)))","v":"Dia 60"},{"$f":"IF(WEEKDAY(DiaDoCalendário)=ValorDoInícioDaSemana,CONCATENATE(\"Semana \",WEEKNUM(DiaDoCalendário),\"/Dia \",DiaDoCalendário-DATE(YEAR(DiaDoCalendário),1,0)),CONCATENATE(\"Dia \",DiaDoCalendário-DATE(YEAR(DiaDoCalendário),1,0)))","v":"Dia 61"},{"$f":"IF(WEEKDAY(DiaDoCalendário)=ValorDoInícioDaSemana,CONCATENATE(\"Semana \",WEEKNUM(DiaDoCalendário),\"/Dia \",DiaDoCalendário-DATE(YEAR(DiaDoCalendário),1,0)),CONCATENATE(\"Dia \",DiaDoCalendário-DATE(YEAR(DiaDoCalendário),1,0)))","v":"Dia 62"}]
[{"$nulls":4},"ANOTAÇÕES"]
[]
[null,null,{"$f":"DiasESemanas+DATE(AnoDoCalendário,2,1)-WEEKDAY(DATE(AnoDoCalendário,2,1),(InícioDaSemana=\"SEG\")+1)+36","v":"2018-03-04"},"2018-03-05"]
[null,null,{"$f":"IF(WEEKDAY(DiaDoCalendário)=ValorDoInícioDaSemana,CONCATENATE(\"Semana \",WEEKNUM(DiaDoCalendário),\"/Dia \",DiaDoCalendário-DATE(YEAR(DiaDoCalendário),1,0)),CONCATENATE(\"Dia \",DiaDoCalendário-DATE(YEAR(DiaDoCalendário),1,0)))","v":"Semana 10/Dia 63"},{"$f":"IF(WEEKDAY(DiaDoCalendário)=ValorDoInícioDaSemana,CONCATENATE(\"Semana \",WEEKNUM(DiaDoCalendário),\"/Dia \",DiaDoCalendário-DATE(YEAR(DiaDoCalendário),1,0)),CONCATENATE(\"Dia \",DiaDoCalendário-DATE(YEAR(DiaDoCalendário),1,0)))","v":"Dia 64"}]

{"sheet":"MAR","index":2,"n_rows":20,"n_cols":9,"rows_kept":20,"merged":[[16,2,17,2],[17,4,19,8]]}
[null,"MAR",{"$f":"UPPER(TEXT(InícioDaSemana,\"ddd\"))","v":"DOM"},{"$f":"UPPER(TEXT(D3,\"ddd\"))","v":"SEG"},"TER","QUA","QUI","SEX","SÁB"]
[null,{"$f":"AnoDoCalendário","v":2018}]
[null,null,{"$f":"DiasESemanas+DATE(AnoDoCalendário,3,1)-WEEKDAY(DATE(AnoDoCalendário,3,1),(InícioDaSemana=\"SEG\")+1)+1","v":"2018-02-25"},"2018-02-26","2018-02-27","2018-02-28","2018-03-01","2018-03-02","2018-03-03"]
[null,null,{"$f":"IF(DAY(DiaDoCalendário)=1,CONCATENATE(\"Semana \",WEEKNUM(DiaDoCalendário),\"/Dia \",DiaDoCalendário-DATE(YEAR(DiaDoCalendário),1,0)),CONCATENATE(\"Dia \",DiaDoCalendário-DATE(YEAR(DiaDoCalendário),1,0)))","v":"Dia 56"},{"$f":"IF(DAY(DiaDoCalendário)=1,CONCATENATE(\"Semana \",WEEKNUM(DiaDoCalendário),\"/Dia \",DiaDoCalendário-DATE(YEAR(DiaDoCalendário),1,0)),CONCATENATE(\"Dia \",DiaDoCalendário-DATE(YEAR(DiaDoCalendário),1,0)))","v":"Dia 57"},{"$f":"IF(DAY(DiaDoCalendário)=1,CONCATENATE(\"Semana \",WEEKNUM(DiaDoCalendário),\"/Dia \",DiaDoCalendário-DATE(YEAR(DiaDoCalendário),1,0)),CONCATENATE(\"Dia \",DiaDoCalendário-DATE(YEAR(DiaDoCalendário),1,0)))","v":"Dia 58"},{"$f":"IF(DAY(DiaDoCalendário)=1,CONCATENATE(\"Semana \",WEEKNUM(DiaDoCalendário),\"/Dia \",DiaDoCalendário-DATE(YEAR(DiaDoCalendário),1,0)),CONCATENATE(\"Dia \",DiaDoCalendário-DATE(YEAR(DiaDoCalendário),1,0)))","v":"Dia 59"},{"$f":"IF(DAY(DiaDoCalendário)=1,CONCATENATE(\"Semana \",WEEKNUM(DiaDoCalendário),\"/Dia \",DiaDoCalendário-DATE(YEAR(DiaDoCalendário),1,0)),CONCATENATE(\"Dia \",DiaDoCalendário-DATE(YEAR(DiaDoCalendário),1,0)))","v":"Semana 9/Dia 60"},{"$f":"IF(DAY(DiaDoCalendário)=1,CONCATENATE(\"Semana \",WEEKNUM(DiaDoCalendário),\"/Dia \",DiaDoCalendário-DATE(YEAR(DiaDoCalendário),1,0)),CONCATENATE(\"Dia \",DiaDoCalendário-DATE(YEAR(DiaDoCalendário),1,0)))","v":"Dia 61"},{"$f":"IF(DAY(DiaDoCalendário)=1,CONCATENATE(\"Semana \",WEEKNUM(DiaDoCalendário),\"/Dia \",DiaDoCalendário-DATE(YEAR(DiaDoCalendário),1,0)),CONCATENATE(\"Dia \",DiaDoCalendário-DATE(YEAR(DiaDoCalendário),1,0)))","v":"Dia 62"}]
[]
[null,null,{"$f":"DiasESemanas+DATE(AnoDoCalendário,3,1)-WEEKDAY(DATE(AnoDoCalendário,3,1),(InícioDaSemana=\"SEG\")+1)+8","v":"2018-03-04"},"2018-03-05","2018-03-06","2018-03-07","2018-03-08","2018-03-09","2018-03-10"]
[null,null,{"$f":"IF(WEEKDAY(DiaDoCalendário)=ValorDoInícioDaSemana,CONCATENATE(\"Semana \",WEEKNUM(DiaDoCalendário),\"/Dia \",DiaDoCalendário-DATE(YEAR(DiaDoCalendário),1,0)),CONCATENATE(\"Dia \",DiaDoCalendário-DATE(YEAR(DiaDoCalendário),1,0)))","v":"Semana 10/Dia 63"},{"$f":"IF(WEEKDAY(DiaDoCalendário)=ValorDoInícioDaSemana,CONCATENATE(\"Semana \",WEEKNUM(DiaDoCalendário),\"/Dia \",DiaDoCalendário-DATE(YEAR(DiaDoCalendário),1,0)),CONCATENATE(\"Dia \",DiaDoCalendário-DATE(YEAR(DiaDoCalendário),1,0)))","v":"Dia 64"},{"$f":"IF(WEEKDAY(DiaDoCalendário)=ValorDoInícioDaSemana,CONCATENATE(\"Semana \",WEEKNUM(DiaDoCalendário),\"/Dia \",DiaDoCalendário-DATE(YEAR(DiaDoCalendário),1,0)),CONCATENATE(\"Dia \",DiaDoCalendário-DATE(YEAR(DiaDoCalendário),1,0)))","v":"Dia 65"},{"$f":"IF(WEEKDAY(DiaDoCalendário)=ValorDoInícioDaSemana,CONCATENATE(\"Semana \",WEEKNUM(DiaDoCalendário),\"/Dia \",DiaDoCalendário-DATE(YEAR(DiaDoCalendário),1,0)),CONCATENATE(\"Dia \",DiaDoCalendário-DATE(YEAR(DiaDoCalendário),1,0)))","v":"Dia 66"},{"$f":"IF(WEEKDAY(DiaDoCalendário)=ValorDoInícioDaSemana,CONCATENATE(\"Semana \",WEEKNUM(DiaDoCalendário),\"/Dia \",DiaDoCalendário-DATE(YEAR(DiaDoCalendário),1,0)),CONCATENATE(\"Dia \",DiaDoCalendário-DATE(YEAR(DiaDoCalendário),1,0)))","v":"Dia 67"},{"$f":"IF(WEEKDAY(DiaDoCalendário)=ValorDoInícioDaSemana,CONCATENATE(\"Semana \",WEEKNUM(DiaDoCalendário),\"/Dia \",DiaDoCalendário-DATE(YEAR(DiaDoCalendário),1,0)),CONCATENATE(\"Dia \",DiaDoCalendário-DATE(YEAR(DiaDoCalendário),1,0)))","v":"Dia 68"},{"$f":"IF(WEEKDAY(DiaDoCalendário)=ValorDoInícioDaSemana,CONCATENATE(\"Semana \",WEEKNUM(DiaDoCalendário),\"/Dia \",DiaDoCalendário-DATE(YEAR(DiaDoCalendário),1,0)),CONCATENATE(\"Dia \",DiaDoCalendário-DATE(YEAR(DiaDoCalendário),1,0)))","v":"Dia 69"}]
[]
[null,null,{"$f":"DiasESemanas+DATE(AnoDoCalendário,3,1)-WEEKDAY(DATE(AnoDoCalendário,3,1),(InícioDaSemana=\"SEG\")+1)+15","v":"2018-03-11"},"2018-03-12","2018-03-13","2018-03-14","2018-03-15","2018-03-16","2018-03-17"]
[null,null,{"$f":"IF(WEEKDAY(DiaDoCalendário)=ValorDoInícioDaSemana,CONCATENATE(\"Semana \",WEEKNUM(DiaDoCalendário),\"/Dia \",DiaDoCalendário-DATE(YEAR(DiaDoCalendário),1,0)),CONCATENATE(\"Dia \",DiaDoCalendário-DATE(YEAR(DiaDoCalendário),1,0)))","v":"Semana 11/Dia 70"},{"$f":"IF(WEEKDAY(DiaDoCalendário)=ValorDoInícioDaSemana,CONCATENATE(\"Semana \",WEEKNUM(DiaDoCalendário),\"/Dia \",DiaDoCalendário-DATE(YEAR(DiaDoCalendário),1,0)),CONCATENATE(\"Dia \",DiaDoCalendário-DATE(YEAR(DiaDoCalendário),1,0)))","v":"Dia 71"},{"$f":"IF(WEEKDAY(DiaDoCalendário)=ValorDoInícioDaSemana,CONCATENATE(\"Semana \",WEEKNUM(DiaDoCalendário),\"/Dia \",DiaDoCalendário-DATE(YEAR(DiaDoCalendário),1,0)),CONCATENATE(\"Dia \",DiaDoCalendário-DATE(YEAR(DiaDoCalendário),1,0)))","v":"Dia 72"},{"$f":"IF(WEEKDAY(DiaDoCalendário)=ValorDoInícioDaSemana,CONCATENATE(\"Semana \",WEEKNUM(DiaDoCalendário),\"/Dia \",DiaDoCalendário-DATE(YEAR(DiaDoCalendário),1,0)),CONCATENATE(\"Dia \",DiaDoCalendário-DATE(YEAR(DiaDoCalendário),1,0)))","v":"Dia 73"},{"$f":"IF(WEEKDAY(DiaDoCalendário)=ValorDoInícioDaSemana,CONCATENATE(\"Semana \",WEEKNUM(DiaDoCalendário),\"/Dia \",DiaDoCalendário-DATE(YEAR(DiaDoCalendário),1,0)),CONCATENATE(\"Dia \",DiaDoCalendário-DATE(YEAR(DiaDoCalendário),1,0)))","v":"Dia 74"},{"$f":"IF(WEEKDAY(DiaDoCalendário)=ValorDoInícioDaSemana,CONCATENATE(\"Semana \",WEEKNUM(DiaDoCalendário),\"/Dia \",DiaDoCalendário-DATE(YEAR(DiaDoCalendário),1,0)),CONCATENATE(\"Dia \",DiaDoCalendário-DATE(YEAR(DiaDoCalendário),1,0)))","v":"Dia 75"},{"$f":"IF(WEEKDAY(DiaDoCalendário)=ValorDoInícioDaSemana,CONCATENATE(\"Semana \",WEEKNUM(DiaDoCalendário),\"/Dia \",DiaDoCalendário-DATE(YEAR(DiaDoCalendário),1,0)),CONCATENATE(\"Dia \",DiaDoCalendário-DATE(YEAR(DiaDoCalendário),1,0)))","v":"Dia 76"}]
[]
[null,null,{"$f":"DiasESemanas+DATE(AnoDoCalendário,3,1)-WEEKDAY(DATE(AnoDoCalendário,3,1),(InícioDaSemana=\"SEG\")+1)+22","v":"2018-03-18"},"2018-03-19","2018-03-20","2018-03-21","2018-03-22","2018-03-23","2018-03-24"]
[null,null,{"$f":"IF(WEEKDAY(DiaDoCalendário)=ValorDoInícioDaSemana,CONCATENATE(\"Semana \",WEEKNUM(DiaDoCalendário),\"/Dia \",DiaDoCalendário-DATE(YEAR(DiaDoCalendário),1,0)),CONCATENATE(\"Dia \",DiaDoCalendário-DATE(YEAR(DiaDoCalendário),1,0)))","v":"Semana 12/Dia 77"},{"$f":"IF(WEEKDAY(DiaDoCalendário)=ValorDoInícioDaSemana,CONCATENATE(\"Semana \",WEEKNUM(DiaDoCalendário),\"/Dia \",DiaDoCalendário-DATE(YEAR(DiaDoCalendário),1,0)),CONCATENATE(\"Dia \",DiaDoCalendário-DATE(YEAR(DiaDoCalendário),1,0)))","v":"Dia 78"},{"$f":"IF(WEEKDAY(DiaDoCalendário)=ValorDoInícioDaSemana,CONCATENATE(\"Semana \",WEEKNUM(DiaDoCalendário),\"/Dia \",DiaDoCalendário-DATE(YEAR(DiaDoCalendário),1,0)),CONCATENATE(\"Dia \",DiaDoCalendário-DATE(YEAR(DiaDoCalendário),1,0)))","v":"Dia 79"},{"$f":"IF(WEEKDAY(DiaDoCalendário)=ValorDoInícioDaSemana,CONCATENATE(\"Semana \",WEEKNUM(DiaDoCalendário),\"/Dia \",DiaDoCalendário-DATE(YEAR(DiaDoCalendário),1,0)),CONCATENATE(\"Dia \",DiaDoCalendário-DATE(YEAR(DiaDoCalendário),1,0)))","v":"Dia 80"},{"$f":"IF(WEEKDAY(DiaDoCalendário)=ValorDoInícioDaSemana,CONCATENATE(\"Semana \",WEEKNUM(DiaDoCalendário),\"/Dia \",DiaDoCalendário-DATE(YEAR(DiaDoCalendário),1,0)),CONCATENATE(\"Dia \",DiaDoCalendário-DATE(YEAR(DiaDoCalendário),1,0)))","v":"Dia 81"},{"$f":"IF(WEEKDAY(DiaDoCalendário)=ValorDoInícioDaSemana,CONCATENATE(\"Semana \",WEEKNUM(DiaDoCalendário),\"/Dia \",DiaDoCalendário-DATE(YEAR(DiaDoCalendário),1,0)),CONCATENATE(\"Dia \",DiaDoCalendário-DATE(YEAR(DiaDoCalendário),1,0)))","v":"Dia 82"},{"$f":"IF(WEEKDAY(DiaDoCalendário)=ValorDoInícioDaSemana,CONCATENATE(\"Semana \",WEEKNUM(DiaDoCalendário),\"/Dia \",DiaDoCalendário-DATE(YEAR(DiaDoCalendário),1,0)),CONCATENATE(\"Dia \",DiaDoCalendário-DATE(YEAR(DiaDoCalendário),1,0)))","v":"Dia 83"}]
[]
[null,null,{"$f":"DiasESemanas+DATE(AnoDoCalendário,3,1)-WEEKDAY(DATE(AnoDoCalendário,3,1),(InícioDaSemana=\"SEG\")+1)+29","v":"2018-03-25"},"2018-03-26","2018-03-27","2018-03-28","2018-03-29","2018-03-30","2018-03-31"]
[null,null,{"$f":"IF(WEEKDAY(DiaDoCalendário)=ValorDoInícioDaSemana,CONCATENATE(\"Semana \",WEEKNUM(DiaDoCalendário),\"/Dia \",DiaDoCalendário-DATE(YEAR(DiaDoCalendário),1,0)),CONCATENATE(\"Dia \",DiaDoCalendário-DATE(YEAR(DiaDoCalendário),1,0)))","v":"Semana 13/Dia 84"},{"$f":"IF(WEEKDAY(DiaDoCalendário)=ValorDoInícioDaSemana,CONCATENATE(\"Semana \",WEEKNUM(DiaDoCalendário),\"/Dia \",DiaDoCalendário-DATE(YEAR(DiaDoCalendário),1,0)),CONCATENATE(\"Dia \",DiaDoCalendário-DATE(YEAR(DiaDoCalendário),1,0)))","v":"Dia 85"},{"$f":"IF(WEEKDAY(DiaDoCalendário)=ValorDoInícioDaSemana,CONCATENATE(\"Semana \",WEEKNUM(DiaDoCalendário),\"/Dia \",DiaDoCalendário-DATE(YEAR(DiaDoCalendário),1,0)),CONCATENATE(\"Dia \",DiaDoCalendário-DATE(YEAR(DiaDoCalendário),1,0)))","v":"Dia 86"},{"$f":"IF(WEEKDAY(DiaDoCalendário)=ValorDoInícioDaSemana,CONCATENATE(\"Semana \",WEEKNUM(DiaDoCalendário),\"/Dia \",DiaDoCalendário-DATE(YEAR(DiaDoCalendário),1,0)),CONCATENATE(\"Dia \",DiaDoCalendário-DATE(YEAR(DiaDoCalendário),1,0)))","v":"Dia 87"},{"$f":"IF(WEEKDAY(DiaDoCalendário)=ValorDoInícioDaSemana,CONCATENATE(\"Semana \",WEEKNUM(DiaDoCalendário),\"/Dia \",DiaDoCalendário-DATE(YEAR(DiaDoCalendário),1,0)),CONCATENATE(\"Dia \",DiaDoCalendário-DATE(YEAR(DiaDoCalendário),1,0)))","v":"Dia 88"},{"$f":"IF(WEEKDAY(DiaDoCalendário)=ValorDoInícioDaSemana,CONCATENATE(\"Semana \",WEEKNUM(DiaDoCalendário),\"/Dia \",DiaDoCalendário-DATE(YEAR(DiaDoCalendário),1,0)),CONCATENATE(\"Dia \",DiaDoCalendário-DATE(YEAR(DiaDoCalendário),1,0)))","v":"Dia 89"},{"$f":"IF(WEEKDAY(DiaDoCalendário)=ValorDoInícioDaSemana,CONCATENATE(\"Semana \",WEEKNUM(DiaDoCalendário),\"/Dia \",DiaDoCalendário-DATE(YEAR(DiaDoCalendário),1,0)),CONCATENATE(\"Dia \",DiaDoCalendário-DATE(YEAR(DiaDoCalendário),1,0)))","v":"Dia 90"}]
[{"$nulls":4},"ANOTAÇÕES"]
[]
[null,null,{"$f":"DiasESemanas+DATE(AnoDoCalendário,3,1)-WEEKDAY(DATE(AnoDoCalendário,3,1),(InícioDaSemana=\"SEG\")+1)+36","v":"2018-04-01"},"2018-04-02"]
[null,null,{"$f":"IF(WEEKDAY(DiaDoCalendário)=ValorDoInícioDaSemana,CONCATENATE(\"Semana \",WEEKNUM(DiaDoCalendário),\"/Dia \",DiaDoCalendário-DATE(YEAR(DiaDoCalendário),1,0)),CONCATENATE(\"Dia \",DiaDoCalendário-DATE(YEAR(DiaDoCalendário),1,0)))","v":"Semana 14/Dia 91"},{"$f":"IF(WEEKDAY(DiaDoCalendário)=ValorDoInícioDaSemana,CONCATENATE(\"Semana \",WEEKNUM(DiaDoCalendário),\"/Dia \",DiaDoCalendário-DATE(YEAR(DiaDoCalendário),1,0)),CONCATENATE(\"Dia \",DiaDoCalendário-DATE(YEAR(DiaDoCalendário),1,0)))","v":"Dia 92"}]

{"sheet":"ABR","index":3,"n_rows":20,"n_cols":9,"rows_kept":20,"merged":[[16,2,17,2],[17,4,19,8]]}
[null,"ABR",{"$f":"UPPER(TEXT(InícioDaSemana,\"ddd\"))","v":"DOM"},{"$f":"UPPER(TEXT(D3,\"ddd\"))","v":"SEG"},"TER","QUA","QUI","SEX","SÁB"]
[null,{"$f":"AnoDoCalendário","v":2018}]
[null,null,{"$f":"DiasESemanas+DATE(AnoDoCalendário,4,1)-WEEKDAY(DATE(AnoDoCalendário,4,1),(InícioDaSemana=\"SEG\")+1)+1","v":"2018-04-01"},"2018-04-02","2018-04-03","2018-04-04","2018-04-05","2018-04-06","2018-04-07"]
[null,null,{"$f":"IF(DAY(DiaDoCalendário)=1,CONCATENATE(\"Semana \",WEEKNUM(DiaDoCalendário),\"/Dia \",DiaDoCalendário-DATE(YEAR(DiaDoCalendário),1,0)),CONCATENATE(\"Dia \",DiaDoCalendário-DATE(YEAR(DiaDoCalendário),1,0)))","v":"Semana 14/Dia 91"},{"$f":"IF(DAY(DiaDoCalendário)=1,CONCATENATE(\"Semana \",WEEKNUM(DiaDoCalendário),\"/Dia \",DiaDoCalendário-DATE(YEAR(DiaDoCalendário),1,0)),CONCATENATE(\"Dia \",DiaDoCalendário-DATE(YEAR(DiaDoCalendário),1,0)))","v":"Dia 92"},{"$f":"IF(DAY(DiaDoCalendário)=1,CONCATENATE(\"Semana \",WEEKNUM(DiaDoCalendário),\"/Dia \",DiaDoCalendário-DATE(YEAR(DiaDoCalendário),1,0)),CONCATENATE(\"Dia \",DiaDoCalendário-DATE(YEAR(DiaDoCalendário),1,0)))","v":"Dia 93"},{"$f":"IF(DAY(DiaDoCalendário)=1,CONCATENATE(\"Semana \",WEEKNUM(DiaDoCalendário),\"/Dia \",DiaDoCalendário-DATE(YEAR(DiaDoCalendário),1,0)),CONCATENATE(\"Dia \",DiaDoCalendário-DATE(YEAR(DiaDoCalendário),1,0)))","v":"Dia 94"},{"$f":"IF(DAY(DiaDoCalendário)=1,CONCATENATE(\"Semana \",WEEKNUM(DiaDoCalendário),\"/Dia \",DiaDoCalendário-DATE(YEAR(DiaDoCalendário),1,0)),CONCATENATE(\"Dia \",DiaDoCalendário-DATE(YEAR(DiaDoCalendário),1,0)))","v":"Dia 95"},{"$f":"IF(DAY(DiaDoCalendário)=1,CONCATENATE(\"Semana \",WEEKNUM(DiaDoCalendário),\"/Dia \",DiaDoCalendário-DATE(YEAR(DiaDoCalendário),1,0)),CONCATENATE(\"Dia \",DiaDoCalendário-DATE(YEAR(DiaDoCalendário),1,0)))","v":"Dia 96"},{"$f":"IF(DAY(DiaDoCalendário)=1,CONCATENATE(\"Semana \",WEEKNUM(DiaDoCalendário),\"/Dia \",DiaDoCalendário-DATE(YEAR(DiaDoCalendário),1,0)),CONCATENATE(\"Dia \",DiaDoCalendário-DATE(YEAR(DiaDoCalendário),1,0)))","v":"Dia 97"}]
[]
[null,null,{"$f":"DiasESemanas+DATE(AnoDoCalendário,4,1)-WEEKDAY(DATE(AnoDoCalendário,4,1),(InícioDaSemana=\"SEG\")+1)+8","v":"2018-04-08"},"2018-04-09","2018-04-10","2018-04-11","2018-04-12","2018-04-13","2018-04-14"]
[null,null,{"$f":"IF(WEEKDAY(DiaDoCalendário)=ValorDoInícioDaSemana,CONCATENATE(\"Semana \",WEEKNUM(DiaDoCalendário),\"/Dia \",DiaDoCalendário-DATE(YEAR(DiaDoCalendário),1,0)),CONCATENATE(\"Dia \",DiaDoCalendário-DATE(YEAR(DiaDoCalendário),1,0)))","v":"Semana 15/Dia 98"},{"$f":"IF(WEEKDAY(DiaDoCalendário)=ValorDoInícioDaSemana,CONCATENATE(\"Semana \",WEEKNUM(DiaDoCalendário),\"/Dia \",DiaDoCalendário-DATE(YEAR(DiaDoCalendário),1,0)),CONCATENATE(\"Dia \",DiaDoCalendário-DATE(YEAR(DiaDoCalendário),1,0)))","v":"Dia 99"},{"$f":"IF(WEEKDAY(DiaDoCalendário)=ValorDoInícioDaSemana,CONCATENATE(\"Semana \",WEEKNUM(DiaDoCalendário),\"/Dia \",DiaDoCalendário-DATE(YEAR(DiaDoCalendário),1,0)),CONCATENATE(\"Dia \",DiaDoCalendário-DATE(YEAR(DiaDoCalendário),1,0)))","v":"Dia 100"},{"$f":"IF(WEEKDAY(DiaDoCalendário)=ValorDoInícioDaSemana,CONCATENATE(\"Semana \",WEEKNUM(DiaDoCalendário),\"/Dia \",DiaDoCalendário-DATE(YEAR(DiaDoCalendário),1,0)),CONCATENATE(\"Dia \",DiaDoCalendário-DATE(YEAR(DiaDoCalendário),1,0)))","v":"Dia 101"},{"$f":"IF(WEEKDAY(DiaDoCalendário)=ValorDoInícioDaSemana,CONCATENATE(\"Semana \",WEEKNUM(DiaDoCalendário),\"/Dia \",DiaDoCalendário-DATE(YEAR(DiaDoCalendário),1,0)),CONCATENATE(\"Dia \",DiaDoCalendário-DATE(YEAR(DiaDoCalendário),1,0)))","v":"Dia 102"},{"$f":"IF(WEEKDAY(DiaDoCalendário)=ValorDoInícioDaSemana,CONCATENATE(\"Semana \",WEEKNUM(DiaDoCalendário),\"/Dia \",DiaDoCalendário-DATE(YEAR(DiaDoCalendário),1,0)),CONCATENATE(\"Dia \",DiaDoCalendário-DATE(YEAR(DiaDoCalendário),1,0)))","v":"Dia 103"},{"$f":"IF(WEEKDAY(DiaDoCalendário)=ValorDoInícioDaSemana,CONCATENATE(\"Semana \",WEEKNUM(DiaDoCalendário),\"/Dia \",DiaDoCalendário-DATE(YEAR(DiaDoCalendário),1,0)),CONCATENATE(\"Dia \",DiaDoCalendário-DATE(YEAR(DiaDoCalendário),1,0)))","v":"Dia 104"}]
[]
[null,null,{"$f":"DiasESemanas+DATE(AnoDoCalendário,4,1)-WEEKDAY(DATE(AnoDoCalendário,4,1),(InícioDaSemana=\"SEG\")+1)+15","v":"2018-04-15"},"2018-04-16","2018-04-17","2018-04-18","2018-04-19","2018-04-20","2018-04-21"]
[null,null,{"$f":"IF(WEEKDAY(DiaDoCalendário)=ValorDoInícioDaSemana,CONCATENATE(\"Semana \",WEEKNUM(DiaDoCalendário),\"/Dia \",DiaDoCalendário-DATE(YEAR(DiaDoCalendário),1,0)),CONCATENATE(\"Dia \",DiaDoCalendário-DATE(YEAR(DiaDoCalendário),1,0)))","v":"Semana 16/Dia 105"},{"$f":"IF(WEEKDAY(DiaDoCalendário)=ValorDoInícioDaSemana,CONCATENATE(\"Semana \",WEEKNUM(DiaDoCalendário),\"/Dia \",DiaDoCalendário-DATE(YEAR(DiaDoCalendário),1,0)),CONCATENATE(\"Dia \",DiaDoCalendário-DATE(YEAR(DiaDoCalendário),1,0)))","v":"Dia 106"},{"$f":"IF(WEEKDAY(DiaDoCalendário)=ValorDoInícioDaSemana,CONCATENATE(\"Semana \",WEEKNUM(DiaDoCalendário),\"/Dia \",DiaDoCalendário-DATE(YEAR(DiaDoCalendário),1,0)),CONCATENATE(\"Dia \",DiaDoCalendário-DATE(YEAR(DiaDoCalendário),1,0)))","v":"Dia 107"},{"$f":"IF(WEEKDAY(DiaDoCalendário)=ValorDoInícioDaSemana,CONCATENATE(\"Semana \",WEEKNUM(DiaDoCalendário),\"/Dia \",DiaDoCalendário-DATE(YEAR(DiaDoCalendário),1,0)),CONCATENATE(\"Dia \",DiaDoCalendário-DATE(YEAR(DiaDoCalendário),1,0)))","v":"Dia 108"},{"$f":"IF(WEEKDAY(DiaDoCalendário)=ValorDoInícioDaSemana,CONCATENATE(\"Semana \",WEEKNUM(DiaDoCalendário),\"/Dia \",DiaDoCalendário-DATE(YEAR(DiaDoCalendário),1,0)),CONCATENATE(\"Dia \",DiaDoCalendário-DATE(YEAR(DiaDoCalendário),1,0)))","v":"Dia 109"},{"$f":"IF(WEEKDAY(DiaDoCalendário)=ValorDoInícioDaSemana,CONCATENATE(\"Semana \",WEEKNUM(DiaDoCalendário),\"/Dia \",DiaDoCalendário-DATE(YEAR(DiaDoCalendário),1,0)),CONCATENATE(\"Dia \",DiaDoCalendário-DATE(YEAR(DiaDoCalendário),1,0)))","v":"Dia 110"},{"$f":"IF(WEEKDAY(DiaDoCalendário)=ValorDoInícioDaSemana,CONCATENATE(\"Semana \",WEEKNUM(DiaDoCalendário),\"/Dia \",DiaDoCalendário-DATE(YEAR(DiaDoCalendário),1,0)),CONCATENATE(\"Dia \",DiaDoCalendário-DATE(YEAR(DiaDoCalendário),1,0)))","v":"Dia 111"}]
[]
[null,null,{"$f":"DiasESemanas+DATE(AnoDoCalendário,4,1)-WEEKDAY(DATE(AnoDoCalendário,4,1),(InícioDaSemana=\"SEG\")+1)+22","v":"2018-04-22"},"2018-04-23","2018-04-24","2018-04-25","2018-04-26","2018-04-27","2018-04-28"]
[null,null,{"$f":"IF(WEEKDAY(DiaDoCalendário)=ValorDoInícioDaSemana,CONCATENATE(\"Semana \",WEEKNUM(DiaDoCalendário),\"/Dia \",DiaDoCalendário-DATE(YEAR(DiaDoCalendário),1,0)),CONCATENATE(\"Dia \",DiaDoCalendário-DATE(YEAR(DiaDoCalendário),1,0)))","v":"Semana 17/Dia 112"},{"$f":"IF(WEEKDAY(DiaDoCalendário)=ValorDoInícioDaSemana,CONCATENATE(\"Semana \",WEEKNUM(DiaDoCalendário),\"/Dia \",DiaDoCalendário-DATE(YEAR(DiaDoCalendário),1,0)),CONCATENATE(\"Dia \",DiaDoCalendário-DATE(YEAR(DiaDoCalendário),1,0)))","v":"Dia 113"},{"$f":"IF(WEEKDAY(DiaDoCalendário)=ValorDoInícioDaSemana,CONCATENATE(\"Semana \",WEEKNUM(DiaDoCalendário),\"/Dia \",DiaDoCalendário-DATE(YEAR(DiaDoCalendário),1,0)),CONCATENATE(\"Dia \",DiaDoCalendário-DATE(YEAR(DiaDoCalendário),1,0)))","v":"Dia 114"},{"$f":"IF(WEEKDAY(DiaDoCalendário)=ValorDoInícioDaSemana,CONCATENATE(\"Semana \",WEEKNUM(DiaDoCalendário),\"/Dia \",DiaDoCalendário-DATE(YEAR(DiaDoCalendário),1,0)),CONCATENATE(\"Dia \",DiaDoCalendário-DATE(YEAR(DiaDoCalendário),1,0)))","v":"Dia 115"},{"$f":"IF(WEEKDAY(DiaDoCalendário)=ValorDoInícioDaSemana,CONCATENATE(\"Semana \",WEEKNUM(DiaDoCalendário),\"/Dia \",DiaDoCalendário-DATE(YEAR(DiaDoCalendário),1,0)),CONCATENATE(\"Dia \",DiaDoCalendário-DATE(YEAR(DiaDoCalendário),1,0)))","v":"Dia 116"},{"$f":"IF(WEEKDAY(DiaDoCalendário)=ValorDoInícioDaSemana,CONCATENATE(\"Semana \",WEEKNUM(DiaDoCalendário),\"/Dia \",DiaDoCalendário-DATE(YEAR(DiaDoCalendário),1,0)),CONCATENATE(\"Dia \",DiaDoCalendário-DATE(YEAR(DiaDoCalendário),1,0)))","v":"Dia 117"},{"$f":"IF(WEEKDAY(DiaDoCalendário)=ValorDoInícioDaSemana,CONCATENATE(\"Semana \",WEEKNUM(DiaDoCalendário),\"/Dia \",DiaDoCalendário-DATE(YEAR(DiaDoCalendário),1,0)),CONCATENATE(\"Dia \",DiaDoCalendário-DATE(YEAR(DiaDoCalendário),1,0)))","v":"Dia 118"}]
[]
[null,null,{"$f":"DiasESemanas+DATE(AnoDoCalendário,4,1)-WEEKDAY(DATE(AnoDoCalendário,4,1),(InícioDaSemana=\"SEG\")+1)+29","v":"2018-04-29"},"2018-04-30","2018-05-01","2018-05-02","2018-05-03","2018-05-04","2018-05-05"]
[null,null,{"$f":"IF(WEEKDAY(DiaDoCalendário)=ValorDoInícioDaSemana,CONCATENATE(\"Semana \",WEEKNUM(DiaDoCalendário),\"/Dia \",DiaDoCalendário-DATE(YEAR(DiaDoCalendário),1,0)),CONCATENATE(\"Dia \",DiaDoCalendário-DATE(YEAR(DiaDoCalendário),1,0)))","v":"Semana 18/Dia 119"},{"$f":"IF(WEEKDAY(DiaDoCalendário)=ValorDoInícioDaSemana,CONCATENATE(\"Semana \",WEEKNUM(DiaDoCalendário),\"/Dia \",DiaDoCalendário-DATE(YEAR(DiaDoCalendário),1,0)),CONCATENATE(\"Dia \",DiaDoCalendário-DATE(YEAR(DiaDoCalendário),1,0)))","v":"Dia 120"},{"$f":"IF(WEEKDAY(DiaDoCalendário)=ValorDoInícioDaSemana,CONCATENATE(\"Semana \",WEEKNUM(DiaDoCalendário),\"/Dia \",DiaDoCalendário-DATE(YEAR(DiaDoCalendário),1,0)),CONCATENATE(\"Dia \",DiaDoCalendário-DATE(YEAR(DiaDoCalendário),1,0)))","v":"Dia 121"},{"$f":"IF(WEEKDAY(DiaDoCalendário)=ValorDoInícioDaSemana,CONCATENATE(\"Semana \",WEEKNUM(DiaDoCalendário),\"/Dia \",DiaDoCalendário-DATE(YEAR(DiaDoCalendário),1,0)),CONCATENATE(\"Dia \",DiaDoCalendário-DATE(YEAR(DiaDoCalendário),1,0)))","v":"Dia 122"},{"$f":"IF(WEEKDAY(DiaDoCalendário)=ValorDoInícioDaSemana,CONCATENATE(\"Semana \",WEEKNUM(DiaDoCalendário),\"/Dia \",DiaDoCalendário-DATE(YEAR(DiaDoCalendário),1,0)),CONCATENATE(\"Dia \",DiaDoCalendário-DATE(YEAR(DiaDoCalendário),1,0)))","v":"Dia 123"},{"$f":"IF(WEEKDAY(DiaDoCalendário)=ValorDoInícioDaSemana,CONCATENATE(\"Semana \",WEEKNUM(DiaDoCalendário),\"/Dia \",DiaDoCalendário-DATE(YEAR(DiaDoCalendário),1,0)),CONCATENATE(\"Dia \",DiaDoCalendário-DATE(YEAR(DiaDoCalendário),1,0)))","v":"Dia 124"},{"$f":"IF(WEEKDAY(DiaDoCalendário)=ValorDoInícioDaSemana,CONCATENATE(\"Semana \",WEEKNUM(DiaDoCalendário),\"/Dia \",DiaDoCalendário-DATE(YEAR(DiaDoCalendário),1,0)),CONCATENATE(\"Dia \",DiaDoCalendário-DATE(YEAR(DiaDoCalendário),1,0)))","v":"Dia 125"}]
[{"$nulls":4},"ANOTAÇÕES"]
[]
[null,null,{"$f":"DiasESemanas+DATE(AnoDoCalendário,4,1)-WEEKDAY(DATE(AnoDoCalendário,4,1),(InícioDaSemana=\"SEG\")+1)+36","v":"2018-05-06"},"2018-05-07"]
[null,null,{"$f":"IF(WEEKDAY(DiaDoCalendário)=ValorDoInícioDaSemana,CONCATENATE(\"Semana \",WEEKNUM(DiaDoCalendário),\"/Dia \",DiaDoCalendário-DATE(YEAR(DiaDoCalendário),1,0)),CONCATENATE(\"Dia \",DiaDoCalendário-DATE(YEAR(DiaDoCalendário),1,0)))","v":"Semana 19/Dia 126"},{"$f":"IF(WEEKDAY(DiaDoCalendário)=ValorDoInícioDaSemana,CONCATENATE(\"Semana \",WEEKNUM(DiaDoCalendário),\"/Dia \",DiaDoCalendário-DATE(YEAR(DiaDoCalendário),1,0)),CONCATENATE(\"Dia \",DiaDoCalendário-DATE(YEAR(DiaDoCalendário),1,0)))","v":"Dia 127"}]

{"sheet":"MAIO","index":4,"n_rows":20,"n_cols":9,"rows_kept":20,"merged":[[16,2,17,2],[17,4,19,8]]}
[null,"MAIO",{"$f":"UPPER(TEXT(InícioDaSemana,\"ddd\"))","v":"DOM"},{"$f":"UPPER(TEXT(D3,\"ddd\"))","v":"SEG"},"TER","QUA","QUI","SEX","SÁB"]
[null,{"$f":"AnoDoCalendário","v":2018}]
[null,null,{"$f":"DiasESemanas+DATE(AnoDoCalendário,5,1)-WEEKDAY(DATE(AnoDoCalendário,5,1),(InícioDaSemana=\"SEG\")+1)+1","v":"2018-04-29"},"2018-04-30","2018-05-01","2018-05-02","2018-05-03","2018-05-04","2018-05-05"]
[null,null,{"$f":"IF(DAY(DiaDoCalendário)=1,CONCATENATE(\"Semana \",WEEKNUM(DiaDoCalendário),\"/Dia \",DiaDoCalendário-DATE(YEAR(DiaDoCalendário),1,0)),CONCATENATE(\"Dia \",DiaDoCalendário-DATE(YEAR(DiaDoCalendário),1,0)))","v":"Dia 119"},{"$f":"IF(DAY(DiaDoCalendário)=1,CONCATENATE(\"Semana \",WEEKNUM(DiaDoCalendário),\"/Dia \",DiaDoCalendário-DATE(YEAR(DiaDoCalendário),1,0)),CONCATENATE(\"Dia \",DiaDoCalendário-DATE(YEAR(DiaDoCalendário),1,0)))","v":"Dia 120"},{"$f":"IF(DAY(DiaDoCalendário)=1,CONCATENATE(\"Semana \",WEEKNUM(DiaDoCalendário),\"/Dia \",DiaDoCalendário-DATE(YEAR(DiaDoCalendário),1,0)),CONCATENATE(\"Dia \",DiaDoCalendário-DATE(YEAR(DiaDoCalendário),1,0)))","v":"Semana 18/Dia 121"},{"$f":"IF(DAY(DiaDoCalendário)=1,CONCATENATE(\"Semana \",WEEKNUM(DiaDoCalendário),\"/Dia \",DiaDoCalendário-DATE(YEAR(DiaDoCalendário),1,0)),CONCATENATE(\"Dia \",DiaDoCalendário-DATE(YEAR(DiaDoCalendário),1,0)))","v":"Dia 122"},{"$f":"IF(DAY(DiaDoCalendário)=1,CONCATENATE(\"Semana \",WEEKNUM(DiaDoCalendário),\"/Dia \",DiaDoCalendário-DATE(YEAR(DiaDoCalendário),1,0)),CONCATENATE(\"Dia \",DiaDoCalendário-DATE(YEAR(DiaDoCalendário),1,0)))","v":"Dia 123"},{"$f":"IF(DAY(DiaDoCalendário)=1,CONCATENATE(\"Semana \",WEEKNUM(DiaDoCalendário),\"/Dia \",DiaDoCalendário-DATE(YEAR(DiaDoCalendário),1,0)),CONCATENATE(\"Dia \",DiaDoCalendário-DATE(YEAR(DiaDoCalendário),1,0)))","v":"Dia 124"},{"$f":"IF(DAY(DiaDoCalendário)=1,CONCATENATE(\"Semana \",WEEKNUM(DiaDoCalendário),\"/Dia \",DiaDoCalendário-DATE(YEAR(DiaDoCalendário),1,0)),CONCATENATE(\"Dia \",DiaDoCalendário-DATE(YEAR(DiaDoCalendário),1,0)))","v":"Dia 125"}]
[]
[null,null,{"$f":"DiasESemanas+DATE(AnoDoCalendário,5,1)-WEEKDAY(DATE(AnoDoCalendário,5,1),(InícioDaSemana=\"SEG\")+1)+8","v":"2018-05-06"},"2018-05-07","2018-05-08","2018-05-09","2018-05-10","2018-05-11","2018-05-12"]
[null,null,{"$f":"IF(WEEKDAY(DiaDoCalendário)=ValorDoInícioDaSemana,CONCATENATE(\"Semana \",WEEKNUM(DiaDoCalendário),\"/Dia \",DiaDoCalendário-DATE(YEAR(DiaDoCalendário),1,0)),CONCATENATE(\"Dia \",DiaDoCalendário-DATE(YEAR(DiaDoCalendário),1,0)))","v":"Semana 19/Dia 126"},{"$f":"IF(WEEKDAY(DiaDoCalendário)=ValorDoInícioDaSemana,CONCATENATE(\"Semana \",WEEKNUM(DiaDoCalendário),\"/Dia \",DiaDoCalendário-DATE(YEAR(DiaDoCalendário),1,0)),CONCATENATE(\"Dia \",DiaDoCalendário-DATE(YEAR(DiaDoCalendário),1,0)))","v":"Dia 127"},{"$f":"IF(WEEKDAY(DiaDoCalendário)=ValorDoInícioDaSemana,CONCATENATE(\"Semana \",WEEKNUM(DiaDoCalendário),\"/Dia \",DiaDoCalendário-DATE(YEAR(DiaDoCalendário),1,0)),CONCATENATE(\"Dia \",DiaDoCalendário-DATE(YEAR(DiaDoCalendário),1,0)))","v":"Dia 128"},{"$f":"IF(WEEKDAY(DiaDoCalendário)=ValorDoInícioDaSemana,CONCATENATE(\"Semana \",WEEKNUM(DiaDoCalendário),\"/Dia \",DiaDoCalendário-DATE(YEAR(DiaDoCalendário),1,0)),CONCATENATE(\"Dia \",DiaDoCalendário-DATE(YEAR(DiaDoCalendário),1,0)))","v":"Dia 129"},{"$f":"IF(WEEKDAY(DiaDoCalendário)=ValorDoInícioDaSemana,CONCATENATE(\"Semana \",WEEKNUM(DiaDoCalendário),\"/Dia \",DiaDoCalendário-DATE(YEAR(DiaDoCalendário),1,0)),CONCATENATE(\"Dia \",DiaDoCalendário-DATE(YEAR(DiaDoCalendário),1,0)))","v":"Dia 130"},{"$f":"IF(WEEKDAY(DiaDoCalendário)=ValorDoInícioDaSemana,CONCATENATE(\"Semana \",WEEKNUM(DiaDoCalendário),\"/Dia \",DiaDoCalendário-DATE(YEAR(DiaDoCalendário),1,0)),CONCATENATE(\"Dia \",DiaDoCalendário-DATE(YEAR(DiaDoCalendário),1,0)))","v":"Dia 131"},{"$f":"IF(WEEKDAY(DiaDoCalendário)=ValorDoInícioDaSemana,CONCATENATE(\"Semana \",WEEKNUM(DiaDoCalendário),\"/Dia \",DiaDoCalendário-DATE(YEAR(DiaDoCalendário),1,0)),CONCATENATE(\"Dia \",DiaDoCalendário-DATE(YEAR(DiaDoCalendário),1,0)))","v":"Dia 132"}]
[]
[null,null,{"$f":"DiasESemanas+DATE(AnoDoCalendário,5,1)-WEEKDAY(DATE(AnoDoCalendário,5,1),(InícioDaSemana=\"SEG\")+1)+15","v":"2018-05-13"},"2018-05-14","2018-05-15","2018-05-16","2018-05-17","2018-05-18","2018-05-19"]
[null,null,{"$f":"IF(WEEKDAY(DiaDoCalendário)=ValorDoInícioDaSemana,CONCATENATE(\"Semana \",WEEKNUM(DiaDoCalendário),\"/Dia \",DiaDoCalendário-DATE(YEAR(DiaDoCalendário),1,0)),CONCATENATE(\"Dia \",DiaDoCalendário-DATE(YEAR(DiaDoCalendário),1,0)))","v":"Semana 20/Dia 133"},{"$f":"IF(WEEKDAY(DiaDoCalendário)=ValorDoInícioDaSemana,CONCATENATE(\"Semana \",WEEKNUM(DiaDoCalendário),\"/Dia \",DiaDoCalendário-DATE(YEAR(DiaDoCalendário),1,0)),CONCATENATE(\"Dia \",DiaDoCalendário-DATE(YEAR(DiaDoCalendário),1,0)))","v":"Dia 134"},{"$f":"IF(WEEKDAY(DiaDoCalendário)=ValorDoInícioDaSemana,CONCATENATE(\"Semana \",WEEKNUM(DiaDoCalendário),\"/Dia \",DiaDoCalendário-DATE(YEAR(DiaDoCalendário),1,0)),CONCATENATE(\"Dia \",DiaDoCalendário-DATE(YEAR(DiaDoCalendário),1,0)))","v":"Dia 135"},{"$f":"IF(WEEKDAY(DiaDoCalendário)=ValorDoInícioDaSemana,CONCATENATE(\"Semana \",WEEKNUM(DiaDoCalendário),\"/Dia \",DiaDoCalendário-DATE(YEAR(DiaDoCalendário),1,0)),CONCATENATE(\"Dia \",DiaDoCalendário-DATE(YEAR(DiaDoCalendário),1,0)))","v":"Dia 136"},{"$f":"IF(WEEKDAY(DiaDoCalendário)=ValorDoInícioDaSemana,CONCATENATE(\"Semana \",WEEKNUM(DiaDoCalendário),\"/Dia \",DiaDoCalendário-DATE(YEAR(DiaDoCalendário),1,0)),CONCATENATE(\"Dia \",DiaDoCalendário-DATE(YEAR(DiaDoCalendário),1,0)))","v":"Dia 137"},{"$f":"IF(WEEKDAY(DiaDoCalendário)=ValorDoInícioDaSemana,CONCATENATE(\"Semana \",WEEKNUM(DiaDoCalendário),\"/Dia \",DiaDoCalendário-DATE(YEAR(DiaDoCalendário),1,0)),CONCATENATE(\"Dia \",DiaDoCalendário-DATE(YEAR(DiaDoCalendário),1,0)))","v":"Dia 138"},{"$f":"IF(WEEKDAY(DiaDoCalendário)=ValorDoInícioDaSemana,CONCATENATE(\"Semana \",WEEKNUM(DiaDoCalendário),\"/Dia \",DiaDoCalendário-DATE(YEAR(DiaDoCalendário),1,0)),CONCATENATE(\"Dia \",DiaDoCalendário-DATE(YEAR(DiaDoCalendário),1,0)))","v":"Dia 139"}]
[]
[null,null,{"$f":"DiasESemanas+DATE(AnoDoCalendário,5,1)-WEEKDAY(DATE(AnoDoCalendário,5,1),(InícioDaSemana=\"SEG\")+1)+22","v":"2018-05-20"},"2018-05-21","2018-05-22","2018-05-23","2018-05-24","2018-05-25","2018-05-26"]
[null,null,{"$f":"IF(WEEKDAY(DiaDoCalendário)=ValorDoInícioDaSemana,CONCATENATE(\"Semana \",WEEKNUM(DiaDoCalendário),\"/Dia \",DiaDoCalendário-DATE(YEAR(DiaDoCalendário),1,0)),CONCATENATE(\"Dia \",DiaDoCalendário-DATE(YEAR(DiaDoCalendário),1,0)))","v":"Semana 21/Dia 140"},{"$f":"IF(WEEKDAY(DiaDoCalendário)=ValorDoInícioDaSemana,CONCATENATE(\"Semana \",WEEKNUM(DiaDoCalendário),\"/Dia \",DiaDoCalendário-DATE(YEAR(DiaDoCalendário),1,0)),CONCATENATE(\"Dia \",DiaDoCalendário-DATE(YEAR(DiaDoCalendário),1,0)))","v":"Dia 141"},{"$f":"IF(WEEKDAY(DiaDoCalendário)=ValorDoInícioDaSemana,CONCATENATE(\"Semana \",WEEKNUM(DiaDoCalendário),\"/Dia \",DiaDoCalendário-DATE(YEAR(DiaDoCalendário),1,0)),CONCATENATE(\"Dia \",DiaDoCalendário-DATE(YEAR(DiaDoCalendário),1,0)))","v":"Dia 142"},{"$f":"IF(WEEKDAY(DiaDoCalendário)=ValorDoInícioDaSemana,CONCATENATE(\"Semana \",WEEKNUM(DiaDoCalendário),\"/Dia \",DiaDoCalendário-DATE(YEAR(DiaDoCalendário),1,0)),CONCATENATE(\"Dia \",DiaDoCalendário-DATE(YEAR(DiaDoCalendário),1,0)))","v":"Dia 143"},{"$f":"IF(WEEKDAY(DiaDoCalendário)=ValorDoInícioDaSemana,CONCATENATE(\"Semana \",WEEKNUM(DiaDoCalendário),\"/Dia \",DiaDoCalendário-DATE(YEAR(DiaDoCalendário),1,0)),CONCATENATE(\"Dia \",DiaDoCalendário-DATE(YEAR(DiaDoCalendário),1,0)))","v":"Dia 144"},{"$f":"IF(WEEKDAY(DiaDoCalendário)=ValorDoInícioDaSemana,CONCATENATE(\"Semana \",WEEKNUM(DiaDoCalendário),\"/Dia \",DiaDoCalendário-DATE(YEAR(DiaDoCalendário),1,0)),CONCATENATE(\"Dia \",DiaDoCalendário-DATE(YEAR(DiaDoCalendário),1,0)))","v":"Dia 145"},{"$f":"IF(WEEKDAY(DiaDoCalendário)=ValorDoInícioDaSemana,CONCATENATE(\"Semana \",WEEKNUM(DiaDoCalendário),\"/Dia \",DiaDoCalendário-DATE(YEAR(DiaDoCalendário),1,0)),CONCATENATE(\"Dia \",DiaDoCalendário-DATE(YEAR(DiaDoCalendário),1,0)))","v":"Dia 146"}]
[]
[null,null,{"$f":"DiasESemanas+DATE(AnoDoCalendário,5,1)-WEEKDAY(DATE(AnoDoCalendário,5,1),(InícioDaSemana=\"SEG\")+1)+29","v":"2018-05-27"},"2018-05-28","2018-05-29","2018-05-30","2018-05-31","2018-06-01","2018-06-02"]
[null,null,{"$f":"IF(WEEKDAY(DiaDoCalendário)=ValorDoInícioDaSemana,CONCATENATE(\"Semana \",WEEKNUM(DiaDoCalendário),\"/Dia \",DiaDoCalendário-DATE(YEAR(DiaDoCalendário),1,0)),CONCATENATE(\"Dia \",DiaDoCalendário-DATE(YEAR(DiaDoCalendário),1,0)))","v":"Semana 22/Dia 147"},{"$f":"IF(WEEKDAY(DiaDoCalendário)=ValorDoInícioDaSemana,CONCATENATE(\"Semana \",WEEKNUM(DiaDoCalendário),\"/Dia \",DiaDoCalendário-DATE(YEAR(DiaDoCalendário),1,0)),CONCATENATE(\"Dia \",DiaDoCalendário-DATE(YEAR(DiaDoCalendário),1,0)))","v":"Dia 148"},{"$f":"IF(WEEKDAY(DiaDoCalendário)=ValorDoInícioDaSemana,CONCATENATE(\"Semana \",WEEKNUM(DiaDoCalendário),\"/Dia \",DiaDoCalendário-DATE(YEAR(DiaDoCalendário),1,0)),CONCATENATE(\"Dia \",DiaDoCalendário-DATE(YEAR(DiaDoCalendário),1,0)))","v":"Dia 149"},{"$f":"IF(WEEKDAY(DiaDoCalendário)=ValorDoInícioDaSemana,CONCATENATE(\"Semana \",WEEKNUM(DiaDoCalendário),\"/Dia \",DiaDoCalendário-DATE(YEAR(DiaDoCalendário),1,0)),CONCATENATE(\"Dia \",DiaDoCalendário-DATE(YEAR(DiaDoCalendário),1,0)))","v":"Dia 150"},{"$f":"IF(WEEKDAY(DiaDoCalendário)=ValorDoInícioDaSemana,CONCATENATE(\"Semana \",WEEKNUM(DiaDoCalendário),\"/Dia \",DiaDoCalendário-DATE(YEAR(DiaDoCalendário),1,0)),CONCATENATE(\"Dia \",DiaDoCalendário-DATE(YEAR(DiaDoCalendário),1,0)))","v":"Dia 151"},{"$f":"IF(WEEKDAY(DiaDoCalendário)=ValorDoInícioDaSemana,CONCATENATE(\"Semana \",WEEKNUM(DiaDoCalendário),\"/Dia \",DiaDoCalendário-DATE(YEAR(DiaDoCalendário),1,0)),CONCATENATE(\"Dia \",DiaDoCalendário-DATE(YEAR(DiaDoCalendário),1,0)))","v":"Dia 152"},{"$f":"IF(WEEKDAY(DiaDoCalendário)=ValorDoInícioDaSemana,CONCATENATE(\"Semana \",WEEKNUM(DiaDoCalendário),\"/Dia \",DiaDoCalendário-DATE(YEAR(DiaDoCalendário),1,0)),CONCATENATE(\"Dia \",DiaDoCalendário-DATE(YEAR(DiaDoCalendário),1,0)))","v":"Dia 153"}]
[{"$nulls":4},"ANOTAÇÕES"]
[]
[null,null,{"$f":"DiasESemanas+DATE(AnoDoCalendário,5,1)-WEEKDAY(DATE(AnoDoCalendário,5,1),(InícioDaSemana=\"SEG\")+1)+36","v":"2018-06-03"},"2018-06-04"]
[null,null,{"$f":"IF(WEEKDAY(DiaDoCalendário)=ValorDoInícioDaSemana,CONCATENATE(\"Semana \",WEEKNUM(DiaDoCalendário),\"/Dia \",DiaDoCalendário-DATE(YEAR(DiaDoCalendário),1,0)),CONCATENATE(\"Dia \",DiaDoCalendário-DATE(YEAR(DiaDoCalendário),1,0)))","v":"Semana 23/Dia 154"},{"$f":"IF(WEEKDAY(DiaDoCalendário)=ValorDoInícioDaSemana,CONCATENATE(\"Semana \",WEEKNUM(DiaDoCalendário),\"/Dia \",DiaDoCalendário-DATE(YEAR(DiaDoCalendário),1,0)),CONCATENATE(\"Dia \",DiaDoCalendário-DATE(YEAR(DiaDoCalendário),1,0)))","v":"Dia 155"}]

{"sheet":"JUN","index":5,"n_rows":20,"n_cols":9,"rows_kept":20,"merged":[[16,2,17,2],[17,4,19,8]]}
[null,"JUN",{"$f":"UPPER(TEXT(InícioDaSemana,\"ddd\"))","v":"DOM"},{"$f":"UPPER(TEXT(D3,\"ddd\"))","v":"SEG"},"TER","QUA","QUI","SEX","SÁB"]
[null,{"$f":"AnoDoCalendário","v":2018}]
[null,null,{"$f":"DiasESemanas+DATE(AnoDoCalendário,6,1)-WEEKDAY(DATE(AnoDoCalendário,6,1),(InícioDaSemana=\"SEG\")+1)+1","v":"2018-05-27"},"2018-05-28","2018-05-29","2018-05-30","2018-05-31","2018-06-01","2018-06-02"]
[null,null,{"$f":"IF(DAY(DiaDoCalendário)=1,CONCATENATE(\"Semana \",WEEKNUM(DiaDoCalendário),\"/Dia \",DiaDoCalendário-DATE(YEAR(DiaDoCalendário),1,0)),CONCATENATE(\"Dia \",DiaDoCalendário-DATE(YEAR(DiaDoCalendário),1,0)))","v":"Dia 147"},{"$f":"IF(DAY(DiaDoCalendário)=1,CONCATENATE(\"Semana \",WEEKNUM(DiaDoCalendário),\"/Dia \",DiaDoCalendário-DATE(YEAR(DiaDoCalendário),1,0)),CONCATENATE(\"Dia \",DiaDoCalendário-DATE(YEAR(DiaDoCalendário),1,0)))","v":"Dia 148"},{"$f":"IF(DAY(DiaDoCalendário)=1,CONCATENATE(\"Semana \",WEEKNUM(DiaDoCalendário),\"/Dia \",DiaDoCalendário-DATE(YEAR(DiaDoCalendário),1,0)),CONCATENATE(\"Dia \",DiaDoCalendário-DATE(YEAR(DiaDoCalendário),1,0)))","v":"Dia 149"},{"$f":"IF(DAY(DiaDoCalendário)=1,CONCATENATE(\"Semana \",WEEKNUM(DiaDoCalendário),\"/Dia \",DiaDoCalendário-DATE(YEAR(DiaDoCalendário),1,0)),CONCATENATE(\"Dia \",DiaDoCalendário-DATE(YEAR(DiaDoCalendário),1,0)))","v":"Dia 150"},{"$f":"IF(DAY(DiaDoCalendário)=1,CONCATENATE(\"Semana \",WEEKNUM(DiaDoCalendário),\"/Dia \",DiaDoCalendário-DATE(YEAR(DiaDoCalendário),1,0)),CONCATENATE(\"Dia \",DiaDoCalendário-DATE(YEAR(DiaDoCalendário),1,0)))","v":"Dia 151"},{"$f":"IF(DAY(DiaDoCalendário)=1,CONCATENATE(\"Semana \",WEEKNUM(DiaDoCalendário),\"/Dia \",DiaDoCalendário-DATE(YEAR(DiaDoCalendário),1,0)),CONCATENATE(\"Dia \",DiaDoCalendário-DATE(YEAR(DiaDoCalendário),1,0)))","v":"Semana 22/Dia 152"},{"$f":"IF(DAY(DiaDoCalendário)=1,CONCATENATE(\"Semana \",WEEKNUM(DiaDoCalendário),\"/Dia \",DiaDoCalendário-DATE(YEAR(DiaDoCalendário),1,0)),CONCATENATE(\"Dia \",DiaDoCalendário-DATE(YEAR(DiaDoCalendário),1,0)))","v":"Dia 153"}]
[]
[null,null,{"$f":"DiasESemanas+DATE(AnoDoCalendário,6,1)-WEEKDAY(DATE(AnoDoCalendário,6,1),(InícioDaSemana=\"SEG\")+1)+8","v":"2018-06-03"},"2018-06-04","2018-06-05","2018-06-06","2018-06-07","2018-06-08","2018-06-09"]
[null,null,{"$f":"IF(WEEKDAY(DiaDoCalendário)=ValorDoInícioDaSemana,CONCATENATE(\"Semana \",WEEKNUM(DiaDoCalendário),\"/Dia \",DiaDoCalendário-DATE(YEAR(DiaDoCalendário),1,0)),CONCATENATE(\"Dia \",DiaDoCalendário-DATE(YEAR(DiaDoCalendário),1,0)))","v":"Semana 23/Dia 154"},{"$f":"IF(WEEKDAY(DiaDoCalendário)=ValorDoInícioDaSemana,CONCATENATE(\"Semana \",WEEKNUM(DiaDoCalendário),\"/Dia \",DiaDoCalendário-DATE(YEAR(DiaDoCalendário),1,0)),CONCATENATE(\"Dia \",DiaDoCalendário-DATE(YEAR(DiaDoCalendário),1,0)))","v":"Dia 155"},{"$f":"IF(WEEKDAY(DiaDoCalendário)=ValorDoInícioDaSemana,CONCATENATE(\"Semana \",WEEKNUM(DiaDoCalendário),\"/Dia \",DiaDoCalendário-DATE(YEAR(DiaDoCalendário),1,0)),CONCATENATE(\"Dia \",DiaDoCalendário-DATE(YEAR(DiaDoCalendário),1,0)))","v":"Dia 156"},{"$f":"IF(WEEKDAY(DiaDoCalendário)=ValorDoInícioDaSemana,CONCATENATE(\"Semana \",WEEKNUM(DiaDoCalendário),\"/Dia \",DiaDoCalendário-DATE(YEAR(DiaDoCalendário),1,0)),CONCATENATE(\"Dia \",DiaDoCalendário-DATE(YEAR(DiaDoCalendário),1,0)))","v":"Dia 157"},{"$f":"IF(WEEKDAY(DiaDoCalendário)=ValorDoInícioDaSemana,CONCATENATE(\"Semana \",WEEKNUM(DiaDoCalendário),\"/Dia \",DiaDoCalendário-DATE(YEAR(DiaDoCalendário),1,0)),CONCATENATE(\"Dia \",DiaDoCalendário-DATE(YEAR(DiaDoCalendário),1,0)))","v":"Dia 158"},{"$f":"IF(WEEKDAY(DiaDoCalendário)=ValorDoInícioDaSemana,CONCATENATE(\"Semana \",WEEKNUM(DiaDoCalendário),\"/Dia \",DiaDoCalendário-DATE(YEAR(DiaDoCalendário),1,0)),CONCATENATE(\"Dia \",DiaDoCalendário-DATE(YEAR(DiaDoCalendário),1,0)))","v":"Dia 159"},{"$f":"IF(WEEKDAY(DiaDoCalendário)=ValorDoInícioDaSemana,CONCATENATE(\"Semana \",WEEKNUM(DiaDoCalendário),\"/Dia \",DiaDoCalendário-DATE(YEAR(DiaDoCalendário),1,0)),CONCATENATE(\"Dia \",DiaDoCalendário-DATE(YEAR(DiaDoCalendário),1,0)))","v":"Dia 160"}]
[]
[null,null,{"$f":"DiasESemanas+DATE(AnoDoCalendário,6,1)-WEEKDAY(DATE(AnoDoCalendário,6,1),(InícioDaSemana=\"SEG\")+1)+15","v":"2018-06-10"},"2018-06-11","2018-06-12","2018-06-13","2018-06-14","2018-06-15","2018-06-16"]
[null,null,{"$f":"IF(WEEKDAY(DiaDoCalendário)=ValorDoInícioDaSemana,CONCATENATE(\"Semana \",WEEKNUM(DiaDoCalendário),\"/Dia \",DiaDoCalendário-DATE(YEAR(DiaDoCalendário),1,0)),CONCATENATE(\"Dia \",DiaDoCalendário-DATE(YEAR(DiaDoCalendário),1,0)))","v":"Semana 24/Dia 161"},{"$f":"IF(WEEKDAY(DiaDoCalendário)=ValorDoInícioDaSemana,CONCATENATE(\"Semana \",WEEKNUM(DiaDoCalendário),\"/Dia \",DiaDoCalendário-DATE(YEAR(DiaDoCalendário),1,0)),CONCATENATE(\"Dia \",DiaDoCalendário-DATE(YEAR(DiaDoCalendário),1,0)))","v":"Dia 162"},{"$f":"IF(WEEKDAY(DiaDoCalendário)=ValorDoInícioDaSemana,CONCATENATE(\"Semana \",WEEKNUM(DiaDoCalendário),\"/Dia \",DiaDoCalendário-DATE(YEAR(DiaDoCalendário),1,0)),CONCATENATE(\"Dia \",DiaDoCalendário-DATE(YEAR(DiaDoCalendário),1,0)))","v":"Dia 163"},{"$f":"IF(WEEKDAY(DiaDoCalendário)=ValorDoInícioDaSemana,CONCATENATE(\"Semana \",WEEKNUM(DiaDoCalendário),\"/Dia \",DiaDoCalendário-DATE(YEAR(DiaDoCalendário),1,0)),CONCATENATE(\"Dia \",DiaDoCalendário-DATE(YEAR(DiaDoCalendário),1,0)))","v":"Dia 164"},{"$f":"IF(WEEKDAY(DiaDoCalendário)=ValorDoInícioDaSemana,CONCATENATE(\"Semana \",WEEKNUM(DiaDoCalendário),\"/Dia \",DiaDoCalendário-DATE(YEAR(DiaDoCalendário),1,0)),CONCATENATE(\"Dia \",DiaDoCalendário-DATE(YEAR(DiaDoCalendário),1,0)))","v":"Dia 165"},{"$f":"IF(WEEKDAY(DiaDoCalendário)=ValorDoInícioDaSemana,CONCATENATE(\"Semana \",WEEKNUM(DiaDoCalendário),\"/Dia \",DiaDoCalendário-DATE(YEAR(DiaDoCalendário),1,0)),CONCATENATE(\"Dia \",DiaDoCalendário-DATE(YEAR(DiaDoCalendário),1,0)))","v":"Dia 166"},{"$f":"IF(WEEKDAY(DiaDoCalendário)=ValorDoInícioDaSemana,CONCATENATE(\"Semana \",WEEKNUM(DiaDoCalendário),\"/Dia \",DiaDoCalendário-DATE(YEAR(DiaDoCalendário),1,0)),CONCATENATE(\"Dia \",DiaDoCalendário-DATE(YEAR(DiaDoCalendário),1,0)))","v":"Dia 167"}]
[]
[null,null,{"$f":"DiasESemanas+DATE(AnoDoCalendário,6,1)-WEEKDAY(DATE(AnoDoCalendário,6,1),(InícioDaSemana=\"SEG\")+1)+22","v":"2018-06-17"},"2018-06-18","2018-06-19","2018-06-20","2018-06-21","2018-06-22","2018-06-23"]
[null,null,{"$f":"IF(WEEKDAY(DiaDoCalendário)=ValorDoInícioDaSemana,CONCATENATE(\"Semana \",WEEKNUM(DiaDoCalendário),\"/Dia \",DiaDoCalendário-DATE(YEAR(DiaDoCalendário),1,0)),CONCATENATE(\"Dia \",DiaDoCalendário-DATE(YEAR(DiaDoCalendário),1,0)))","v":"Semana 25/Dia 168"},{"$f":"IF(WEEKDAY(DiaDoCalendário)=ValorDoInícioDaSemana,CONCATENATE(\"Semana \",WEEKNUM(DiaDoCalendário),\"/Dia \",DiaDoCalendário-DATE(YEAR(DiaDoCalendário),1,0)),CONCATENATE(\"Dia \",DiaDoCalendário-DATE(YEAR(DiaDoCalendário),1,0)))","v":"Dia 169"},{"$f":"IF(WEEKDAY(DiaDoCalendário)=ValorDoInícioDaSemana,CONCATENATE(\"Semana \",WEEKNUM(DiaDoCalendário),\"/Dia \",DiaDoCalendário-DATE(YEAR(DiaDoCalendário),1,0)),CONCATENATE(\"Dia \",DiaDoCalendário-DATE(YEAR(DiaDoCalendário),1,0)))","v":"Dia 170"},{"$f":"IF(WEEKDAY(DiaDoCalendário)=ValorDoInícioDaSemana,CONCATENATE(\"Semana \",WEEKNUM(DiaDoCalendário),\"/Dia \",DiaDoCalendário-DATE(YEAR(DiaDoCalendário),1,0)),CONCATENATE(\"Dia \",DiaDoCalendário-DATE(YEAR(DiaDoCalendário),1,0)))","v":"Dia 171"},{"$f":"IF(WEEKDAY(DiaDoCalendário)=ValorDoInícioDaSemana,CONCATENATE(\"Semana \",WEEKNUM(DiaDoCalendário),\"/Dia \",DiaDoCalendário-DATE(YEAR(DiaDoCalendário),1,0)),CONCATENATE(\"Dia \",DiaDoCalendário-DATE(YEAR(DiaDoCalendário),1,0)))","v":"Dia 172"},{"$f":"IF(WEEKDAY(DiaDoCalendário)=ValorDoInícioDaSemana,CONCATENATE(\"Semana \",WEEKNUM(DiaDoCalendário),\"/Dia \",DiaDoCalendário-DATE(YEAR(DiaDoCalendário),1,0)),CONCATENATE(\"Dia \",DiaDoCalendário-DATE(YEAR(DiaDoCalendário),1,0)))","v":"Dia 173"},{"$f":"IF(WEEKDAY(DiaDoCalendário)=ValorDoInícioDaSemana,CONCATENATE(\"Semana \",WEEKNUM(DiaDoCalendário),\"/Dia \",DiaDoCalendário-DATE(YEAR(DiaDoCalendário),1,0)),CONCATENATE(\"Dia \",DiaDoCalendário-DATE(YEAR(DiaDoCalendário),1,0)))","v":"Dia 174"}]
[]
[null,null,{"$f":"DiasESemanas+DATE(AnoDoCalendário,6,1)-WEEKDAY(DATE(AnoDoCalendário,6,1),(InícioDaSemana=\"SEG\")+1)+29","v":"2018-06-24"},"2018-06-25","2018-06-26","2018-06-27","2018-06-28","2018-06-29","2018-06-30"]
[null,null,{"$f":"IF(WEEKDAY(DiaDoCalendário)=ValorDoInícioDaSemana,CONCATENATE(\"Semana \",WEEKNUM(DiaDoCalendário),\"/Dia \",DiaDoCalendário-DATE(YEAR(DiaDoCalendário),1,0)),CONCATENATE(\"Dia \",DiaDoCalendário-DATE(YEAR(DiaDoCalendário),1,0)))","v":"Semana 26/Dia 175"},{"$f":"IF(WEEKDAY(DiaDoCalendário)=ValorDoInícioDaSemana,CONCATENATE(\"Semana \",WEEKNUM(DiaDoCalendário),\"/Dia \",DiaDoCalendário-DATE(YEAR(DiaDoCalendário),1,0)),CONCATENATE(\"Dia \",DiaDoCalendário-DATE(YEAR(DiaDoCalendário),1,0)))","v":"Dia 176"},{"$f":"IF(WEEKDAY(DiaDoCalendário)=ValorDoInícioDaSemana,CONCATENATE(\"Semana \",WEEKNUM(DiaDoCalendário),\"/Dia \",DiaDoCalendário-DATE(YEAR(DiaDoCalendário),1,0)),CONCATENATE(\"Dia \",DiaDoCalendário-DATE(YEAR(DiaDoCalendário),1,0)))","v":"Dia 177"},{"$f":"IF(WEEKDAY(DiaDoCalendário)=ValorDoInícioDaSemana,CONCATENATE(\"Semana \",WEEKNUM(DiaDoCalendário),\"/Dia \",DiaDoCalendário-DATE(YEAR(DiaDoCalendário),1,0)),CONCATENATE(\"Dia \",DiaDoCalendário-DATE(YEAR(DiaDoCalendário),1,0)))","v":"Dia 178"},{"$f":"IF(WEEKDAY(DiaDoCalendário)=ValorDoInícioDaSemana,CONCATENATE(\"Semana \",WEEKNUM(DiaDoCalendário),\"/Dia \",DiaDoCalendário-DATE(YEAR(DiaDoCalendário),1,0)),CONCATENATE(\"Dia \",DiaDoCalendário-DATE(YEAR(DiaDoCalendário),1,0)))","v":"Dia 179"},{"$f":"IF(WEEKDAY(DiaDoCalendário)=ValorDoInícioDaSemana,CONCATENATE(\"Semana \",WEEKNUM(DiaDoCalendário),\"/Dia \",DiaDoCalendário-DATE(YEAR(DiaDoCalendário),1,0)),CONCATENATE(\"Dia \",DiaDoCalendário-DATE(YEAR(DiaDoCalendário),1,0)))","v":"Dia 180"},{"$f":"IF(WEEKDAY(DiaDoCalendário)=ValorDoInícioDaSemana,CONCATENATE(\"Semana \",WEEKNUM(DiaDoCalendário),\"/Dia \",DiaDoCalendário-DATE(YEAR(DiaDoCalendário),1,0)),CONCATENATE(\"Dia \",DiaDoCalendário-DATE(YEAR(DiaDoCalendário),1,0)))","v":"Dia 181"}]
[{"$nulls":4},"ANOTAÇÕES"]
[]
[null,null,{"$f":"DiasESemanas+DATE(AnoDoCalendário,6,1)-WEEKDAY(DATE(AnoDoCalendário,6,1),(InícioDaSemana=\"SEG\")+1)+36","v":"2018-07-01"},"2018-07-02"]
[null,null,{"$f":"IF(WEEKDAY(DiaDoCalendário)=ValorDoInícioDaSemana,CONCATENATE(\"Semana \",WEEKNUM(DiaDoCalendário),\"/Dia \",DiaDoCalendário-DATE(YEAR(DiaDoCalendário),1,0)),CONCATENATE(\"Dia \",DiaDoCalendário-DATE(YEAR(DiaDoCalendário),1,0)))","v":"Semana 27/Dia 182"},{"$f":"IF(WEEKDAY(DiaDoCalendário)=ValorDoInícioDaSemana,CONCATENATE(\"Semana \",WEEKNUM(DiaDoCalendário),\"/Dia \",DiaDoCalendário-DATE(YEAR(DiaDoCalendário),1,0)),CONCATENATE(\"Dia \",DiaDoCalendário-DATE(YEAR(DiaDoCalendário),1,0)))","v":"Dia 183"}]

{"sheet":"JUL","index":6,"n_rows":20,"n_cols":9,"rows_kept":20,"merged":[[16,2,17,2],[17,4,19,8]]}
[null,"JUL",{"$f":"UPPER(TEXT(InícioDaSemana,\"ddd\"))","v":"DOM"},{"$f":"UPPER(TEXT(D3,\"ddd\"))","v":"SEG"},"TER","QUA","QUI","SEX","SÁB"]
[null,{"$f":"AnoDoCalendário","v":2018}]
[null,null,{"$f":"DiasESemanas+DATE(AnoDoCalendário,7,1)-WEEKDAY(DATE(AnoDoCalendário,7,1),(InícioDaSemana=\"SEG\")+1)+1","v":"2018-07-01"},"2018-07-02","2018-07-03","2018-07-04","2018-07-05","2018-07-06","2018-07-07"]
[null,null,{"$f":"IF(DAY(DiaDoCalendário)=1,CONCATENATE(\"Semana \",WEEKNUM(DiaDoCalendário),\"/Dia \",DiaDoCalendário-DATE(YEAR(DiaDoCalendário),1,0)),CONCATENATE(\"Dia \",DiaDoCalendário-DATE(YEAR(DiaDoCalendário),1,0)))","v":"Semana 27/Dia 182"},{"$f":"IF(DAY(DiaDoCalendário)=1,CONCATENATE(\"Semana \",WEEKNUM(DiaDoCalendário),\"/Dia \",DiaDoCalendário-DATE(YEAR(DiaDoCalendário),1,0)),CONCATENATE(\"Dia \",DiaDoCalendário-DATE(YEAR(DiaDoCalendário),1,0)))","v":"Dia 183"},{"$f":"IF(DAY(DiaDoCalendário)=1,CONCATENATE(\"Semana \",WEEKNUM(DiaDoCalendário),\"/Dia \",DiaDoCalendário-DATE(YEAR(DiaDoCalendário),1,0)),CONCATENATE(\"Dia \",DiaDoCalendário-DATE(YEAR(DiaDoCalendário),1,0)))","v":"Dia 184"},{"$f":"IF(DAY(DiaDoCalendário)=1,CONCATENATE(\"Semana \",WEEKNUM(DiaDoCalendário),\"/Dia \",DiaDoCalendário-DATE(YEAR(DiaDoCalendário),1,0)),CONCATENATE(\"Dia \",DiaDoCalendário-DATE(YEAR(DiaDoCalendário),1,0)))","v":"Dia 185"},{"$f":"IF(DAY(DiaDoCalendário)=1,CONCATENATE(\"Semana \",WEEKNUM(DiaDoCalendário),\"/Dia \",DiaDoCalendário-DATE(YEAR(DiaDoCalendário),1,0)),CONCATENATE(\"Dia \",DiaDoCalendário-DATE(YEAR(DiaDoCalendário),1,0)))","v":"Dia 186"},{"$f":"IF(DAY(DiaDoCalendário)=1,CONCATENATE(\"Semana \",WEEKNUM(DiaDoCalendário),\"/Dia \",DiaDoCalendário-DATE(YEAR(DiaDoCalendário),1,0)),CONCATENATE(\"Dia \",DiaDoCalendário-DATE(YEAR(DiaDoCalendário),1,0)))","v":"Dia 187"},{"$f":"IF(DAY(DiaDoCalendário)=1,CONCATENATE(\"Semana \",WEEKNUM(DiaDoCalendário),\"/Dia \",DiaDoCalendário-DATE(YEAR(DiaDoCalendário),1,0)),CONCATENATE(\"Dia \",DiaDoCalendário-DATE(YEAR(DiaDoCalendário),1,0)))","v":"Dia 188"}]
[]
[null,null,{"$f":"DiasESemanas+DATE(AnoDoCalendário,7,1)-WEEKDAY(DATE(AnoDoCalendário,7,1),(InícioDaSemana=\"SEG\")+1)+8","v":"2018-07-08"},"2018-07-09","2018-07-10","2018-07-11","2018-07-12","2018-07-13","2018-07-14"]
[null,null,{"$f":"IF(WEEKDAY(DiaDoCalendário)=ValorDoInícioDaSemana,CONCATENATE(\"Semana \",WEEKNUM(DiaDoCalendário),\"/Dia \",DiaDoCalendário-DATE(YEAR(DiaDoCalendário),1,0)),CONCATENATE(\"Dia \",DiaDoCalendário-DATE(YEAR(DiaDoCalendário),1,0)))","v":"Semana 28/Dia 189"},{"$f":"IF(WEEKDAY(DiaDoCalendário)=ValorDoInícioDaSemana,CONCATENATE(\"Semana \",WEEKNUM(DiaDoCalendário),\"/Dia \",DiaDoCalendário-DATE(YEAR(DiaDoCalendário),1,0)),CONCATENATE(\"Dia \",DiaDoCalendário-DATE(YEAR(DiaDoCalendário),1,0)))","v":"Dia 190"},{"$f":"IF(WEEKDAY(DiaDoCalendário)=ValorDoInícioDaSemana,CONCATENATE(\"Semana \",WEEKNUM(DiaDoCalendário),\"/Dia \",DiaDoCalendário-DATE(YEAR(DiaDoCalendário),1,0)),CONCATENATE(\"Dia \",DiaDoCalendário-DATE(YEAR(DiaDoCalendário),1,0)))","v":"Dia 191"},{"$f":"IF(WEEKDAY(DiaDoCalendário)=ValorDoInícioDaSemana,CONCATENATE(\"Semana \",WEEKNUM(DiaDoCalendário),\"/Dia \",DiaDoCalendário-DATE(YEAR(DiaDoCalendário),1,0)),CONCATENATE(\"Dia \",DiaDoCalendário-DATE(YEAR(DiaDoCalendário),1,0)))","v":"Dia 192"},{"$f":"IF(WEEKDAY(DiaDoCalendário)=ValorDoInícioDaSemana,CONCATENATE(\"Semana \",WEEKNUM(DiaDoCalendário),\"/Dia \",DiaDoCalendário-DATE(YEAR(DiaDoCalendário),1,0)),CONCATENATE(\"Dia \",DiaDoCalendário-DATE(YEAR(DiaDoCalendário),1,0)))","v":"Dia 193"},{"$f":"IF(WEEKDAY(DiaDoCalendário)=ValorDoInícioDaSemana,CONCATENATE(\"Semana \",WEEKNUM(DiaDoCalendário),\"/Dia \",DiaDoCalendário-DATE(YEAR(DiaDoCalendário),1,0)),CONCATENATE(\"Dia \",DiaDoCalendário-DATE(YEAR(DiaDoCalendário),1,0)))","v":"Dia 194"},{"$f":"IF(WEEKDAY(DiaDoCalendário)=ValorDoInícioDaSemana,CONCATENATE(\"Semana \",WEEKNUM(DiaDoCalendário),\"/Dia \",DiaDoCalendário-DATE(YEAR(DiaDoCalendário),1,0)),CONCATENATE(\"Dia \",DiaDoCalendário-DATE(YEAR(DiaDoCalendário),1,0)))","v":"Dia 195"}]
[]
[null,null,{"$f":"DiasESemanas+DATE(AnoDoCalendário,7,1)-WEEKDAY(DATE(AnoDoCalendário,7,1),(InícioDaSemana=\"SEG\")+1)+15","v":"2018-07-15"},"2018-07-16","2018-07-17","2018-07-18","2018-07-19","2018-07-20","2018-07-21"]
[null,null,{"$f":"IF(WEEKDAY(DiaDoCalendário)=ValorDoInícioDaSemana,CONCATENATE(\"Semana \",WEEKNUM(DiaDoCalendário),\"/Dia \",DiaDoCalendário-DATE(YEAR(DiaDoCalendário),1,0)),CONCATENATE(\"Dia \",DiaDoCalendário-DATE(YEAR(DiaDoCalendário),1,0)))","v":"Semana 29/Dia 196"},{"$f":"IF(WEEKDAY(DiaDoCalendário)=ValorDoInícioDaSemana,CONCATENATE(\"Semana \",WEEKNUM(DiaDoCalendário),\"/Dia \",DiaDoCalendário-DATE(YEAR(DiaDoCalendário),1,0)),CONCATENATE(\"Dia \",DiaDoCalendário-DATE(YEAR(DiaDoCalendário),1,0)))","v":"Dia 197"},{"$f":"IF(WEEKDAY(DiaDoCalendário)=ValorDoInícioDaSemana,CONCATENATE(\"Semana \",WEEKNUM(DiaDoCalendário),\"/Dia \",DiaDoCalendário-DATE(YEAR(DiaDoCalendário),1,0)),CONCATENATE(\"Dia \",DiaDoCalendário-DATE(YEAR(DiaDoCalendário),1,0)))","v":"Dia 198"},{"$f":"IF(WEEKDAY(DiaDoCalendário)=ValorDoInícioDaSemana,CONCATENATE(\"Semana \",WEEKNUM(DiaDoCalendário),\"/Dia \",DiaDoCalendário-DATE(YEAR(DiaDoCalendário),1,0)),CONCATENATE(\"Dia \",DiaDoCalendário-DATE(YEAR(DiaDoCalendário),1,0)))","v":"Dia 199"},{"$f":"IF(WEEKDAY(DiaDoCalendário)=ValorDoInícioDaSemana,CONCATENATE(\"Semana \",WEEKNUM(DiaDoCalendário),\"/Dia \",DiaDoCalendário-DATE(YEAR(DiaDoCalendário),1,0)),CONCATENATE(\"Dia \",DiaDoCalendário-DATE(YEAR(DiaDoCalendário),1,0)))","v":"Dia 200"},{"$f":"IF(WEEKDAY(DiaDoCalendário)=ValorDoInícioDaSemana,CONCATENATE(\"Semana \",WEEKNUM(DiaDoCalendário),\"/Dia \",DiaDoCalendário-DATE(YEAR(DiaDoCalendário),1,0)),CONCATENATE(\"Dia \",DiaDoCalendário-DATE(YEAR(DiaDoCalendário),1,0)))","v":"Dia 201"},{"$f":"IF(WEEKDAY(DiaDoCalendário)=ValorDoInícioDaSemana,CONCATENATE(\"Semana \",WEEKNUM(DiaDoCalendário),\"/Dia \",DiaDoCalendário-DATE(YEAR(DiaDoCalendário),1,0)),CONCATENATE(\"Dia \",DiaDoCalendário-DATE(YEAR(DiaDoCalendário),1,0)))","v":"Dia 202"}]
[]
[null,null,{"$f":"DiasESemanas+DATE(AnoDoCalendário,7,1)-WEEKDAY(DATE(AnoDoCalendário,7,1),(InícioDaSemana=\"SEG\")+1)+22","v":"2018-07-22"},"2018-07-23","2018-07-24","2018-07-25","2018-07-26","2018-07-27","2018-07-28"]
[null,null,{"$f":"IF(WEEKDAY(DiaDoCalendário)=ValorDoInícioDaSemana,CONCATENATE(\"Semana \",WEEKNUM(DiaDoCalendário),\"/Dia \",DiaDoCalendário-DATE(YEAR(DiaDoCalendário),1,0)),CONCATENATE(\"Dia \",DiaDoCalendário-DATE(YEAR(DiaDoCalendário),1,0)))","v":"Semana 30/Dia 203"},{"$f":"IF(WEEKDAY(DiaDoCalendário)=ValorDoInícioDaSemana,CONCATENATE(\"Semana \",WEEKNUM(DiaDoCalendário),\"/Dia \",DiaDoCalendário-DATE(YEAR(DiaDoCalendário),1,0)),CONCATENATE(\"Dia \",DiaDoCalendário-DATE(YEAR(DiaDoCalendário),1,0)))","v":"Dia 204"},{"$f":"IF(WEEKDAY(DiaDoCalendário)=ValorDoInícioDaSemana,CONCATENATE(\"Semana \",WEEKNUM(DiaDoCalendário),\"/Dia \",DiaDoCalendário-DATE(YEAR(DiaDoCalendário),1,0)),CONCATENATE(\"Dia \",DiaDoCalendário-DATE(YEAR(DiaDoCalendário),1,0)))","v":"Dia 205"},{"$f":"IF(WEEKDAY(DiaDoCalendário)=ValorDoInícioDaSemana,CONCATENATE(\"Semana \",WEEKNUM(DiaDoCalendário),\"/Dia \",DiaDoCalendário-DATE(YEAR(DiaDoCalendário),1,0)),CONCATENATE(\"Dia \",DiaDoCalendário-DATE(YEAR(DiaDoCalendário),1,0)))","v":"Dia 206"},{"$f":"IF(WEEKDAY(DiaDoCalendário)=ValorDoInícioDaSemana,CONCATENATE(\"Semana \",WEEKNUM(DiaDoCalendário),\"/Dia \",DiaDoCalendário-DATE(YEAR(DiaDoCalendário),1,0)),CONCATENATE(\"Dia \",DiaDoCalendário-DATE(YEAR(DiaDoCalendário),1,0)))","v":"Dia 207"},{"$f":"IF(WEEKDAY(DiaDoCalendário)=ValorDoInícioDaSemana,CONCATENATE(\"Semana \",WEEKNUM(DiaDoCalendário),\"/Dia \",DiaDoCalendário-DATE(YEAR(DiaDoCalendário),1,0)),CONCATENATE(\"Dia \",DiaDoCalendário-DATE(YEAR(DiaDoCalendário),1,0)))","v":"Dia 208"},{"$f":"IF(WEEKDAY(DiaDoCalendário)=ValorDoInícioDaSemana,CONCATENATE(\"Semana \",WEEKNUM(DiaDoCalendário),\"/Dia \",DiaDoCalendário-DATE(YEAR(DiaDoCalendário),1,0)),CONCATENATE(\"Dia \",DiaDoCalendário-DATE(YEAR(DiaDoCalendário),1,0)))","v":"Dia 209"}]
[]
[null,null,{"$f":"DiasESemanas+DATE(AnoDoCalendário,7,1)-WEEKDAY(DATE(AnoDoCalendário,7,1),(InícioDaSemana=\"SEG\")+1)+29","v":"2018-07-29"},"2018-07-30","2018-07-31","2018-08-01","2018-08-02","2018-08-03","2018-08-04"]
[null,null,{"$f":"IF(WEEKDAY(DiaDoCalendário)=ValorDoInícioDaSemana,CONCATENATE(\"Semana \",WEEKNUM(DiaDoCalendário),\"/Dia \",DiaDoCalendário-DATE(YEAR(DiaDoCalendário),1,0)),CONCATENATE(\"Dia \",DiaDoCalendário-DATE(YEAR(DiaDoCalendário),1,0)))","v":"Semana 31/Dia 210"},{"$f":"IF(WEEKDAY(DiaDoCalendário)=ValorDoInícioDaSemana,CONCATENATE(\"Semana \",WEEKNUM(DiaDoCalendário),\"/Dia \",DiaDoCalendário-DATE(YEAR(DiaDoCalendário),1,0)),CONCATENATE(\"Dia \",DiaDoCalendário-DATE(YEAR(DiaDoCalendário),1,0)))","v":"Dia 211"},{"$f":"IF(WEEKDAY(DiaDoCalendário)=ValorDoInícioDaSemana,CONCATENATE(\"Semana \",WEEKNUM(DiaDoCalendário),\"/Dia \",DiaDoCalendário-DATE(YEAR(DiaDoCalendário),1,0)),CONCATENATE(\"Dia \",DiaDoCalendário-DATE(YEAR(DiaDoCalendário),1,0)))","v":"Dia 212"},{"$f":"IF(WEEKDAY(DiaDoCalendário)=ValorDoInícioDaSemana,CONCATENATE(\"Semana \",WEEKNUM(DiaDoCalendário),\"/Dia \",DiaDoCalendário-DATE(YEAR(DiaDoCalendário),1,0)),CONCATENATE(\"Dia \",DiaDoCalendário-DATE(YEAR(DiaDoCalendário),1,0)))","v":"Dia 213"},{"$f":"IF(WEEKDAY(DiaDoCalendário)=ValorDoInícioDaSemana,CONCATENATE(\"Semana \",WEEKNUM(DiaDoCalendário),\"/Dia \",DiaDoCalendário-DATE(YEAR(DiaDoCalendário),1,0)),CONCATENATE(\"Dia \",DiaDoCalendário-DATE(YEAR(DiaDoCalendário),1,0)))","v":"Dia 214"},{"$f":"IF(WEEKDAY(DiaDoCalendário)=ValorDoInícioDaSemana,CONCATENATE(\"Semana \",WEEKNUM(DiaDoCalendário),\"/Dia \",DiaDoCalendário-DATE(YEAR(DiaDoCalendário),1,0)),CONCATENATE(\"Dia \",DiaDoCalendário-DATE(YEAR(DiaDoCalendário),1,0)))","v":"Dia 215"},{"$f":"IF(WEEKDAY(DiaDoCalendário)=ValorDoInícioDaSemana,CONCATENATE(\"Semana \",WEEKNUM(DiaDoCalendário),\"/Dia \",DiaDoCalendário-DATE(YEAR(DiaDoCalendário),1,0)),CONCATENATE(\"Dia \",DiaDoCalendário-DATE(YEAR(DiaDoCalendário),1,0)))","v":"Dia 216"}]
[{"$nulls":4},"ANOTAÇÕES"]
[]
[null,null,{"$f":"DiasESemanas+DATE(AnoDoCalendário,7,1)-WEEKDAY(DATE(AnoDoCalendário,7,1),(InícioDaSemana=\"SEG\")+1)+36","v":"2018-08-05"},"2018-08-06"]
[null,null,{"$f":"IF(WEEKDAY(DiaDoCalendário)=ValorDoInícioDaSemana,CONCATENATE(\"Semana \",WEEKNUM(DiaDoCalendário),\"/Dia \",DiaDoCalendário-DATE(YEAR(DiaDoCalendário),1,0)),CONCATENATE(\"Dia \",DiaDoCalendário-DATE(YEAR(DiaDoCalendário),1,0)))","v":"Semana 32/Dia 217"},{"$f":"IF(WEEKDAY(DiaDoCalendário)=ValorDoInícioDaSemana,CONCATENATE(\"Semana \",WEEKNUM(DiaDoCalendário),\"/Dia \",DiaDoCalendário-DATE(YEAR(DiaDoCalendário),1,0)),CONCATENATE(\"Dia \",DiaDoCalendário-DATE(YEAR(DiaDoCalendário),1,0)))","v":"Dia 218"}]

{"sheet":"AGO","index":7,"n_rows":20,"n_cols":9,"rows_kept":20,"merged":[[16,2,17,2],[17,4,19,8]]}
[null,"AGO",{"$f":"UPPER(TEXT(InícioDaSemana,\"ddd\"))","v":"DOM"},{"$f":"UPPER(TEXT(D3,\"ddd\"))","v":"SEG"},"TER","QUA","QUI","SEX","SÁB"]
[null,{"$f":"AnoDoCalendário","v":2018}]
[null,null,{"$f":"DiasESemanas+DATE(AnoDoCalendário,8,1)-WEEKDAY(DATE(AnoDoCalendário,8,1),(InícioDaSemana=\"SEG\")+1)+1","v":"2018-07-29"},"2018-07-30","2018-07-31","2018-08-01","2018-08-02","2018-08-03","2018-08-04"]
[null,null,{"$f":"IF(DAY(DiaDoCalendário)=1,CONCATENATE(\"Semana \",WEEKNUM(DiaDoCalendário),\"/Dia \",DiaDoCalendário-DATE(YEAR(DiaDoCalendário),1,0)),CONCATENATE(\"Dia \",DiaDoCalendário-DATE(YEAR(DiaDoCalendário),1,0)))","v":"Dia 210"},{"$f":"IF(DAY(DiaDoCalendário)=1,CONCATENATE(\"Semana \",WEEKNUM(DiaDoCalendário),\"/Dia \",DiaDoCalendário-DATE(YEAR(DiaDoCalendário),1,0)),CONCATENATE(\"Dia \",DiaDoCalendário-DATE(YEAR(DiaDoCalendário),1,0)))","v":"Dia 211"},{"$f":"IF(DAY(DiaDoCalendário)=1,CONCATENATE(\"Semana \",WEEKNUM(DiaDoCalendário),\"/Dia \",DiaDoCalendário-DATE(YEAR(DiaDoCalendário),1,0)),CONCATENATE(\"Dia \",DiaDoCalendário-DATE(YEAR(DiaDoCalendário),1,0)))","v":"Dia 212"},{"$f":"IF(DAY(DiaDoCalendário)=1,CONCATENATE(\"Semana \",WEEKNUM(DiaDoCalendário),\"/Dia \",DiaDoCalendário-DATE(YEAR(DiaDoCalendário),1,0)),CONCATENATE(\"Dia \",DiaDoCalendário-DATE(YEAR(DiaDoCalendário),1,0)))","v":"Semana 31/Dia 213"},{"$f":"IF(DAY(DiaDoCalendário)=1,CONCATENATE(\"Semana \",WEEKNUM(DiaDoCalendário),\"/Dia \",DiaDoCalendário-DATE(YEAR(DiaDoCalendário),1,0)),CONCATENATE(\"Dia \",DiaDoCalendário-DATE(YEAR(DiaDoCalendário),1,0)))","v":"Dia 214"},{"$f":"IF(DAY(DiaDoCalendário)=1,CONCATENATE(\"Semana \",WEEKNUM(DiaDoCalendário),\"/Dia \",DiaDoCalendário-DATE(YEAR(DiaDoCalendário),1,0)),CONCATENATE(\"Dia \",DiaDoCalendário-DATE(YEAR(DiaDoCalendário),1,0)))","v":"Dia 215"},{"$f":"IF(DAY(DiaDoCalendário)=1,CONCATENATE(\"Semana \",WEEKNUM(DiaDoCalendário),\"/Dia \",DiaDoCalendário-DATE(YEAR(DiaDoCalendário),1,0)),CONCATENATE(\"Dia \",DiaDoCalendário-DATE(YEAR(DiaDoCalendário),1,0)))","v":"Dia 216"}]
[]
[null,null,{"$f":"DiasESemanas+DATE(AnoDoCalendário,8,1)-WEEKDAY(DATE(AnoDoCalendário,8,1),(InícioDaSemana=\"SEG\")+1)+8","v":"2018-08-05"},"2018-08-06","2018-08-07","2018-08-08","2018-08-09","2018-08-10","2018-08-11"]
[null,null,{"$f":"IF(WEEKDAY(DiaDoCalendário)=ValorDoInícioDaSemana,CONCATENATE(\"Semana \",WEEKNUM(DiaDoCalendário),\"/Dia \",DiaDoCalendário-DATE(YEAR(DiaDoCalendário),1,0)),CONCATENATE(\"Dia \",DiaDoCalendário-DATE(YEAR(DiaDoCalendário),1,0)))","v":"Semana 32/Dia 217"},{"$f":"IF(WEEKDAY(DiaDoCalendário)=ValorDoInícioDaSemana,CONCATENATE(\"Semana \",WEEKNUM(DiaDoCalendário),\"/Dia \",DiaDoCalendário-DATE(YEAR(DiaDoCalendário),1,0)),CONCATENATE(\"Dia \",DiaDoCalendário-DATE(YEAR(DiaDoCalendário),1,0)))","v":"Dia 218"},{"$f":"IF(WEEKDAY(DiaDoCalendário)=ValorDoInícioDaSemana,CONCATENATE(\"Semana \",WEEKNUM(DiaDoCalendário),\"/Dia \",DiaDoCalendário-DATE(YEAR(DiaDoCalendário),1,0)),CONCATENATE(\"Dia \",DiaDoCalendário-DATE(YEAR(DiaDoCalendário),1,0)))","v":"Dia 219"},{"$f":"IF(WEEKDAY(DiaDoCalendário)=ValorDoInícioDaSemana,CONCATENATE(\"Semana \",WEEKNUM(DiaDoCalendário),\"/Dia \",DiaDoCalendário-DATE(YEAR(DiaDoCalendário),1,0)),CONCATENATE(\"Dia \",DiaDoCalendário-DATE(YEAR(DiaDoCalendário),1,0)))","v":"Dia 220"},{"$f":"IF(WEEKDAY(DiaDoCalendário)=ValorDoInícioDaSemana,CONCATENATE(\"Semana \",WEEKNUM(DiaDoCalendário),\"/Dia \",DiaDoCalendário-DATE(YEAR(DiaDoCalendário),1,0)),CONCATENATE(\"Dia \",DiaDoCalendário-DATE(YEAR(DiaDoCalendário),1,0)))","v":"Dia 221"},{"$f":"IF(WEEKDAY(DiaDoCalendário)=ValorDoInícioDaSemana,CONCATENATE(\"Semana \",WEEKNUM(DiaDoCalendário),\"/Dia \",DiaDoCalendário-DATE(YEAR(DiaDoCalendário),1,0)),CONCATENATE(\"Dia \",DiaDoCalendário-DATE(YEAR(DiaDoCalendário),1,0)))","v":"Dia 222"},{"$f":"IF(WEEKDAY(DiaDoCalendário)=ValorDoInícioDaSemana,CONCATENATE(\"Semana \",WEEKNUM(DiaDoCalendário),\"/Dia \",DiaDoCalendário-DATE(YEAR(DiaDoCalendário),1,0)),CONCATENATE(\"Dia \",DiaDoCalendário-DATE(YEAR(DiaDoCalendário),1,0)))","v":"Dia 223"}]
[]
[null,null,{"$f":"DiasESemanas+DATE(AnoDoCalendário,8,1)-WEEKDAY(DATE(AnoDoCalendário,8,1),(InícioDaSemana=\"SEG\")+1)+15","v":"2018-08-12"},"2018-08-13","2018-08-14","2018-08-15","2018-08-16","2018-08-17","2018-08-18"]
[null,null,{"$f":"IF(WEEKDAY(DiaDoCalendário)=ValorDoInícioDaSemana,CONCATENATE(\"Semana \",WEEKNUM(DiaDoCalendário),\"/Dia \",DiaDoCalendário-DATE(YEAR(DiaDoCalendário),1,0)),CONCATENATE(\"Dia \",DiaDoCalendário-DATE(YEAR(DiaDoCalendário),1,0)))","v":"Semana 33/Dia 224"},{"$f":"IF(WEEKDAY(DiaDoCalendário)=ValorDoInícioDaSemana,CONCATENATE(\"Semana \",WEEKNUM(DiaDoCalendário),\"/Dia \",DiaDoCalendário-DATE(YEAR(DiaDoCalendário),1,0)),CONCATENATE(\"Dia \",DiaDoCalendário-DATE(YEAR(DiaDoCalendário),1,0)))","v":"Dia 225"},{"$f":"IF(WEEKDAY(DiaDoCalendário)=ValorDoInícioDaSemana,CONCATENATE(\"Semana \",WEEKNUM(DiaDoCalendário),\"/Dia \",DiaDoCalendário-DATE(YEAR(DiaDoCalendário),1,0)),CONCATENATE(\"Dia \",DiaDoCalendário-DATE(YEAR(DiaDoCalendário),1,0)))","v":"Dia 226"},{"$f":"IF(WEEKDAY(DiaDoCalendário)=ValorDoInícioDaSemana,CONCATENATE(\"Semana \",WEEKNUM(DiaDoCalendário),\"/Dia \",DiaDoCalendário-DATE(YEAR(DiaDoCalendário),1,0)),CONCATENATE(\"Dia \",DiaDoCalendário-DATE(YEAR(DiaDoCalendário),1,0)))","v":"Dia 227"},{"$f":"IF(WEEKDAY(DiaDoCalendário)=ValorDoInícioDaSemana,CONCATENATE(\"Semana \",WEEKNUM(DiaDoCalendário),\"/Dia \",DiaDoCalendário-DATE(YEAR(DiaDoCalendário),1,0)),CONCATENATE(\"Dia \",DiaDoCalendário-DATE(YEAR(DiaDoCalendário),1,0)))","v":"Dia 228"},{"$f":"IF(WEEKDAY(DiaDoCalendário)=ValorDoInícioDaSemana,CONCATENATE(\"Semana \",WEEKNUM(DiaDoCalendário),\"/Dia \",DiaDoCalendário-DATE(YEAR(DiaDoCalendário),1,0)),CONCATENATE(\"Dia \",DiaDoCalendário-DATE(YEAR(DiaDoCalendário),1,0)))","v":"Dia 229"},{"$f":"IF(WEEKDAY(DiaDoCalendário)=ValorDoInícioDaSemana,CONCATENATE(\"Semana \",WEEKNUM(DiaDoCalendário),\"/Dia \",DiaDoCalendário-DATE(YEAR(DiaDoCalendário),1,0)),CONCATENATE(\"Dia \",DiaDoCalendário-DATE(YEAR(DiaDoCalendário),1,0)))","v":"Dia 230"}]
[]
[null,null,{"$f":"DiasESemanas+DATE(AnoDoCalendário,8,1)-WEEKDAY(DATE(AnoDoCalendário,8,1),(InícioDaSemana=\"SEG\")+1)+22","v":"2018-08-19"},"2018-08-20","2018-08-21","2018-08-22","2018-08-23","2018-08-24","2018-08-25"]
[null,null,{"$f":"IF(WEEKDAY(DiaDoCalendário)=ValorDoInícioDaSemana,CONCATENATE(\"Semana \",WEEKNUM(DiaDoCalendário),\"/Dia \",DiaDoCalendário-DATE(YEAR(DiaDoCalendário),1,0)),CONCATENATE(\"Dia \",DiaDoCalendário-DATE(YEAR(DiaDoCalendário),1,0)))","v":"Semana 34/Dia 231"},{"$f":"IF(WEEKDAY(DiaDoCalendário)=ValorDoInícioDaSemana,CONCATENATE(\"Semana \",WEEKNUM(DiaDoCalendário),\"/Dia \",DiaDoCalendário-DATE(YEAR(DiaDoCalendário),1,0)),CONCATENATE(\"Dia \",DiaDoCalendário-DATE(YEAR(DiaDoCalendário),1,0)))","v":"Dia 232"},{"$f":"IF(WEEKDAY(DiaDoCalendário)=ValorDoInícioDaSemana,CONCATENATE(\"Semana \",WEEKNUM(DiaDoCalendário),\"/Dia \",DiaDoCalendário-DATE(YEAR(DiaDoCalendário),1,0)),CONCATENATE(\"Dia \",DiaDoCalendário-DATE(YEAR(DiaDoCalendário),1,0)))","v":"Dia 233"},{"$f":"IF(WEEKDAY(DiaDoCalendário)=ValorDoInícioDaSemana,CONCATENATE(\"Semana \",WEEKNUM(DiaDoCalendário),\"/Dia \",DiaDoCalendário-DATE(YEAR(DiaDoCalendário),1,0)),CONCATENATE(\"Dia \",DiaDoCalendário-DATE(YEAR(DiaDoCalendário),1,0)))","v":"Dia 234"},{"$f":"IF(WEEKDAY(DiaDoCalendário)=ValorDoInícioDaSemana,CONCATENATE(\"Semana \",WEEKNUM(DiaDoCalendário),\"/Dia \",DiaDoCalendário-DATE(YEAR(DiaDoCalendário),1,0)),CONCATENATE(\"Dia \",DiaDoCalendário-DATE(YEAR(DiaDoCalendário),1,0)))","v":"Dia 235"},{"$f":"IF(WEEKDAY(DiaDoCalendário)=ValorDoInícioDaSemana,CONCATENATE(\"Semana \",WEEKNUM(DiaDoCalendário),\"/Dia \",DiaDoCalendário-DATE(YEAR(DiaDoCalendário),1,0)),CONCATENATE(\"Dia \",DiaDoCalendário-DATE(YEAR(DiaDoCalendário),1,0)))","v":"Dia 236"},{"$f":"IF(WEEKDAY(DiaDoCalendário)=ValorDoInícioDaSemana,CONCATENATE(\"Semana \",WEEKNUM(DiaDoCalendário),\"/Dia \",DiaDoCalendário-DATE(YEAR(DiaDoCalendário),1,0)),CONCATENATE(\"Dia \",DiaDoCalendário-DATE(YEAR(DiaDoCalendário),1,0)))","v":"Dia 237"}]
[]
[null,null,{"$f":"DiasESemanas+DATE(AnoDoCalendário,8,1)-WEEKDAY(DATE(AnoDoCalendário,8,1),(InícioDaSemana=\"SEG\")+1)+29","v":"2018-08-26"},"2018-08-27","2018-08-28","2018-08-29","2018-08-30","2018-08-31","2018-09-01"]
[null,null,{"$f":"IF(WEEKDAY(DiaDoCalendário)=ValorDoInícioDaSemana,CONCATENATE(\"Semana \",WEEKNUM(DiaDoCalendário),\"/Dia \",DiaDoCalendário-DATE(YEAR(DiaDoCalendário),1,0)),CONCATENATE(\"Dia \",DiaDoCalendário-DATE(YEAR(DiaDoCalendário),1,0)))","v":"Semana 35/Dia 238"},{"$f":"IF(WEEKDAY(DiaDoCalendário)=ValorDoInícioDaSemana,CONCATENATE(\"Semana \",WEEKNUM(DiaDoCalendário),\"/Dia \",DiaDoCalendário-DATE(YEAR(DiaDoCalendário),1,0)),CONCATENATE(\"Dia \",DiaDoCalendário-DATE(YEAR(DiaDoCalendário),1,0)))","v":"Dia 239"},{"$f":"IF(WEEKDAY(DiaDoCalendário)=ValorDoInícioDaSemana,CONCATENATE(\"Semana \",WEEKNUM(DiaDoCalendário),\"/Dia \",DiaDoCalendário-DATE(YEAR(DiaDoCalendário),1,0)),CONCATENATE(\"Dia \",DiaDoCalendário-DATE(YEAR(DiaDoCalendário),1,0)))","v":"Dia 240"},{"$f":"IF(WEEKDAY(DiaDoCalendário)=ValorDoInícioDaSemana,CONCATENATE(\"Semana \",WEEKNUM(DiaDoCalendário),\"/Dia \",DiaDoCalendário-DATE(YEAR(DiaDoCalendário),1,0)),CONCATENATE(\"Dia \",DiaDoCalendário-DATE(YEAR(DiaDoCalendário),1,0)))","v":"Dia 241"},{"$f":"IF(WEEKDAY(DiaDoCalendário)=ValorDoInícioDaSemana,CONCATENATE(\"Semana \",WEEKNUM(DiaDoCalendário),\"/Dia \",DiaDoCalendário-DATE(YEAR(DiaDoCalendário),1,0)),CONCATENATE(\"Dia \",DiaDoCalendário-DATE(YEAR(DiaDoCalendário),1,0)))","v":"Dia 242"},{"$f":"IF(WEEKDAY(DiaDoCalendário)=ValorDoInícioDaSemana,CONCATENATE(\"Semana \",WEEKNUM(DiaDoCalendário),\"/Dia \",DiaDoCalendário-DATE(YEAR(DiaDoCalendário),1,0)),CONCATENATE(\"Dia \",DiaDoCalendário-DATE(YEAR(DiaDoCalendário),1,0)))","v":"Dia 243"},{"$f":"IF(WEEKDAY(DiaDoCalendário)=ValorDoInícioDaSemana,CONCATENATE(\"Semana \",WEEKNUM(DiaDoCalendário),\"/Dia \",DiaDoCalendário-DATE(YEAR(DiaDoCalendário),1,0)),CONCATENATE(\"Dia \",DiaDoCalendário-DATE(YEAR(DiaDoCalendário),1,0)))","v":"Dia 244"}]
[{"$nulls":4},"ANOTAÇÕES"]
[]
[null,null,{"$f":"DiasESemanas+DATE(AnoDoCalendário,8,1)-WEEKDAY(DATE(AnoDoCalendário,8,1),(InícioDaSemana=\"SEG\")+1)+36","v":"2018-09-02"},"2018-09-03"]
[null,null,{"$f":"IF(WEEKDAY(DiaDoCalendário)=ValorDoInícioDaSemana,CONCATENATE(\"Semana \",WEEKNUM(DiaDoCalendário),\"/Dia \",DiaDoCalendário-DATE(YEAR(DiaDoCalendário),1,0)),CONCATENATE(\"Dia \",DiaDoCalendário-DATE(YEAR(DiaDoCalendário),1,0)))","v":"Semana 36/Dia 245"},{"$f":"IF(WEEKDAY(DiaDoCalendário)=ValorDoInícioDaSemana,CONCATENATE(\"Semana \",WEEKNUM(DiaDoCalendário),\"/Dia \",DiaDoCalendário-DATE(YEAR(DiaDoCalendário),1,0)),CONCATENATE(\"Dia \",DiaDoCalendário-DATE(YEAR(DiaDoCalendário),1,0)))","v":"Dia 246"}]

{"sheet":"SET","index":8,"n_rows":20,"n_cols":9,"rows_kept":20,"merged":[[16,2,17,2],[17,4,19,8]]}
[null,"SET",{"$f":"UPPER(TEXT(InícioDaSemana,\"ddd\"))","v":"DOM"},{"$f":"UPPER(TEXT(D3,\"ddd\"))","v":"SEG"},"TER","QUA","QUI","SEX","SÁB"]
[null,{"$f":"AnoDoCalendário","v":2018}]
[null,null,{"$f":"DiasESemanas+DATE(AnoDoCalendário,9,1)-WEEKDAY(DATE(AnoDoCalendário,9,1),(InícioDaSemana=\"SEG\")+1)+1","v":"2018-08-26"},"2018-08-27","2018-08-28","2018-08-29","2018-08-30","2018-08-31","2018-09-01"]
[null,null,{"$f":"IF(DAY(DiaDoCalendário)=1,CONCATENATE(\"Semana \",WEEKNUM(DiaDoCalendário),\"/Dia \",DiaDoCalendário-DATE(YEAR(DiaDoCalendário),1,0)),CONCATENATE(\"Dia \",DiaDoCalendário-DATE(YEAR(DiaDoCalendário),1,0)))","v":"Dia 238"},{"$f":"IF(DAY(DiaDoCalendário)=1,CONCATENATE(\"Semana \",WEEKNUM(DiaDoCalendário),\"/Dia \",DiaDoCalendário-DATE(YEAR(DiaDoCalendário),1,0)),CONCATENATE(\"Dia \",DiaDoCalendário-DATE(YEAR(DiaDoCalendário),1,0)))","v":"Dia 239"},{"$f":"IF(DAY(DiaDoCalendário)=1,CONCATENATE(\"Semana \",WEEKNUM(DiaDoCalendário),\"/Dia \",DiaDoCalendário-DATE(YEAR(DiaDoCalendário),1,0)),CONCATENATE(\"Dia \",DiaDoCalendário-DATE(YEAR(DiaDoCalendário),1,0)))","v":"Dia 240"},{"$f":"IF(DAY(DiaDoCalendário)=1,CONCATENATE(\"Semana \",WEEKNUM(DiaDoCalendário),\"/Dia \",DiaDoCalendário-DATE(YEAR(DiaDoCalendário),1,0)),CONCATENATE(\"Dia \",DiaDoCalendário-DATE(YEAR(DiaDoCalendário),1,0)))","v":"Dia 241"},{"$f":"IF(DAY(DiaDoCalendário)=1,CONCATENATE(\"Semana \",WEEKNUM(DiaDoCalendário),\"/Dia \",DiaDoCalendário-DATE(YEAR(DiaDoCalendário),1,0)),CONCATENATE(\"Dia \",DiaDoCalendário-DATE(YEAR(DiaDoCalendário),1,0)))","v":"Dia 242"},{"$f":"IF(DAY(DiaDoCalendário)=1,CONCATENATE(\"Semana \",WEEKNUM(DiaDoCalendário),\"/Dia \",DiaDoCalendário-DATE(YEAR(DiaDoCalendário),1,0)),CONCATENATE(\"Dia \",DiaDoCalendário-DATE(YEAR(DiaDoCalendário),1,0)))","v":"Dia 243"},{"$f":"IF(DAY(DiaDoCalendário)=1,CONCATENATE(\"Semana \",WEEKNUM(DiaDoCalendário),\"/Dia \",DiaDoCalendário-DATE(YEAR(DiaDoCalendário),1,0)),CONCATENATE(\"Dia \",DiaDoCalendário-DATE(YEAR(DiaDoCalendário),1,0)))","v":"Semana 35/Dia 244"}]
[]
[null,null,{"$f":"DiasESemanas+DATE(AnoDoCalendário,9,1)-WEEKDAY(DATE(AnoDoCalendário,9,1),(InícioDaSemana=\"SEG\")+1)+8","v":"2018-09-02"},"2018-09-03","2018-09-04","2018-09-05","2018-09-06","2018-09-07","2018-09-08"]
[null,null,{"$f":"IF(WEEKDAY(DiaDoCalendário)=ValorDoInícioDaSemana,CONCATENATE(\"Semana \",WEEKNUM(DiaDoCalendário),\"/Dia \",DiaDoCalendário-DATE(YEAR(DiaDoCalendário),1,0)),CONCATENATE(\"Dia \",DiaDoCalendário-DATE(YEAR(DiaDoCalendário),1,0)))","v":"Semana 36/Dia 245"},{"$f":"IF(WEEKDAY(DiaDoCalendário)=ValorDoInícioDaSemana,CONCATENATE(\"Semana \",WEEKNUM(DiaDoCalendário),\"/Dia \",DiaDoCalendário-DATE(YEAR(DiaDoCalendário),1,0)),CONCATENATE(\"Dia \",DiaDoCalendário-DATE(YEAR(DiaDoCalendário),1,0)))","v":"Dia 246"},{"$f":"IF(WEEKDAY(DiaDoCalendário)=ValorDoInícioDaSemana,CONCATENATE(\"Semana \",WEEKNUM(DiaDoCalendário),\"/Dia \",DiaDoCalendário-DATE(YEAR(DiaDoCalendário),1,0)),CONCATENATE(\"Dia \",DiaDoCalendário-DATE(YEAR(DiaDoCalendário),1,0)))","v":"Dia 247"},{"$f":"IF(WEEKDAY(DiaDoCalendário)=ValorDoInícioDaSemana,CONCATENATE(\"Semana \",WEEKNUM(DiaDoCalendário),\"/Dia \",DiaDoCalendário-DATE(YEAR(DiaDoCalendário),1,0)),CONCATENATE(\"Dia \",DiaDoCalendário-DATE(YEAR(DiaDoCalendário),1,0)))","v":"Dia 248"},{"$f":"IF(WEEKDAY(DiaDoCalendário)=ValorDoInícioDaSemana,CONCATENATE(\"Semana \",WEEKNUM(DiaDoCalendário),\"/Dia \",DiaDoCalendário-DATE(YEAR(DiaDoCalendário),1,0)),CONCATENATE(\"Dia \",DiaDoCalendário-DATE(YEAR(DiaDoCalendário),1,0)))","v":"Dia 249"},{"$f":"IF(WEEKDAY(DiaDoCalendário)=ValorDoInícioDaSemana,CONCATENATE(\"Semana \",WEEKNUM(DiaDoCalendário),\"/Dia \",DiaDoCalendário-DATE(YEAR(DiaDoCalendário),1,0)),CONCATENATE(\"Dia \",DiaDoCalendário-DATE(YEAR(DiaDoCalendário),1,0)))","v":"Dia 250"},{"$f":"IF(WEEKDAY(DiaDoCalendário)=ValorDoInícioDaSemana,CONCATENATE(\"Semana \",WEEKNUM(DiaDoCalendário),\"/Dia \",DiaDoCalendário-DATE(YEAR(DiaDoCalendário),1,0)),CONCATENATE(\"Dia \",DiaDoCalendário-DATE(YEAR(DiaDoCalendário),1,0)))","v":"Dia 251"}]
[]
[null,null,{"$f":"DiasESemanas+DATE(AnoDoCalendário,9,1)-WEEKDAY(DATE(AnoDoCalendário,9,1),(InícioDaSemana=\"SEG\")+1)+15","v":"2018-09-09"},"2018-09-10","2018-09-11","2018-09-12","2018-09-13","2018-09-14","2018-09-15"]
[null,null,{"$f":"IF(WEEKDAY(DiaDoCalendário)=ValorDoInícioDaSemana,CONCATENATE(\"Semana \",WEEKNUM(DiaDoCalendário),\"/Dia \",DiaDoCalendário-DATE(YEAR(DiaDoCalendário),1,0)),CONCATENATE(\"Dia \",DiaDoCalendário-DATE(YEAR(DiaDoCalendário),1,0)))","v":"Semana 37/Dia 252"},{"$f":"IF(WEEKDAY(DiaDoCalendário)=ValorDoInícioDaSemana,CONCATENATE(\"Semana \",WEEKNUM(DiaDoCalendário),\"/Dia \",DiaDoCalendário-DATE(YEAR(DiaDoCalendário),1,0)),CONCATENATE(\"Dia \",DiaDoCalendário-DATE(YEAR(DiaDoCalendário),1,0)))","v":"Dia 253"},{"$f":"IF(WEEKDAY(DiaDoCalendário)=ValorDoInícioDaSemana,CONCATENATE(\"Semana \",WEEKNUM(DiaDoCalendário),\"/Dia \",DiaDoCalendário-DATE(YEAR(DiaDoCalendário),1,0)),CONCATENATE(\"Dia \",DiaDoCalendário-DATE(YEAR(DiaDoCalendário),1,0)))","v":"Dia 254"},{"$f":"IF(WEEKDAY(DiaDoCalendário)=ValorDoInícioDaSemana,CONCATENATE(\"Semana \",WEEKNUM(DiaDoCalendário),\"/Dia \",DiaDoCalendário-DATE(YEAR(DiaDoCalendário),1,0)),CONCATENATE(\"Dia \",DiaDoCalendário-DATE(YEAR(DiaDoCalendário),1,0)))","v":"Dia 255"},{"$f":"IF(WEEKDAY(DiaDoCalendário)=ValorDoInícioDaSemana,CONCATENATE(\"Semana \",WEEKNUM(DiaDoCalendário),\"/Dia \",DiaDoCalendário-DATE(YEAR(DiaDoCalendário),1,0)),CONCATENATE(\"Dia \",DiaDoCalendário-DATE(YEAR(DiaDoCalendário),1,0)))","v":"Dia 256"},{"$f":"IF(WEEKDAY(DiaDoCalendário)=ValorDoInícioDaSemana,CONCATENATE(\"Semana \",WEEKNUM(DiaDoCalendário),\"/Dia \",DiaDoCalendário-DATE(YEAR(DiaDoCalendário),1,0)),CONCATENATE(\"Dia \",DiaDoCalendário-DATE(YEAR(DiaDoCalendário),1,0)))","v":"Dia 257"},{"$f":"IF(WEEKDAY(DiaDoCalendário)=ValorDoInícioDaSemana,CONCATENATE(\"Semana \",WEEKNUM(DiaDoCalendário),\"/Dia \",DiaDoCalendário-DATE(YEAR(DiaDoCalendário),1,0)),CONCATENATE(\"Dia \",DiaDoCalendário-DATE(YEAR(DiaDoCalendário),1,0)))","v":"Dia 258"}]
[]
[null,null,{"$f":"DiasESemanas+DATE(AnoDoCalendário,9,1)-WEEKDAY(DATE(AnoDoCalendário,9,1),(InícioDaSemana=\"SEG\")+1)+22","v":"2018-09-16"},"2018-09-17","2018-09-18","2018-09-19","2018-09-20","2018-09-21","2018-09-22"]
[null,null,{"$f":"IF(WEEKDAY(DiaDoCalendário)=ValorDoInícioDaSemana,CONCATENATE(\"Semana \",WEEKNUM(DiaDoCalendário),\"/Dia \",DiaDoCalendário-DATE(YEAR(DiaDoCalendário),1,0)),CONCATENATE(\"Dia \",DiaDoCalendário-DATE(YEAR(DiaDoCalendário),1,0)))","v":"Semana 38/Dia 259"},{"$f":"IF(WEEKDAY(DiaDoCalendário)=ValorDoInícioDaSemana,CONCATENATE(\"Semana \",WEEKNUM(DiaDoCalendário),\"/Dia \",DiaDoCalendário-DATE(YEAR(DiaDoCalendário),1,0)),CONCATENATE(\"Dia \",DiaDoCalendário-DATE(YEAR(DiaDoCalendário),1,0)))","v":"Dia 260"},{"$f":"IF(WEEKDAY(DiaDoCalendário)=ValorDoInícioDaSemana,CONCATENATE(\"Semana \",WEEKNUM(DiaDoCalendário),\"/Dia \",DiaDoCalendário-DATE(YEAR(DiaDoCalendário),1,0)),CONCATENATE(\"Dia \",DiaDoCalendário-DATE(YEAR(DiaDoCalendário),1,0)))","v":"Dia 261"},{"$f":"IF(WEEKDAY(DiaDoCalendário)=ValorDoInícioDaSemana,CONCATENATE(\"Semana \",WEEKNUM(DiaDoCalendário),\"/Dia \",DiaDoCalendário-DATE(YEAR(DiaDoCalendário),1,0)),CONCATENATE(\"Dia \",DiaDoCalendário-DATE(YEAR(DiaDoCalendário),1,0)))","v":"Dia 262"},{"$f":"IF(WEEKDAY(DiaDoCalendário)=ValorDoInícioDaSemana,CONCATENATE(\"Semana \",WEEKNUM(DiaDoCalendário),\"/Dia \",DiaDoCalendário-DATE(YEAR(DiaDoCalendário),1,0)),CONCATENATE(\"Dia \",DiaDoCalendário-DATE(YEAR(DiaDoCalendário),1,0)))","v":"Dia 263"},{"$f":"IF(WEEKDAY(DiaDoCalendário)=ValorDoInícioDaSemana,CONCATENATE(\"Semana \",WEEKNUM(DiaDoCalendário),\"/Dia \",DiaDoCalendário-DATE(YEAR(DiaDoCalendário),1,0)),CONCATENATE(\"Dia \",DiaDoCalendário-DATE(YEAR(DiaDoCalendário),1,0)))","v":"Dia 264"},{"$f":"IF(WEEKDAY(DiaDoCalendário)=ValorDoInícioDaSemana,CONCATENATE(\"Semana \",WEEKNUM(DiaDoCalendário),\"/Dia \",DiaDoCalendário-DATE(YEAR(DiaDoCalendário),1,0)),CONCATENATE(\"Dia \",DiaDoCalendário-DATE(YEAR(DiaDoCalendário),1,0)))","v":"Dia 265"}]
[]
[null,null,{"$f":"DiasESemanas+DATE(AnoDoCalendário,9,1)-WEEKDAY(DATE(AnoDoCalendário,9,1),(InícioDaSemana=\"SEG\")+1)+29","v":"2018-09-23"},"2018-09-24","2018-09-25","2018-09-26","2018-09-27","2018-09-28","2018-09-29"]
[null,null,{"$f":"IF(WEEKDAY(DiaDoCalendário)=ValorDoInícioDaSemana,CONCATENATE(\"Semana \",WEEKNUM(DiaDoCalendário),\"/Dia \",DiaDoCalendário-DATE(YEAR(DiaDoCalendário),1,0)),CONCATENATE(\"Dia \",DiaDoCalendário-DATE(YEAR(DiaDoCalendário),1,0)))","v":"Semana 39/Dia 266"},{"$f":"IF(WEEKDAY(DiaDoCalendário)=ValorDoInícioDaSemana,CONCATENATE(\"Semana \",WEEKNUM(DiaDoCalendário),\"/Dia \",DiaDoCalendário-DATE(YEAR(DiaDoCalendário),1,0)),CONCATENATE(\"Dia \",DiaDoCalendário-DATE(YEAR(DiaDoCalendário),1,0)))","v":"Dia 267"},{"$f":"IF(WEEKDAY(DiaDoCalendário)=ValorDoInícioDaSemana,CONCATENATE(\"Semana \",WEEKNUM(DiaDoCalendário),\"/Dia \",DiaDoCalendário-DATE(YEAR(DiaDoCalendário),1,0)),CONCATENATE(\"Dia \",DiaDoCalendário-DATE(YEAR(DiaDoCalendário),1,0)))","v":"Dia 268"},{"$f":"IF(WEEKDAY(DiaDoCalendário)=ValorDoInícioDaSemana,CONCATENATE(\"Semana \",WEEKNUM(DiaDoCalendário),\"/Dia \",DiaDoCalendário-DATE(YEAR(DiaDoCalendário),1,0)),CONCATENATE(\"Dia \",DiaDoCalendário-DATE(YEAR(DiaDoCalendário),1,0)))","v":"Dia 269"},{"$f":"IF(WEEKDAY(DiaDoCalendário)=ValorDoInícioDaSemana,CONCATENATE(\"Semana \",WEEKNUM(DiaDoCalendário),\"/Dia \",DiaDoCalendário-DATE(YEAR(DiaDoCalendário),1,0)),CONCATENATE(\"Dia \",DiaDoCalendário-DATE(YEAR(DiaDoCalendário),1,0)))","v":"Dia 270"},{"$f":"IF(WEEKDAY(DiaDoCalendário)=ValorDoInícioDaSemana,CONCATENATE(\"Semana \",WEEKNUM(DiaDoCalendário),\"/Dia \",DiaDoCalendário-DATE(YEAR(DiaDoCalendário),1,0)),CONCATENATE(\"Dia \",DiaDoCalendário-DATE(YEAR(DiaDoCalendário),1,0)))","v":"Dia 271"},{"$f":"IF(WEEKDAY(DiaDoCalendário)=ValorDoInícioDaSemana,CONCATENATE(\"Semana \",WEEKNUM(DiaDoCalendário),\"/Dia \",DiaDoCalendário-DATE(YEAR(DiaDoCalendário),1,0)),CONCATENATE(\"Dia \",DiaDoCalendário-DATE(YEAR(DiaDoCalendário),1,0)))","v":"Dia 272"}]
[{"$nulls":4},"ANOTAÇÕES"]
[]
[null,null,{"$f":"DiasESemanas+DATE(AnoDoCalendário,9,1)-WEEKDAY(DATE(AnoDoCalendário,9,1),(InícioDaSemana=\"SEG\")+1)+36","v":"2018-09-30"},"2018-10-01"]
[null,null,{"$f":"IF(WEEKDAY(DiaDoCalendário)=ValorDoInícioDaSemana,CONCATENATE(\"Semana \",WEEKNUM(DiaDoCalendário),\"/Dia \",DiaDoCalendário-DATE(YEAR(DiaDoCalendário),1,0)),CONCATENATE(\"Dia \",DiaDoCalendário-DATE(YEAR(DiaDoCalendário),1,0)))","v":"Semana 40/Dia 273"},{"$f":"IF(WEEKDAY(DiaDoCalendário)=ValorDoInícioDaSemana,CONCATENATE(\"Semana \",WEEKNUM(DiaDoCalendário),\"/Dia \",DiaDoCalendário-DATE(YEAR(DiaDoCalendário),1,0)),CONCATENATE(\"Dia \",DiaDoCalendário-DATE(YEAR(DiaDoCalendário),1,0)))","v":"Dia 274"}]

{"sheet":"OUT","index":9,"n_rows":20,"n_cols":9,"rows_kept":20,"merged":[[16,2,17,2],[17,4,19,8]]}
[null,"OUT",{"$f":"UPPER(TEXT(InícioDaSemana,\"ddd\"))","v":"DOM"},{"$f":"UPPER(TEXT(D3,\"ddd\"))","v":"SEG"},"TER","QUA","QUI","SEX","SÁB"]
[null,{"$f":"AnoDoCalendário","v":2018}]
[null,null,{"$f":"DiasESemanas+DATE(AnoDoCalendário,10,1)-WEEKDAY(DATE(AnoDoCalendário,10,1),(InícioDaSemana=\"SEG\")+1)+1","v":"2018-09-30"},"2018-10-01","2018-10-02","2018-10-03","2018-10-04","2018-10-05","2018-10-06"]
[null,null,{"$f":"IF(DAY(DiaDoCalendário)=1,CONCATENATE(\"Semana \",WEEKNUM(DiaDoCalendário),\"/Dia \",DiaDoCalendário-DATE(YEAR(DiaDoCalendário),1,0)),CONCATENATE(\"Dia \",DiaDoCalendário-DATE(YEAR(DiaDoCalendário),1,0)))","v":"Dia 273"},{"$f":"IF(DAY(DiaDoCalendário)=1,CONCATENATE(\"Semana \",WEEKNUM(DiaDoCalendário),\"/Dia \",DiaDoCalendário-DATE(YEAR(DiaDoCalendário),1,0)),CONCATENATE(\"Dia \",DiaDoCalendário-DATE(YEAR(DiaDoCalendário),1,0)))","v":"Semana 40/Dia 274"},{"$f":"IF(DAY(DiaDoCalendário)=1,CONCATENATE(\"Semana \",WEEKNUM(DiaDoCalendário),\"/Dia \",DiaDoCalendário-DATE(YEAR(DiaDoCalendário),1,0)),CONCATENATE(\"Dia \",DiaDoCalendário-DATE(YEAR(DiaDoCalendário),1,0)))","v":"Dia 275"},{"$f":"IF(DAY(DiaDoCalendário)=1,CONCATENATE(\"Semana \",WEEKNUM(DiaDoCalendário),\"/Dia \",DiaDoCalendário-DATE(YEAR(DiaDoCalendário),1,0)),CONCATENATE(\"Dia \",DiaDoCalendário-DATE(YEAR(DiaDoCalendário),1,0)))","v":"Dia 276"},{"$f":"IF(DAY(DiaDoCalendário)=1,CONCATENATE(\"Semana \",WEEKNUM(DiaDoCalendário),\"/Dia \",DiaDoCalendário-DATE(YEAR(DiaDoCalendário),1,0)),CONCATENATE(\"Dia \",DiaDoCalendário-DATE(YEAR(DiaDoCalendário),1,0)))","v":"Dia 277"},{"$f":"IF(DAY(DiaDoCalendário)=1,CONCATENATE(\"Semana \",WEEKNUM(DiaDoCalendário),\"/Dia \",DiaDoCalendário-DATE(YEAR(DiaDoCalendário),1,0)),CONCATENATE(\"Dia \",DiaDoCalendário-DATE(YEAR(DiaDoCalendário),1,0)))","v":"Dia 278"},{"$f":"IF(DAY(DiaDoCalendário)=1,CONCATENATE(\"Semana \",WEEKNUM(DiaDoCalendário),\"/Dia \",DiaDoCalendário-DATE(YEAR(DiaDoCalendário),1,0)),CONCATENATE(\"Dia \",DiaDoCalendário-DATE(YEAR(DiaDoCalendário),1,0)))","v":"Dia 279"}]
[]
[null,null,{"$f":"DiasESemanas+DATE(AnoDoCalendário,10,1)-WEEKDAY(DATE(AnoDoCalendário,10,1),(InícioDaSemana=\"SEG\")+1)+8","v":"2018-10-07"},"2018-10-08","2018-10-09","2018-10-10","2018-10-11","2018-10-12","2018-10-13"]
[null,null,{"$f":"IF(WEEKDAY(DiaDoCalendário)=ValorDoInícioDaSemana,CONCATENATE(\"Semana \",WEEKNUM(DiaDoCalendário),\"/Dia \",DiaDoCalendário-DATE(YEAR(DiaDoCalendário),1,0)),CONCATENATE(\"Dia \",DiaDoCalendário-DATE(YEAR(DiaDoCalendário),1,0)))","v":"Semana 41/Dia 280"},{"$f":"IF(WEEKDAY(DiaDoCalendário)=ValorDoInícioDaSemana,CONCATENATE(\"Semana \",WEEKNUM(DiaDoCalendário),\"/Dia \",DiaDoCalendário-DATE(YEAR(DiaDoCalendário),1,0)),CONCATENATE(\"Dia \",DiaDoCalendário-DATE(YEAR(DiaDoCalendário),1,0)))","v":"Dia 281"},{"$f":"IF(WEEKDAY(DiaDoCalendário)=ValorDoInícioDaSemana,CONCATENATE(\"Semana \",WEEKNUM(DiaDoCalendário),\"/Dia \",DiaDoCalendário-DATE(YEAR(DiaDoCalendário),1,0)),CONCATENATE(\"Dia \",DiaDoCalendário-DATE(YEAR(DiaDoCalendário),1,0)))","v":"Dia 282"},{"$f":"IF(WEEKDAY(DiaDoCalendário)=ValorDoInícioDaSemana,CONCATENATE(\"Semana \",WEEKNUM(DiaDoCalendário),\"/Dia \",DiaDoCalendário-DATE(YEAR(DiaDoCalendário),1,0)),CONCATENATE(\"Dia \",DiaDoCalendário-DATE(YEAR(DiaDoCalendário),1,0)))","v":"Dia 283"},{"$f":"IF(WEEKDAY(DiaDoCalendário)=ValorDoInícioDaSemana,CONCATENATE(\"Semana \",WEEKNUM(DiaDoCalendário),\"/Dia \",DiaDoCalendário-DATE(YEAR(DiaDoCalendário),1,0)),CONCATENATE(\"Dia \",DiaDoCalendário-DATE(YEAR(DiaDoCalendário),1,0)))","v":"Dia 284"},{"$f":"IF(WEEKDAY(DiaDoCalendário)=ValorDoInícioDaSemana,CONCATENATE(\"Semana \",WEEKNUM(DiaDoCalendário),\"/Dia \",DiaDoCalendário-DATE(YEAR(DiaDoCalendário),1,0)),CONCATENATE(\"Dia \",DiaDoCalendário-DATE(YEAR(DiaDoCalendário),1,0)))","v":"Dia 285"},{"$f":"IF(WEEKDAY(DiaDoCalendário)=ValorDoInícioDaSemana,CONCATENATE(\"Semana \",WEEKNUM(DiaDoCalendário),\"/Dia \",DiaDoCalendário-DATE(YEAR(DiaDoCalendário),1,0)),CONCATENATE(\"Dia \",DiaDoCalendário-DATE(YEAR(DiaDoCalendário),1,0)))","v":"Dia 286"}]
[]
[null,null,{"$f":"DiasESemanas+DATE(AnoDoCalendário,10,1)-WEEKDAY(DATE(AnoDoCalendário,10,1),(InícioDaSemana=\"SEG\")+1)+15","v":"2018-10-14"},"2018-10-15","2018-10-16","2018-10-17","2018-10-18","2018-10-19","2018-10-20"]
[null,null,{"$f":"IF(WEEKDAY(DiaDoCalendário)=ValorDoInícioDaSemana,CONCATENATE(\"Semana \",WEEKNUM(DiaDoCalendário),\"/Dia \",DiaDoCalendário-DATE(YEAR(DiaDoCalendário),1,0)),CONCATENATE(\"Dia \",DiaDoCalendário-DATE(YEAR(DiaDoCalendário),1,0)))","v":"Semana 42/Dia 287"},{"$f":"IF(WEEKDAY(DiaDoCalendário)=ValorDoInícioDaSemana,CONCATENATE(\"Semana \",WEEKNUM(DiaDoCalendário),\"/Dia \",DiaDoCalendário-DATE(YEAR(DiaDoCalendário),1,0)),CONCATENATE(\"Dia \",DiaDoCalendário-DATE(YEAR(DiaDoCalendário),1,0)))","v":"Dia 288"},{"$f":"IF(WEEKDAY(DiaDoCalendário)=ValorDoInícioDaSemana,CONCATENATE(\"Semana \",WEEKNUM(DiaDoCalendário),\"/Dia \",DiaDoCalendário-DATE(YEAR(DiaDoCalendário),1,0)),CONCATENATE(\"Dia \",DiaDoCalendário-DATE(YEAR(DiaDoCalendário),1,0)))","v":"Dia 289"},{"$f":"IF(WEEKDAY(DiaDoCalendário)=ValorDoInícioDaSemana,CONCATENATE(\"Semana \",WEEKNUM(DiaDoCalendário),\"/Dia \",DiaDoCalendário-DATE(YEAR(DiaDoCalendário),1,0)),CONCATENATE(\"Dia \",DiaDoCalendário-DATE(YEAR(DiaDoCalendário),1,0)))","v":"Dia 290"},{"$f":"IF(WEEKDAY(DiaDoCalendário)=ValorDoInícioDaSemana,CONCATENATE(\"Semana \",WEEKNUM(DiaDoCalendário),\"/Dia \",DiaDoCalendário-DATE(YEAR(DiaDoCalendário),1,0)),CONCATENATE(\"Dia \",DiaDoCalendário-DATE(YEAR(DiaDoCalendário),1,0)))","v":"Dia 291"},{"$f":"IF(WEEKDAY(DiaDoCalendário)=ValorDoInícioDaSemana,CONCATENATE(\"Semana \",WEEKNUM(DiaDoCalendário),\"/Dia \",DiaDoCalendário-DATE(YEAR(DiaDoCalendário),1,0)),CONCATENATE(\"Dia \",DiaDoCalendário-DATE(YEAR(DiaDoCalendário),1,0)))","v":"Dia 292"},{"$f":"IF(WEEKDAY(DiaDoCalendário)=ValorDoInícioDaSemana,CONCATENATE(\"Semana \",WEEKNUM(DiaDoCalendário),\"/Dia \",DiaDoCalendário-DATE(YEAR(DiaDoCalendário),1,0)),CONCATENATE(\"Dia \",DiaDoCalendário-DATE(YEAR(DiaDoCalendário),1,0)))","v":"Dia 293"}]
[]
[null,null,{"$f":"DiasESemanas+DATE(AnoDoCalendário,10,1)-WEEKDAY(DATE(AnoDoCalendário,10,1),(InícioDaSemana=\"SEG\")+1)+22","v":"2018-10-21"},"2018-10-22","2018-10-23","2018-10-24","2018-10-25","2018-10-26","2018-10-27"]
[null,null,{"$f":"IF(WEEKDAY(DiaDoCalendário)=ValorDoInícioDaSemana,CONCATENATE(\"Semana \",WEEKNUM(DiaDoCalendário),\"/Dia \",DiaDoCalendário-DATE(YEAR(DiaDoCalendário),1,0)),CONCATENATE(\"Dia \",DiaDoCalendário-DATE(YEAR(DiaDoCalendário),1,0)))","v":"Semana 43/Dia 294"},{"$f":"IF(WEEKDAY(DiaDoCalendário)=ValorDoInícioDaSemana,CONCATENATE(\"Semana \",WEEKNUM(DiaDoCalendário),\"/Dia \",DiaDoCalendário-DATE(YEAR(DiaDoCalendário),1,0)),CONCATENATE(\"Dia \",DiaDoCalendário-DATE(YEAR(DiaDoCalendário),1,0)))","v":"Dia 295"},{"$f":"IF(WEEKDAY(DiaDoCalendário)=ValorDoInícioDaSemana,CONCATENATE(\"Semana \",WEEKNUM(DiaDoCalendário),\"/Dia \",DiaDoCalendário-DATE(YEAR(DiaDoCalendário),1,0)),CONCATENATE(\"Dia \",DiaDoCalendário-DATE(YEAR(DiaDoCalendário),1,0)))","v":"Dia 296"},{"$f":"IF(WEEKDAY(DiaDoCalendário)=ValorDoInícioDaSemana,CONCATENATE(\"Semana \",WEEKNUM(DiaDoCalendário),\"/Dia \",DiaDoCalendário-DATE(YEAR(DiaDoCalendário),1,0)),CONCATENATE(\"Dia \",DiaDoCalendário-DATE(YEAR(DiaDoCalendário),1,0)))","v":"Dia 297"},{"$f":"IF(WEEKDAY(DiaDoCalendário)=ValorDoInícioDaSemana,CONCATENATE(\"Semana \",WEEKNUM(DiaDoCalendário),\"/Dia \",DiaDoCalendário-DATE(YEAR(DiaDoCalendário),1,0)),CONCATENATE(\"Dia \",DiaDoCalendário-DATE(YEAR(DiaDoCalendário),1,0)))","v":"Dia 298"},{"$f":"IF(WEEKDAY(DiaDoCalendário)=ValorDoInícioDaSemana,CONCATENATE(\"Semana \",WEEKNUM(DiaDoCalendário),\"/Dia \",DiaDoCalendário-DATE(YEAR(DiaDoCalendário),1,0)),CONCATENATE(\"Dia \",DiaDoCalendário-DATE(YEAR(DiaDoCalendário),1,0)))","v":"Dia 299"},{"$f":"IF(WEEKDAY(DiaDoCalendário)=ValorDoInícioDaSemana,CONCATENATE(\"Semana \",WEEKNUM(DiaDoCalendário),\"/Dia \",DiaDoCalendário-DATE(YEAR(DiaDoCalendário),1,0)),CONCATENATE(\"Dia \",DiaDoCalendário-DATE(YEAR(DiaDoCalendário),1,0)))","v":"Dia 300"}]
[]
[null,null,{"$f":"DiasESemanas+DATE(AnoDoCalendário,10,1)-WEEKDAY(DATE(AnoDoCalendário,10,1),(InícioDaSemana=\"SEG\")+1)+29","v":"2018-10-28"},"2018-10-29","2018-10-30","2018-10-31","2018-11-01","2018-11-02","2018-11-03"]
[null,null,{"$f":"IF(WEEKDAY(DiaDoCalendário)=ValorDoInícioDaSemana,CONCATENATE(\"Semana \",WEEKNUM(DiaDoCalendário),\"/Dia \",DiaDoCalendário-DATE(YEAR(DiaDoCalendário),1,0)),CONCATENATE(\"Dia \",DiaDoCalendário-DATE(YEAR(DiaDoCalendário),1,0)))","v":"Semana 44/Dia 301"},{"$f":"IF(WEEKDAY(DiaDoCalendário)=ValorDoInícioDaSemana,CONCATENATE(\"Semana \",WEEKNUM(DiaDoCalendário),\"/Dia \",DiaDoCalendário-DATE(YEAR(DiaDoCalendário),1,0)),CONCATENATE(\"Dia \",DiaDoCalendário-DATE(YEAR(DiaDoCalendário),1,0)))","v":"Dia 302"},{"$f":"IF(WEEKDAY(DiaDoCalendário)=ValorDoInícioDaSemana,CONCATENATE(\"Semana \",WEEKNUM(DiaDoCalendário),\"/Dia \",DiaDoCalendário-DATE(YEAR(DiaDoCalendário),1,0)),CONCATENATE(\"Dia \",DiaDoCalendário-DATE(YEAR(DiaDoCalendário),1,0)))","v":"Dia 303"},{"$f":"IF(WEEKDAY(DiaDoCalendário)=ValorDoInícioDaSemana,CONCATENATE(\"Semana \",WEEKNUM(DiaDoCalendário),\"/Dia \",DiaDoCalendário-DATE(YEAR(DiaDoCalendário),1,0)),CONCATENATE(\"Dia \",DiaDoCalendário-DATE(YEAR(DiaDoCalendário),1,0)))","v":"Dia 304"},{"$f":"IF(WEEKDAY(DiaDoCalendário)=ValorDoInícioDaSemana,CONCATENATE(\"Semana \",WEEKNUM(DiaDoCalendário),\"/Dia \",DiaDoCalendário-DATE(YEAR(DiaDoCalendário),1,0)),CONCATENATE(\"Dia \",DiaDoCalendário-DATE(YEAR(DiaDoCalendário),1,0)))","v":"Dia 305"},{"$f":"IF(WEEKDAY(DiaDoCalendário)=ValorDoInícioDaSemana,CONCATENATE(\"Semana \",WEEKNUM(DiaDoCalendário),\"/Dia \",DiaDoCalendário-DATE(YEAR(DiaDoCalendário),1,0)),CONCATENATE(\"Dia \",DiaDoCalendário-DATE(YEAR(DiaDoCalendário),1,0)))","v":"Dia 306"},{"$f":"IF(WEEKDAY(DiaDoCalendário)=ValorDoInícioDaSemana,CONCATENATE(\"Semana \",WEEKNUM(DiaDoCalendário),\"/Dia \",DiaDoCalendário-DATE(YEAR(DiaDoCalendário),1,0)),CONCATENATE(\"Dia \",DiaDoCalendário-DATE(YEAR(DiaDoCalendário),1,0)))","v":"Dia 307"}]
[{"$nulls":4},"ANOTAÇÕES"]
[]
[null,null,{"$f":"DiasESemanas+DATE(AnoDoCalendário,10,1)-WEEKDAY(DATE(AnoDoCalendário,10,1),(InícioDaSemana=\"SEG\")+1)+36","v":"2018-11-04"},"2018-11-05"]
[null,null,{"$f":"IF(WEEKDAY(DiaDoCalendário)=ValorDoInícioDaSemana,CONCATENATE(\"Semana \",WEEKNUM(DiaDoCalendário),\"/Dia \",DiaDoCalendário-DATE(YEAR(DiaDoCalendário),1,0)),CONCATENATE(\"Dia \",DiaDoCalendário-DATE(YEAR(DiaDoCalendário),1,0)))","v":"Semana 45/Dia 308"},{"$f":"IF(WEEKDAY(DiaDoCalendário)=ValorDoInícioDaSemana,CONCATENATE(\"Semana \",WEEKNUM(DiaDoCalendário),\"/Dia \",DiaDoCalendário-DATE(YEAR(DiaDoCalendário),1,0)),CONCATENATE(\"Dia \",DiaDoCalendário-DATE(YEAR(DiaDoCalendário),1,0)))","v":"Dia 309"}]

{"sheet":"NOV","index":10,"n_rows":20,"n_cols":9,"rows_kept":20,"merged":[[16,2,17,2],[17,4,19,8]]}
[null,"NOV",{"$f":"UPPER(TEXT(InícioDaSemana,\"ddd\"))","v":"DOM"},{"$f":"UPPER(TEXT(D3,\"ddd\"))","v":"SEG"},"TER","QUA","QUI","SEX","SÁB"]
[null,{"$f":"AnoDoCalendário","v":2018}]
[null,null,{"$f":"DiasESemanas+DATE(AnoDoCalendário,11,1)-WEEKDAY(DATE(AnoDoCalendário,11,1),(InícioDaSemana=\"SEG\")+1)+1","v":"2018-10-28"},"2018-10-29","2018-10-30","2018-10-31","2018-11-01","2018-11-02","2018-11-03"]
[null,null,{"$f":"IF(DAY(DiaDoCalendário)=1,CONCATENATE(\"Semana \",WEEKNUM(DiaDoCalendário),\"/Dia \",DiaDoCalendário-DATE(YEAR(DiaDoCalendário),1,0)),CONCATENATE(\"Dia \",DiaDoCalendário-DATE(YEAR(DiaDoCalendário),1,0)))","v":"Dia 301"},{"$f":"IF(DAY(DiaDoCalendário)=1,CONCATENATE(\"Semana \",WEEKNUM(DiaDoCalendário),\"/Dia \",DiaDoCalendário-DATE(YEAR(DiaDoCalendário),1,0)),CONCATENATE(\"Dia \",DiaDoCalendário-DATE(YEAR(DiaDoCalendário),1,0)))","v":"Dia 302"},{"$f":"IF(DAY(DiaDoCalendário)=1,CONCATENATE(\"Semana \",WEEKNUM(DiaDoCalendário),\"/Dia \",DiaDoCalendário-DATE(YEAR(DiaDoCalendário),1,0)),CONCATENATE(\"Dia \",DiaDoCalendário-DATE(YEAR(DiaDoCalendário),1,0)))","v":"Dia 303"},{"$f":"IF(DAY(DiaDoCalendário)=1,CONCATENATE(\"Semana \",WEEKNUM(DiaDoCalendário),\"/Dia \",DiaDoCalendário-DATE(YEAR(DiaDoCalendário),1,0)),CONCATENATE(\"Dia \",DiaDoCalendário-DATE(YEAR(DiaDoCalendário),1,0)))","v":"Dia 304"},{"$f":"IF(DAY(DiaDoCalendário)=1,CONCATENATE(\"Semana \",WEEKNUM(DiaDoCalendário),\"/Dia \",DiaDoCalendário-DATE(YEAR(DiaDoCalendário),1,0)),CONCATENATE(\"Dia \",DiaDoCalendário-DATE(YEAR(DiaDoCalendário),1,0)))","v":"Semana 44/Dia 305"},{"$f":"IF(DAY(DiaDoCalendário)=1,CONCATENATE(\"Semana \",WEEKNUM(DiaDoCalendário),\"/Dia \",DiaDoCalendário-DATE(YEAR(DiaDoCalendário),1,0)),CONCATENATE(\"Dia \",DiaDoCalendário-DATE(YEAR(DiaDoCalendário),1,0)))","v":"Dia 306"},{"$f":"IF(DAY(DiaDoCalendário)=1,CONCATENATE(\"Semana \",WEEKNUM(DiaDoCalendário),\"/Dia \",DiaDoCalendário-DATE(YEAR(DiaDoCalendário),1,0)),CONCATENATE(\"Dia \",DiaDoCalendário-DATE(YEAR(DiaDoCalendário),1,0)))","v":"Dia 307"}]
[]
[null,null,{"$f":"DiasESemanas+DATE(AnoDoCalendário,11,1)-WEEKDAY(DATE(AnoDoCalendário,11,1),(InícioDaSemana=\"SEG\")+1)+8","v":"2018-11-04"},"2018-11-05","2018-11-06","2018-11-07","2018-11-08","2018-11-09","2018-11-10"]
[null,null,{"$f":"IF(WEEKDAY(DiaDoCalendário)=ValorDoInícioDaSemana,CONCATENATE(\"Semana \",WEEKNUM(DiaDoCalendário),\"/Dia \",DiaDoCalendário-DATE(YEAR(DiaDoCalendário),1,0)),CONCATENATE(\"Dia \",DiaDoCalendário-DATE(YEAR(DiaDoCalendário),1,0)))","v":"Semana 45/Dia 308"},{"$f":"IF(WEEKDAY(DiaDoCalendário)=ValorDoInícioDaSemana,CONCATENATE(\"Semana \",WEEKNUM(DiaDoCalendário),\"/Dia \",DiaDoCalendário-DATE(YEAR(DiaDoCalendário),1,0)),CONCATENATE(\"Dia \",DiaDoCalendário-DATE(YEAR(DiaDoCalendário),1,0)))","v":"Dia 309"},{"$f":"IF(WEEKDAY(DiaDoCalendário)=ValorDoInícioDaSemana,CONCATENATE(\"Semana \",WEEKNUM(DiaDoCalendário),\"/Dia \",DiaDoCalendário-DATE(YEAR(DiaDoCalendário),1,0)),CONCATENATE(\"Dia \",DiaDoCalendário-DATE(YEAR(DiaDoCalendário),1,0)))","v":"Dia 310"},{"$f":"IF(WEEKDAY(DiaDoCalendário)=ValorDoInícioDaSemana,CONCATENATE(\"Semana \",WEEKNUM(DiaDoCalendário),\"/Dia \",DiaDoCalendário-DATE(YEAR(DiaDoCalendário),1,0)),CONCATENATE(\"Dia \",DiaDoCalendário-DATE(YEAR(DiaDoCalendário),1,0)))","v":"Dia 311"},{"$f":"IF(WEEKDAY(DiaDoCalendário)=ValorDoInícioDaSemana,CONCATENATE(\"Semana \",WEEKNUM(DiaDoCalendário),\"/Dia \",DiaDoCalendário-DATE(YEAR(DiaDoCalendário),1,0)),CONCATENATE(\"Dia \",DiaDoCalendário-DATE(YEAR(DiaDoCalendário),1,0)))","v":"Dia 312"},{"$f":"IF(WEEKDAY(DiaDoCalendário)=ValorDoInícioDaSemana,CONCATENATE(\"Semana \",WEEKNUM(DiaDoCalendário),\"/Dia \",DiaDoCalendário-DATE(YEAR(DiaDoCalendário),1,0)),CONCATENATE(\"Dia \",DiaDoCalendário-DATE(YEAR(DiaDoCalendário),1,0)))","v":"Dia 313"},{"$f":"IF(WEEKDAY(DiaDoCalendário)=ValorDoInícioDaSemana,CONCATENATE(\"Semana \",WEEKNUM(DiaDoCalendário),\"/Dia \",DiaDoCalendário-DATE(YEAR(DiaDoCalendário),1,0)),CONCATENATE(\"Dia \",DiaDoCalendário-DATE(YEAR(DiaDoCalendário),1,0)))","v":"Dia 314"}]
[]
[null,null,{"$f":"DiasESemanas+DATE(AnoDoCalendário,11,1)-WEEKDAY(DATE(AnoDoCalendário,11,1),(InícioDaSemana=\"SEG\")+1)+15","v":"2018-11-11"},"2018-11-12","2018-11-13","2018-11-14","2018-11-15","2018-11-16","2018-11-17"]
[null,null,{"$f":"IF(WEEKDAY(DiaDoCalendário)=ValorDoInícioDaSemana,CONCATENATE(\"Semana \",WEEKNUM(DiaDoCalendário),\"/Dia \",DiaDoCalendário-DATE(YEAR(DiaDoCalendário),1,0)),CONCATENATE(\"Dia \",DiaDoCalendário-DATE(YEAR(DiaDoCalendário),1,0)))","v":"Semana 46/Dia 315"},{"$f":"IF(WEEKDAY(DiaDoCalendário)=ValorDoInícioDaSemana,CONCATENATE(\"Semana \",WEEKNUM(DiaDoCalendário),\"/Dia \",DiaDoCalendário-DATE(YEAR(DiaDoCalendário),1,0)),CONCATENATE(\"Dia \",DiaDoCalendário-DATE(YEAR(DiaDoCalendário),1,0)))","v":"Dia 316"},{"$f":"IF(WEEKDAY(DiaDoCalendário)=ValorDoInícioDaSemana,CONCATENATE(\"Semana \",WEEKNUM(DiaDoCalendário),\"/Dia \",DiaDoCalendário-DATE(YEAR(DiaDoCalendário),1,0)),CONCATENATE(\"Dia \",DiaDoCalendário-DATE(YEAR(DiaDoCalendário),1,0)))","v":"Dia 317"},{"$f":"IF(WEEKDAY(DiaDoCalendário)=ValorDoInícioDaSemana,CONCATENATE(\"Semana \",WEEKNUM(DiaDoCalendário),\"/Dia \",DiaDoCalendário-DATE(YEAR(DiaDoCalendário),1,0)),CONCATENATE(\"Dia \",DiaDoCalendário-DATE(YEAR(DiaDoCalendário),1,0)))","v":"Dia 318"},{"$f":"IF(WEEKDAY(DiaDoCalendário)=ValorDoInícioDaSemana,CONCATENATE(\"Semana \",WEEKNUM(DiaDoCalendário),\"/Dia \",DiaDoCalendário-DATE(YEAR(DiaDoCalendário),1,0)),CONCATENATE(\"Dia \",DiaDoCalendário-DATE(YEAR(DiaDoCalendário),1,0)))","v":"Dia 319"},{"$f":"IF(WEEKDAY(DiaDoCalendário)=ValorDoInícioDaSemana,CONCATENATE(\"Semana \",WEEKNUM(DiaDoCalendário),\"/Dia \",DiaDoCalendário-DATE(YEAR(DiaDoCalendário),1,0)),CONCATENATE(\"Dia \",DiaDoCalendário-DATE(YEAR(DiaDoCalendário),1,0)))","v":"Dia 320"},{"$f":"IF(WEEKDAY(DiaDoCalendário)=ValorDoInícioDaSemana,CONCATENATE(\"Semana \",WEEKNUM(DiaDoCalendário),\"/Dia \",DiaDoCalendário-DATE(YEAR(DiaDoCalendário),1,0)),CONCATENATE(\"Dia \",DiaDoCalendário-DATE(YEAR(DiaDoCalendário),1,0)))","v":"Dia 321"}]
[]
[null,null,{"$f":"DiasESemanas+DATE(AnoDoCalendário,11,1)-WEEKDAY(DATE(AnoDoCalendário,11,1),(InícioDaSemana=\"SEG\")+1)+22","v":"2018-11-18"},"2018-11-19","2018-11-20","2018-11-21","2018-11-22","2018-11-23","2018-11-24"]
[null,null,{"$f":"IF(WEEKDAY(DiaDoCalendário)=ValorDoInícioDaSemana,CONCATENATE(\"Semana \",WEEKNUM(DiaDoCalendário),\"/Dia \",DiaDoCalendário-DATE(YEAR(DiaDoCalendário),1,0)),CONCATENATE(\"Dia \",DiaDoCalendário-DATE(YEAR(DiaDoCalendário),1,0)))","v":"Semana 47/Dia 322"},{"$f":"IF(WEEKDAY(DiaDoCalendário)=ValorDoInícioDaSemana,CONCATENATE(\"Semana \",WEEKNUM(DiaDoCalendário),\"/Dia \",DiaDoCalendário-DATE(YEAR(DiaDoCalendário),1,0)),CONCATENATE(\"Dia \",DiaDoCalendário-DATE(YEAR(DiaDoCalendário),1,0)))","v":"Dia 323"},{"$f":"IF(WEEKDAY(DiaDoCalendário)=ValorDoInícioDaSemana,CONCATENATE(\"Semana \",WEEKNUM(DiaDoCalendário),\"/Dia \",DiaDoCalendário-DATE(YEAR(DiaDoCalendário),1,0)),CONCATENATE(\"Dia \",DiaDoCalendário-DATE(YEAR(DiaDoCalendário),1,0)))","v":"Dia 324"},{"$f":"IF(WEEKDAY(DiaDoCalendário)=ValorDoInícioDaSemana,CONCATENATE(\"Semana \",WEEKNUM(DiaDoCalendário),\"/Dia \",DiaDoCalendário-DATE(YEAR(DiaDoCalendário),1,0)),CONCATENATE(\"Dia \",DiaDoCalendário-DATE(YEAR(DiaDoCalendário),1,0)))","v":"Dia 325"},{"$f":"IF(WEEKDAY(DiaDoCalendário)=ValorDoInícioDaSemana,CONCATENATE(\"Semana \",WEEKNUM(DiaDoCalendário),\"/Dia \",DiaDoCalendário-DATE(YEAR(DiaDoCalendário),1,0)),CONCATENATE(\"Dia \",DiaDoCalendário-DATE(YEAR(DiaDoCalendário),1,0)))","v":"Dia 326"},{"$f":"IF(WEEKDAY(DiaDoCalendário)=ValorDoInícioDaSemana,CONCATENATE(\"Semana \",WEEKNUM(DiaDoCalendário),\"/Dia \",DiaDoCalendário-DATE(YEAR(DiaDoCalendário),1,0)),CONCATENATE(\"Dia \",DiaDoCalendário-DATE(YEAR(DiaDoCalendário),1,0)))","v":"Dia 327"},{"$f":"IF(WEEKDAY(DiaDoCalendário)=ValorDoInícioDaSemana,CONCATENATE(\"Semana \",WEEKNUM(DiaDoCalendário),\"/Dia \",DiaDoCalendário-DATE(YEAR(DiaDoCalendário),1,0)),CONCATENATE(\"Dia \",DiaDoCalendário-DATE(YEAR(DiaDoCalendário),1,0)))","v":"Dia 328"}]
[]
[null,null,{"$f":"DiasESemanas+DATE(AnoDoCalendário,11,1)-WEEKDAY(DATE(AnoDoCalendário,11,1),(InícioDaSemana=\"SEG\")+1)+29","v":"2018-11-25"},"2018-11-26","2018-11-27","2018-11-28","2018-11-29","2018-11-30","2018-12-01"]
[null,null,{"$f":"IF(WEEKDAY(DiaDoCalendário)=ValorDoInícioDaSemana,CONCATENATE(\"Semana \",WEEKNUM(DiaDoCalendário),\"/Dia \",DiaDoCalendário-DATE(YEAR(DiaDoCalendário),1,0)),CONCATENATE(\"Dia \",DiaDoCalendário-DATE(YEAR(DiaDoCalendário),1,0)))","v":"Semana 48/Dia 329"},{"$f":"IF(WEEKDAY(DiaDoCalendário)=ValorDoInícioDaSemana,CONCATENATE(\"Semana \",WEEKNUM(DiaDoCalendário),\"/Dia \",DiaDoCalendário-DATE(YEAR(DiaDoCalendário),1,0)),CONCATENATE(\"Dia \",DiaDoCalendário-DATE(YEAR(DiaDoCalendário),1,0)))","v":"Dia 330"},{"$f":"IF(WEEKDAY(DiaDoCalendário)=ValorDoInícioDaSemana,CONCATENATE(\"Semana \",WEEKNUM(DiaDoCalendário),\"/Dia \",DiaDoCalendário-DATE(YEAR(DiaDoCalendário),1,0)),CONCATENATE(\"Dia \",DiaDoCalendário-DATE(YEAR(DiaDoCalendário),1,0)))","v":"Dia 331"},{"$f":"IF(WEEKDAY(DiaDoCalendário)=ValorDoInícioDaSemana,CONCATENATE(\"Semana \",WEEKNUM(DiaDoCalendário),\"/Dia \",DiaDoCalendário-DATE(YEAR(DiaDoCalendário),1,0)),CONCATENATE(\"Dia \",DiaDoCalendário-DATE(YEAR(DiaDoCalendário),1,0)))","v":"Dia 332"},{"$f":"IF(WEEKDAY(DiaDoCalendário)=ValorDoInícioDaSemana,CONCATENATE(\"Semana \",WEEKNUM(DiaDoCalendário),\"/Dia \",DiaDoCalendário-DATE(YEAR(DiaDoCalendário),1,0)),CONCATENATE(\"Dia \",DiaDoCalendário-DATE(YEAR(DiaDoCalendário),1,0)))","v":"Dia 333"},{"$f":"IF(WEEKDAY(DiaDoCalendário)=ValorDoInícioDaSemana,CONCATENATE(\"Semana \",WEEKNUM(DiaDoCalendário),\"/Dia \",DiaDoCalendário-DATE(YEAR(DiaDoCalendário),1,0)),CONCATENATE(\"Dia \",DiaDoCalendário-DATE(YEAR(DiaDoCalendário),1,0)))","v":"Dia 334"},{"$f":"IF(WEEKDAY(DiaDoCalendário)=ValorDoInícioDaSemana,CONCATENATE(\"Semana \",WEEKNUM(DiaDoCalendário),\"/Dia \",DiaDoCalendário-DATE(YEAR(DiaDoCalendário),1,0)),CONCATENATE(\"Dia \",DiaDoCalendário-DATE(YEAR(DiaDoCalendário),1,0)))","v":"Dia 335"}]
[{"$nulls":4},"ANOTAÇÕES"]
[]
[null,null,{"$f":"DiasESemanas+DATE(AnoDoCalendário,11,1)-WEEKDAY(DATE(AnoDoCalendário,11,1),(InícioDaSemana=\"SEG\")+1)+36","v":"2018-12-02"},"2018-12-03"]
[null,null,{"$f":"IF(WEEKDAY(DiaDoCalendário)=ValorDoInícioDaSemana,CONCATENATE(\"Semana \",WEEKNUM(DiaDoCalendário),\"/Dia \",DiaDoCalendário-DATE(YEAR(DiaDoCalendário),1,0)),CONCATENATE(\"Dia \",DiaDoCalendário-DATE(YEAR(DiaDoCalendário),1,0)))","v":"Semana 49/Dia 336"},{"$f":"IF(WEEKDAY(DiaDoCalendário)=ValorDoInícioDaSemana,CONCATENATE(\"Semana \",WEEKNUM(DiaDoCalendário),\"/Dia \",DiaDoCalendário-DATE(YEAR(DiaDoCalendário),1,0)),CONCATENATE(\"Dia \",DiaDoCalendário-DATE(YEAR(DiaDoCalendário),1,0)))","v":"Dia 337"}]

{"sheet":"DEZ","index":11,"n_rows":20,"n_cols":9,"rows_kept":20,"merged":[[16,2,17,2],[17,4,19,8]]}
[null,"DEZ",{"$f":"UPPER(TEXT(InícioDaSemana,\"ddd\"))","v":"DOM"},{"$f":"UPPER(TEXT(D3,\"ddd\"))","v":"SEG"},"TER","QUA","QUI","SEX","SÁB"]
[null,{"$f":"AnoDoCalendário","v":2018}]
[null,null,{"$f":"DiasESemanas+DATE(AnoDoCalendário,12,1)-WEEKDAY(DATE(AnoDoCalendário,12,1),(InícioDaSemana=\"SEG\")+1)+1","v":"2018-11-25"},"2018-11-26","2018-11-27","2018-11-28","2018-11-29","2018-11-30","2018-12-01"]
[null,null,{"$f":"IF(DAY(DiaDoCalendário)=1,CONCATENATE(\"Semana \",WEEKNUM(DiaDoCalendário),\"/Dia \",DiaDoCalendário-DATE(YEAR(DiaDoCalendário),1,0)),CONCATENATE(\"Dia \",DiaDoCalendário-DATE(YEAR(DiaDoCalendário),1,0)))","v":"Dia 329"},{"$f":"IF(DAY(DiaDoCalendário)=1,CONCATENATE(\"Semana \",WEEKNUM(DiaDoCalendário),\"/Dia \",DiaDoCalendário-DATE(YEAR(DiaDoCalendário),1,0)),CONCATENATE(\"Dia \",DiaDoCalendário-DATE(YEAR(DiaDoCalendário),1,0)))","v":"Dia 330"},{"$f":"IF(DAY(DiaDoCalendário)=1,CONCATENATE(\"Semana \",WEEKNUM(DiaDoCalendário),\"/Dia \",DiaDoCalendário-DATE(YEAR(DiaDoCalendário),1,0)),CONCATENATE(\"Dia \",DiaDoCalendário-DATE(YEAR(DiaDoCalendário),1,0)))","v":"Dia 331"},{"$f":"IF(DAY(DiaDoCalendário)=1,CONCATENATE(\"Semana \",WEEKNUM(DiaDoCalendário),\"/Dia \",DiaDoCalendário-DATE(YEAR(DiaDoCalendário),1,0)),CONCATENATE(\"Dia \",DiaDoCalendário-DATE(YEAR(DiaDoCalendário),1,0)))","v":"Dia 332"},{"$f":"IF(DAY(DiaDoCalendário)=1,CONCATENATE(\"Semana \",WEEKNUM(DiaDoCalendário),\"/Dia \",DiaDoCalendário-DATE(YEAR(DiaDoCalendário),1,0)),CONCATENATE(\"Dia \",DiaDoCalendário-DATE(YEAR(DiaDoCalendário),1,0)))","v":"Dia 333"},{"$f":"IF(DAY(DiaDoCalendário)=1,CONCATENATE(\"Semana \",WEEKNUM(DiaDoCalendário),\"/Dia \",DiaDoCalendário-DATE(YEAR(DiaDoCalendário),1,0)),CONCATENATE(\"Dia \",DiaDoCalendário-DATE(YEAR(DiaDoCalendário),1,0)))","v":"Dia 334"},{"$f":"IF(DAY(DiaDoCalendário)=1,CONCATENATE(\"Semana \",WEEKNUM(DiaDoCalendário),\"/Dia \",DiaDoCalendário-DATE(YEAR(DiaDoCalendário),1,0)),CONCATENATE(\"Dia \",DiaDoCalendário-DATE(YEAR(DiaDoCalendário),1,0)))","v":"Semana 48/Dia 335"}]
[]
[null,null,{"$f":"DiasESemanas+DATE(AnoDoCalendário,12,1)-WEEKDAY(DATE(AnoDoCalendário,12,1),(InícioDaSemana=\"SEG\")+1)+8","v":"2018-12-02"},"2018-12-03","2018-12-04","2018-12-05","2018-12-06","2018-12-07","2018-12-08"]
[null,null,{"$f":"IF(WEEKDAY(DiaDoCalendário)=ValorDoInícioDaSemana,CONCATENATE(\"Semana \",WEEKNUM(DiaDoCalendário),\"/Dia \",DiaDoCalendário-DATE(YEAR(DiaDoCalendário),1,0)),CONCATENATE(\"Dia \",DiaDoCalendário-DATE(YEAR(DiaDoCalendário),1,0)))","v":"Semana 49/Dia 336"},{"$f":"IF(WEEKDAY(DiaDoCalendário)=ValorDoInícioDaSemana,CONCATENATE(\"Semana \",WEEKNUM(DiaDoCalendário),\"/Dia \",DiaDoCalendário-DATE(YEAR(DiaDoCalendário),1,0)),CONCATENATE(\"Dia \",DiaDoCalendário-DATE(YEAR(DiaDoCalendário),1,0)))","v":"Dia 337"},{"$f":"IF(WEEKDAY(DiaDoCalendário)=ValorDoInícioDaSemana,CONCATENATE(\"Semana \",WEEKNUM(DiaDoCalendário),\"/Dia \",DiaDoCalendário-DATE(YEAR(DiaDoCalendário),1,0)),CONCATENATE(\"Dia \",DiaDoCalendário-DATE(YEAR(DiaDoCalendário),1,0)))","v":"Dia 338"},{"$f":"IF(WEEKDAY(DiaDoCalendário)=ValorDoInícioDaSemana,CONCATENATE(\"Semana \",WEEKNUM(DiaDoCalendário),\"/Dia \",DiaDoCalendário-DATE(YEAR(DiaDoCalendário),1,0)),CONCATENATE(\"Dia \",DiaDoCalendário-DATE(YEAR(DiaDoCalendário),1,0)))","v":"Dia 339"},{"$f":"IF(WEEKDAY(DiaDoCalendário)=ValorDoInícioDaSemana,CONCATENATE(\"Semana \",WEEKNUM(DiaDoCalendário),\"/Dia \",DiaDoCalendário-DATE(YEAR(DiaDoCalendário),1,0)),CONCATENATE(\"Dia \",DiaDoCalendário-DATE(YEAR(DiaDoCalendário),1,0)))","v":"Dia 340"},{"$f":"IF(WEEKDAY(DiaDoCalendário)=ValorDoInícioDaSemana,CONCATENATE(\"Semana \",WEEKNUM(DiaDoCalendário),\"/Dia \",DiaDoCalendário-DATE(YEAR(DiaDoCalendário),1,0)),CONCATENATE(\"Dia \",DiaDoCalendário-DATE(YEAR(DiaDoCalendário),1,0)))","v":"Dia 341"},{"$f":"IF(WEEKDAY(DiaDoCalendário)=ValorDoInícioDaSemana,CONCATENATE(\"Semana \",WEEKNUM(DiaDoCalendário),\"/Dia \",DiaDoCalendário-DATE(YEAR(DiaDoCalendário),1,0)),CONCATENATE(\"Dia \",DiaDoCalendário-DATE(YEAR(DiaDoCalendário),1,0)))","v":"Dia 342"}]
[]
[null,null,{"$f":"DiasESemanas+DATE(AnoDoCalendário,12,1)-WEEKDAY(DATE(AnoDoCalendário,12,1),(InícioDaSemana=\"SEG\")+1)+15","v":"2018-12-09"},"2018-12-10","2018-12-11","2018-12-12","2018-12-13","2018-12-14","2018-12-15"]
[null,null,{"$f":"IF(WEEKDAY(DiaDoCalendário)=ValorDoInícioDaSemana,CONCATENATE(\"Semana \",WEEKNUM(DiaDoCalendário),\"/Dia \",DiaDoCalendário-DATE(YEAR(DiaDoCalendário),1,0)),CONCATENATE(\"Dia \",DiaDoCalendário-DATE(YEAR(DiaDoCalendário),1,0)))","v":"Semana 50/Dia 343"},{"$f":"IF(WEEKDAY(DiaDoCalendário)=ValorDoInícioDaSemana,CONCATENATE(\"Semana \",WEEKNUM(DiaDoCalendário),\"/Dia \",DiaDoCalendário-DATE(YEAR(DiaDoCalendário),1,0)),CONCATENATE(\"Dia \",DiaDoCalendário-DATE(YEAR(DiaDoCalendário),1,0)))","v":"Dia 344"},{"$f":"IF(WEEKDAY(DiaDoCalendário)=ValorDoInícioDaSemana,CONCATENATE(\"Semana \",WEEKNUM(DiaDoCalendário),\"/Dia \",DiaDoCalendário-DATE(YEAR(DiaDoCalendário),1,0)),CONCATENATE(\"Dia \",DiaDoCalendário-DATE(YEAR(DiaDoCalendário),1,0)))","v":"Dia 345"},{"$f":"IF(WEEKDAY(DiaDoCalendário)=ValorDoInícioDaSemana,CONCATENATE(\"Semana \",WEEKNUM(DiaDoCalendário),\"/Dia \",DiaDoCalendário-DATE(YEAR(DiaDoCalendário),1,0)),CONCATENATE(\"Dia \",DiaDoCalendário-DATE(YEAR(DiaDoCalendário),1,0)))","v":"Dia 346"},{"$f":"IF(WEEKDAY(DiaDoCalendário)=ValorDoInícioDaSemana,CONCATENATE(\"Semana \",WEEKNUM(DiaDoCalendário),\"/Dia \",DiaDoCalendário-DATE(YEAR(DiaDoCalendário),1,0)),CONCATENATE(\"Dia \",DiaDoCalendário-DATE(YEAR(DiaDoCalendário),1,0)))","v":"Dia 347"},{"$f":"IF(WEEKDAY(DiaDoCalendário)=ValorDoInícioDaSemana,CONCATENATE(\"Semana \",WEEKNUM(DiaDoCalendário),\"/Dia \",DiaDoCalendário-DATE(YEAR(DiaDoCalendário),1,0)),CONCATENATE(\"Dia \",DiaDoCalendário-DATE(YEAR(DiaDoCalendário),1,0)))","v":"Dia 348"},{"$f":"IF(WEEKDAY(DiaDoCalendário)=ValorDoInícioDaSemana,CONCATENATE(\"Semana \",WEEKNUM(DiaDoCalendário),\"/Dia \",DiaDoCalendário-DATE(YEAR(DiaDoCalendário),1,0)),CONCATENATE(\"Dia \",DiaDoCalendário-DATE(YEAR(DiaDoCalendário),1,0)))","v":"Dia 349"}]
[]
[null,null,{"$f":"DiasESemanas+DATE(AnoDoCalendário,12,1)-WEEKDAY(DATE(AnoDoCalendário,12,1),(InícioDaSemana=\"SEG\")+1)+22","v":"2018-12-16"},"2018-12-17","2018-12-18","2018-12-19","2018-12-20","2018-12-21","2018-12-22"]
[null,null,{"$f":"IF(WEEKDAY(DiaDoCalendário)=ValorDoInícioDaSemana,CONCATENATE(\"Semana \",WEEKNUM(DiaDoCalendário),\"/Dia \",DiaDoCalendário-DATE(YEAR(DiaDoCalendário),1,0)),CONCATENATE(\"Dia \",DiaDoCalendário-DATE(YEAR(DiaDoCalendário),1,0)))","v":"Semana 51/Dia 350"},{"$f":"IF(WEEKDAY(DiaDoCalendário)=ValorDoInícioDaSemana,CONCATENATE(\"Semana \",WEEKNUM(DiaDoCalendário),\"/Dia \",DiaDoCalendário-DATE(YEAR(DiaDoCalendário),1,0)),CONCATENATE(\"Dia \",DiaDoCalendário-DATE(YEAR(DiaDoCalendário),1,0)))","v":"Dia 351"},{"$f":"IF(WEEKDAY(DiaDoCalendário)=ValorDoInícioDaSemana,CONCATENATE(\"Semana \",WEEKNUM(DiaDoCalendário),\"/Dia \",DiaDoCalendário-DATE(YEAR(DiaDoCalendário),1,0)),CONCATENATE(\"Dia \",DiaDoCalendário-DATE(YEAR(DiaDoCalendário),1,0)))","v":"Dia 352"},{"$f":"IF(WEEKDAY(DiaDoCalendário)=ValorDoInícioDaSemana,CONCATENATE(\"Semana \",WEEKNUM(DiaDoCalendário),\"/Dia \",DiaDoCalendário-DATE(YEAR(DiaDoCalendário),1,0)),CONCATENATE(\"Dia \",DiaDoCalendário-DATE(YEAR(DiaDoCalendário),1,0)))","v":"Dia 353"},{"$f":"IF(WEEKDAY(DiaDoCalendário)=ValorDoInícioDaSemana,CONCATENATE(\"Semana \",WEEKNUM(DiaDoCalendário),\"/Dia \",DiaDoCalendário-DATE(YEAR(DiaDoCalendário),1,0)),CONCATENATE(\"Dia \",DiaDoCalendário-DATE(YEAR(DiaDoCalendário),1,0)))","v":"Dia 354"},{"$f":"IF(WEEKDAY(DiaDoCalendário)=ValorDoInícioDaSemana,CONCATENATE(\"Semana \",WEEKNUM(DiaDoCalendário),\"/Dia \",DiaDoCalendário-DATE(YEAR(DiaDoCalendário),1,0)),CONCATENATE(\"Dia \",DiaDoCalendário-DATE(YEAR(DiaDoCalendário),1,0)))","v":"Dia 355"},{"$f":"IF(WEEKDAY(DiaDoCalendário)=ValorDoInícioDaSemana,CONCATENATE(\"Semana \",WEEKNUM(DiaDoCalendário),\"/Dia \",DiaDoCalendário-DATE(YEAR(DiaDoCalendário),1,0)),CONCATENATE(\"Dia \",DiaDoCalendário-DATE(YEAR(DiaDoCalendário),1,0)))","v":"Dia 356"}]
[]
[null,null,{"$f":"DiasESemanas+DATE(AnoDoCalendário,12,1)-WEEKDAY(DATE(AnoDoCalendário,12,1),(InícioDaSemana=\"SEG\")+1)+29","v":"2018-12-23"},"2018-12-24","2018-12-25","2018-12-26","2018-12-27","2018-12-28","2018-12-29"]
[null,null,{"$f":"IF(WEEKDAY(DiaDoCalendário)=ValorDoInícioDaSemana,CONCATENATE(\"Semana \",WEEKNUM(DiaDoCalendário),\"/Dia \",DiaDoCalendário-DATE(YEAR(DiaDoCalendário),1,0)),CONCATENATE(\"Dia \",DiaDoCalendário-DATE(YEAR(DiaDoCalendário),1,0)))","v":"Semana 52/Dia 357"},{"$f":"IF(WEEKDAY(DiaDoCalendário)=ValorDoInícioDaSemana,CONCATENATE(\"Semana \",WEEKNUM(DiaDoCalendário),\"/Dia \",DiaDoCalendário-DATE(YEAR(DiaDoCalendário),1,0)),CONCATENATE(\"Dia \",DiaDoCalendário-DATE(YEAR(DiaDoCalendário),1,0)))","v":"Dia 358"},{"$f":"IF(WEEKDAY(DiaDoCalendário)=ValorDoInícioDaSemana,CONCATENATE(\"Semana \",WEEKNUM(DiaDoCalendário),\"/Dia \",DiaDoCalendário-DATE(YEAR(DiaDoCalendário),1,0)),CONCATENATE(\"Dia \",DiaDoCalendário-DATE(YEAR(DiaDoCalendário),1,0)))","v":"Dia 359"},{"$f":"IF(WEEKDAY(DiaDoCalendário)=ValorDoInícioDaSemana,CONCATENATE(\"Semana \",WEEKNUM(DiaDoCalendário),\"/Dia \",DiaDoCalendário-DATE(YEAR(DiaDoCalendário),1,0)),CONCATENATE(\"Dia \",DiaDoCalendário-DATE(YEAR(DiaDoCalendário),1,0)))","v":"Dia 360"},{"$f":"IF(WEEKDAY(DiaDoCalendário)=ValorDoInícioDaSemana,CONCATENATE(\"Semana \",WEEKNUM(DiaDoCalendário),\"/Dia \",DiaDoCalendário-DATE(YEAR(DiaDoCalendário),1,0)),CONCATENATE(\"Dia \",DiaDoCalendário-DATE(YEAR(DiaDoCalendário),1,0)))","v":"Dia 361"},{"$f":"IF(WEEKDAY(DiaDoCalendário)=ValorDoInícioDaSemana,CONCATENATE(\"Semana \",WEEKNUM(DiaDoCalendário),\"/Dia \",DiaDoCalendário-DATE(YEAR(DiaDoCalendário),1,0)),CONCATENATE(\"Dia \",DiaDoCalendário-DATE(YEAR(DiaDoCalendário),1,0)))","v":"Dia 362"},{"$f":"IF(WEEKDAY(DiaDoCalendário)=ValorDoInícioDaSemana,CONCATENATE(\"Semana \",WEEKNUM(DiaDoCalendário),\"/Dia \",DiaDoCalendário-DATE(YEAR(DiaDoCalendário),1,0)),CONCATENATE(\"Dia \",DiaDoCalendário-DATE(YEAR(DiaDoCalendário),1,0)))","v":"Dia 363"}]
[{"$nulls":4},"ANOTAÇÕES"]
[]
[null,null,{"$f":"DiasESemanas+DATE(AnoDoCalendário,12,1)-WEEKDAY(DATE(AnoDoCalendário,12,1),(InícioDaSemana=\"SEG\")+1)+36","v":"2018-12-30"},"2018-12-31"]
[null,null,{"$f":"IF(WEEKDAY(DiaDoCalendário)=ValorDoInícioDaSemana,CONCATENATE(\"Semana \",WEEKNUM(DiaDoCalendário),\"/Dia \",DiaDoCalendário-DATE(YEAR(DiaDoCalendário),1,0)),CONCATENATE(\"Dia \",DiaDoCalendário-DATE(YEAR(DiaDoCalendário),1,0)))","v":"Semana 53/Dia 364"},{"$f":"IF(WEEKDAY(DiaDoCalendário)=ValorDoInícioDaSemana,CONCATENATE(\"Semana \",WEEKNUM(DiaDoCalendário),\"/Dia \",DiaDoCalendário-DATE(YEAR(DiaDoCalendário),1,0)),CONCATENATE(\"Dia \",DiaDoCalendário-DATE(YEAR(DiaDoCalendário),1,0)))","v":"Dia 365"}]